Workbook

Sheet SERIES
A2: e.surv Acadata E&W HPI NATIONAL AND REGIONAL FORMATTED DATA FROM 2005
A3: A TRUE MEASURE OF HOUSE PRICE INFLATION | K3: FEBRUARY 2024
A4: For data prior to 2005 please see | D4: APAT LGA
A6: The following table provides national smoothed, seasonally and mix adjusted current and back data for our e.surv Acadata E&W HPI. The data are based upon the prices for all residential transactions in England and Wales, including cash purchases, reported by the Land Registry.
A7: At national level, only some 60,000 monthly transactions are occurring. For any given month, only c.35% of the transactions which took place in the month are available from LR. Rather than rely upon a small sample of c.21,000 potentially unrepresentative transactions, we base our initial results for each, most recent, month upon our Academic “index of indices” forecasting model, developed at the University of Cambridge and the Sir John Cass Business School. One month later, however, LR provides c.80% of the transactions, which we use to replace our initial forecast with an updated e.surv Acadata E&W HPI result. Two months after any given month, LR provides c.90% of the transactions. We then regard our results as sufficiently updated to describe them as the final e.surv Acadata E&W HPI index.
A8: The final e.surv Acadata E&W HPI index comprises some 90% of the ultimate LR transactions, smoothed, seasonally and mix adjusted. Every further update from LR is used monthly until the ultimate e.surv Acadata E&W HPI result based upon 100% of the LR data is reached.These results are the complete transaction data for England and Wales smoothed, seasonally and mix adjusted. Normally, these show no significant change from the final e.surv Acadata E&W HPI result. Our Acadata House Prices series is calibrated to provide portfolio revaluations with standard errors.
A9: In this e.surv Acadata Data Series, new weights have been adopted from April 2004 and prices on and after this date have been recalculated based on these new weights. The Index however remains based on the original weights and has not been re-cast. There is therefore discontinuity between the recalculated prices and the original Index.
A10: e.surv Acadata E&W HPI is prepared from Land Registry data that we believe to be correct using a methodology designed to provide the best possible guide to house price movements in England and Wales, and applied with care. We do not guarantee the accuracy of the results and Acadata shall not be liable for any loss or damage, whatsoever, consequential upon any error, misdescription or other inadequacy in the data. Persons using the data do so entirely at their own risk. No part of the house price index may be reproduced in any form or for any purpose without the prior permission of Acadata. Please email information@Acadata.co.uk
L12: © Acadata Limited
M13: e.surv Acadata E&W HPI clb/cms
M14: www.acadata.co.uk
B16: 2005-01-01 | C16: 2005-02-01 | D16: 2005-03-01 | E16: 2005-04-01 | F16: 2005-05-01 | G16: 2005-06-01 | H16: 2005-07-01 | I16: 2005-08-01 | J16: 2005-09-01 | K16: 2005-10-01 | L16: 2005-11-01 | M16: 2005-12-01
A17: HP | B17: 192471.4678 | C17: 193628.706 | D17: 193528.1617 | E17: 193580.749 | F17: 193053.6121 | G17: 193617.1968 | H17: 193667.845 | I17: 193996.6086 | J17: 194588.3641 | K17: 195758.619 | L17: 196584.5664 | M17: 202504.3493
A18: Index | B18: 194.6273523 | C18: 195.7195186 | D18: 195.6551615 | E18: 195.7536815 | F18: 195.1941451 | G18: 195.7926608 | H18: 195.8667879 | I18: 196.1748084 | J18: 196.7364411 | K18: 197.9376874 | L18: 198.8839387 | M18: 200.6449221
A19: Monthly% | B19: 0.3803709559 | C19: =+C17/B17*100-100 -> 0.6012518384 | D19: =+D17/C17*100-100 -> -0.05192634566 | E19: =+E17/D17*100-100 -> 0.02717290779 | F19: =+F17/E17*100-100 -> -0.2723085103 | G19: =+G17/F17*100-100 -> 0.2919317028 | H19: =+H17/G17*100-100 -> 0.02615890763 | I19: =+I17/H17*100-100 -> 0.1697564381 | J19: =+J17/I17*100-100 -> 0.3050339234 | K19: =+K17/J17*100-100 -> 0.6014002743 | L19: =+L17/K17*100-100 -> 0.4219213493 | M19: =+M17/L17*100-100 -> 3.011316206
A20: Annual% | B20: 12.49070913 | C20: 11.58731301 | D20: 10.04409992 | E20: 8.800930562 | F20: 7.103438618 | G20: 6.177252609 | H20: 4.965903217 | I20: 3.997051755 | J20: 3.401281719 | K20: 3.093783045 | L20: 3.07054326 | M20: 5.736043126
B22: 2006-01-01 | C22: 2006-02-01 | D22: 2006-03-01 | E22: 2006-04-01 | F22: 2006-05-01 | G22: 2006-06-01 | H22: 2006-07-01 | I22: 2006-08-01 | J22: 2006-09-01 | K22: 2006-10-01 | L22: 2006-11-01 | M22: 2006-12-01
A23: HP | B23: 207959.5115 | C23: 214054.5704 | D23: 215082.7533 | E23: 216721.8273 | F23: 217761.6539 | G23: 219023.3629 | H23: 219425.351 | I23: 220920.7066 | J23: 222631.9807 | K23: 224118.4216 | L23: 224493.7542 | M23: 221949.5968
A24: Index | B24: 201.6606224 | C24: 203.3743721 | D24: 204.5109404 | E24: 205.8608886 | F24: 206.8261824 | G24: 207.510648 | H24: 208.3876235 | I24: 209.5672334 | J24: 211.3531339 | K24: 213.4431741 | L24: 215.1395739 | M24: 217.4753687
A25: Monthly% | B25: =+B23/M17*100-100 -> 2.693849377 | C25: =+C23/B23*100-100 -> 2.930887313 | D25: =+D23/C23*100-100 -> 0.4803367951 | E25: =+E23/D23*100-100 -> 0.7620667155 | F25: =+F23/E23*100-100 -> 0.4797977833 | G25: =+G23/F23*100-100 -> 0.579399099 | H25: =+H23/G23*100-100 -> 0.183536633 | I25: =+I23/H23*100-100 -> 0.6814871274 | J25: =+J23/I23*100-100 -> 0.7746101339 | K25: =+K23/J23*100-100 -> 0.6676672539 | L25: =+L23/K23*100-100 -> 0.1674706693 | M25: =+M23/L23*100-100 -> -1.133286483
A26: Annual% | B26: =+B23/B17*100-100 -> 8.04692968 | C26: =+C23/C17*100-100 -> 10.54898562 | D26: =+D23/D17*100-100 -> 11.13770283 | E26: 11.95422505 | F26: 12.79853896 | G26: 13.12185413 | H26: 13.29983617 | I26: 13.87864364 | J26: 14.41176446 | K26: 14.48712844 | L26: 14.19703911 | M26: 9.602385118
B28: 2007-01-01 | C28: 2007-02-01 | D28: 2007-03-01 | E28: 2007-04-01 | F28: 2007-05-01 | G28: 2007-06-01 | H28: 2007-07-01 | I28: 2007-08-01 | J28: 2007-09-01 | K28: 2007-10-01 | L28: 2007-11-01 | M28: 2007-12-01
A29: HP | B29: 220005.2758 | C29: 218977.0217 | D29: 220366.4542 | E29: 222143.6666 | F29: 223263.6933 | G29: 225044.4727 | H29: 225832.5811 | I29: 227701.2562 | J29: 229400.8068 | K29: 230754.0119 | L29: 230462.578 | M29: 230679.9674
A30: Index | B30: 219.4963176 | C30: 222.2308868 | D30: 223.6998581 | E30: 225.5798747 | F30: 226.8685956 | G30: 228.8121942 | H30: 229.7011053 | I30: 231.6302491 | J30: 233.3844212 | K30: 234.663941 | L30: 234.3124214 | M30: 234.5554226
A31: Monthly% | B31: =+B29/M23*100-100 -> -0.8760191935 | C31: =+C29/B29*100-100 -> -0.4673770132 | D31: =+D29/C29*100-100 -> 0.6345106493 | E31: =+E29/D29*100-100 -> 0.8064804686 | F31: 0.5041902588 | G31: 0.7976125911 | H31: 0.3502011926 | I31: 0.8274603586 | J31: 0.7463949277 | K31: 0.5898868223 | L31: -0.12629637 | M31: 0.09432743525
A32: Annual% | B32: =+B29/B23*100-100 -> 5.792360347 | C32: =+C29/C23*100-100 -> 2.299624459 | D32: =+D29/D23*100-100 -> 2.456589771 | E32: 2.501750433 | F32: 2.526633758 | G32: 2.749071901 | H32: 2.920004466 | I32: 3.069223215 | J32: 3.040365556 | K32: 2.960751869 | L32: 2.658792809 | M32: 3.933492436
B34: 2008-01-01 | C34: 2008-02-01 | D34: 2008-03-01 | E34: 2008-04-01 | F34: 2008-05-01 | G34: 2008-06-01 | H34: 2008-07-01 | I34: 2008-08-01 | J34: 2008-09-01 | K34: 2008-10-01 | L34: 2008-11-01 | M34: 2008-12-01
A35: HP | B35: 231067.4468 | C35: 231970.1688 | D35: 231372.5814 | E35: 230835.719 | F35: 229270.0095 | G35: 227469.065 | H35: 224271.2648 | I35: 221400.037 | J35: 217665.9707 | K35: 213558.3465 | L35: 208867.2398 | M35: 205580.3594
A36: Index | B36: 235.0860769 | C36: 236.0262065 | D36: 235.3635725 | E36: 234.9646059 | F36: 233.5998212 | G36: 231.7023164 | H36: 228.2902382 | I36: 225.1524361 | J36: 221.4854194 | K36: 217.4847387 | L36: 212.7583728 | M36: 209.3227504
A37: Monthly% | B37: =+B35/M29*100-100 -> 0.1679726863 | C37: =+C35/B35*100-100 -> 0.39067467 | D37: =+D35/C35*100-100 -> -0.2576139002 | E37: =+E35/D35*100-100 -> -0.2320337074 | F37: -0.6782786676 | G37: -0.7855124928 | H37: -1.405817619 | I37: -1.280247745 | J37: -1.686569832 | K37: -1.887122831 | L37: -2.196639366 | M37: -1.573669662
A38: Annual% | B38: =+B35/B29*100-100 -> 5.028138971 | C38: =+C35/C29*100-100 -> 5.933566446 | D38: =+D35/D29*100-100 -> 4.994465787 | E38: 3.912806745 | F38: 2.690234186 | G38: 1.077383629 | H38: -0.6913600799 | I38: -2.767318597 | J38: -5.115429291 | K38: -7.45194646 | L38: -9.370431582 | M38: -10.88070555
B40: 2009-01-01 | C40: 2009-02-01 | D40: 2009-03-01 | E40: 2009-04-01 | F40: 2009-05-01 | G40: 2009-06-01 | H40: 2009-07-01 | I40: 2009-08-01 | J40: 2009-09-01 | K40: 2009-10-01 | L40: 2009-11-01 | M40: 2009-12-01
A41: HP | B41: 204091.9976 | C41: 202738.0313 | D41: 201091.4946 | E41: 200252.2842 | F41: 200747.0697 | G41: 202248.1754 | H41: 203955.4216 | I41: 206323.1617 | J41: 209010.6597 | K41: 211490.1078 | L41: 211918.5268 | M41: 216280.8355
A42: Index | B42: 207.6515445 | C42: 206.212217 | D42: 204.5761324 | E42: 203.859941 | F42: 204.5718708 | G42: 206.246616 | H42: 207.9057217 | I42: 210.2088433 | J42: 213.0717725 | K42: 215.5477441 | L42: 216.1690895 | M42: 220.4351526
A43: Monthly% | B43: =+B41/M35*100-100 -> -0.72398054 | C43: =+C41/B41*100-100 -> -0.6634098141 | D43: =+D41/C41*100-100 -> -0.8121498915 | E43: =+E41/D41*100-100 -> -0.4173276465 | F43: 0.2470810852 | G43: 0.7477597356 | H43: 0.8441342701 | I43: 1.160910591 | J43: 1.302567263 | K43: 1.186278316 | L43: 0.202571674 | M43: 2.058483838
A44: Annual% | B44: =+B41/B35*100-100 -> -11.67427499 | C44: =+C41/C35*100-100 -> -12.60167962 | D44: =+D41/D35*100-100 -> -13.08758653 | E44: -13.2490045 | F44: -12.44076358 | G44: -11.08761296 | H44: -9.058602845 | I44: -6.809788959 | J44: -3.97641903 | K44: -0.9684654113 | L44: 1.460873924 | M44: 5.205008924
B46: 2010-01-01 | C46: 2010-02-01 | D46: 2010-03-01 | E46: 2010-04-01 | F46: 2010-05-01 | G46: 2010-06-01 | H46: 2010-07-01 | I46: 2010-08-01 | J46: 2010-09-01 | K46: 2010-10-01 | L46: 2010-11-01 | M46: 2010-12-01
A47: HP | B47: 219556.6117 | C47: 223316.7381 | D47: 221919.0409 | E47: 221188.1381 | F47: 221378.2741 | G47: 222173.6692 | H47: 222900.3104 | I47: 223656.3582 | J47: 223514.2708 | K47: 222622.4218 | L47: 220968.7242 | M47: 221056.1069
A48: Index | B48: 223.8820655 | C48: 227.5437122 | D48: 226.2066132 | E48: 225.3705733 | F48: 225.6158466 | G48: 226.4959378 | H48: 227.2420623 | I48: 228.0314574 | J48: 227.9339884 | K48: 227.0859979 | L48: 225.5648775 | M48: 225.5958923
A49: Monthly% | B49: =+B47/M41*100-100 -> 1.514593873 | C49: =+C47/B47*100-100 -> 1.712599933 | D49: =+D47/C47*100-100 -> -0.6258810898 | E49: =+E47/D47*100-100 -> -0.3293556239 | F49: 0.0859612198 | G49: 0.3592923218 | H49: 0.3270599968 | I49: 0.3391864901 | J49: -0.06352930426 | K49: -0.3990120955 | L49: -0.7428261679 | M49: 0.03954524517
A50: Annual% | B50: =+B47/B41*100-100 -> 7.577276087 | C50: =+C47/C41*100-100 -> 10.15039296 | D50: =+D47/D41*100-100 -> 10.35724876 | E50: 10.45473912 | F50: 10.27721322 | G50: 9.852001745 | H50: 9.288739991 | I50: 8.400994012 | J50: 6.939172956 | K50: 5.263751661 | L50: 4.270602263 | M50: 2.207903161
B52: 2011-01-01 | C52: 2011-02-01 | D52: 2011-03-01 | E52: 2011-04-01 | F52: 2011-05-01 | G52: 2011-06-01 | H52: 2011-07-01 | I52: 2011-08-01 | J52: 2011-09-01 | K52: 2011-10-01 | L52: 2011-11-01 | M52: 2011-12-01
A53: HP | B53: 221524.1939 | C53: 223236.1306 | D53: 223499.3714 | E53: 221266.4085 | F53: 218384.5233 | G53: 216737.8023 | H53: 217942.142 | I53: 219537.4736 | J53: 219501.557 | K53: 219753.3367 | L53: 218338.2675 | M53: 218402.7074
A54: Index | B54: 226.2144869 | C54: 228.0390153 | D54: 228.5029086 | E54: 226.1624434 | F54: 223.1024502 | G54: 221.4193565 | H54: 222.7809651 | I54: 224.5134764 | J54: 224.4719429 | K54: 224.8405596 | L54: 223.5791883 | M54: 223.8222335
A55: Monthly% | B55: =+B53/M47*100-100 -> 0.2117503142 | C55: =+C53/B53*100-100 -> 0.7727989989 | D55: =+D53/C53*100-100 -> 0.117920312 | E55: =+E53/D53*100-100 -> -0.9990913223 | F55: -1.302450428 | G55: -0.7540465572 | H55: 0.5556666731 | I55: 0.731997769 | J55: -0.01636012984 | K55: 0.1147051763 | L55: -0.6439352167 | M55: 0.0295137612
A56: Annual% | B56: =+B53/B47*100-100 -> 0.8961616355 | C56: =+C53/C47*100-100 -> -0.03609559753 | D56: =+D53/D47*100-100 -> 0.7121202664 | E56: 0.03538638317 | F56: -1.352323681 | G56: -2.446674696 | H56: -2.224388291 | I56: -1.841612982 | J56: -1.795283048 | K56: -1.288767397 | L56: -1.190420373 | M56: -1.200328522
B58: 2012-01-01 | C58: 2012-02-01 | D58: 2012-03-01 | E58: 2012-04-01 | F58: 2012-05-01 | G58: 2012-06-01 | H58: 2012-07-01 | I58: 2012-08-01 | J58: 2012-09-01 | K58: 2012-10-01 | L58: 2012-11-01 | M58: 2012-12-01
A59: HP | B59: 219080.3714 | C59: 219882.6732 | D59: 221844.0721 | E59: 222701.6675 | F59: 224917.1166 | G59: 224850.9059 | H59: 224671.7056 | I59: 224181.6561 | J59: 224359.6572 | K59: 224714.8725 | L59: 224665.3303 | M59: 225374.4669
A60: Index | B60: 224.583729 | C60: 225.4728947 | D60: 227.4658434 | E60: 228.5751607 | F60: 231.1096648 | G60: 231.2511358 | H60: 231.2817902 | I60: 230.6121911 | J60: 231.1264234 | K60: 231.5027243 | L60: 231.7470449 | M60: 232.3455764
A61: Monthly% | B61: =+B59/M53*100-100 -> 0.3102818862 | C61: =+C59/B59*100-100 -> 0.3662134388 | D61: =+D59/C59*100-100 -> 0.8920206766 | E61: =+E59/D59*100-100 -> 0.3865757552 | F61: 0.9948058008 | G61: -0.02943780572 | H61: -0.07969741534 | I61: -0.2181180006 | J61: 0.0794003918 | K61: 0.1583240503 | L61: -0.0220467191 | M61: =+M59/L59*100-100 -> 0.3156413438
A62: Annual% | B62: =+B59/B53*100-100 -> -1.103185353 | C62: =+C59/C53*100-100 -> -1.502201925 | D62: =+D59/D53*100-100 -> -0.740628161 | E62: 0.6486564984 | F62: 2.99132614 | G62: 3.743280388 | H62: 3.087775263 | I62: 2.11543953 | J62: 2.213241808 | K62: 2.257774992 | L62: 2.897825845 | M62: =+M59/M53*100-100 -> 3.192158038
B64: 2013-01-01 | C64: 2013-02-01 | D64: 2013-03-01 | E64: 2013-04-01 | F64: 2013-05-01 | G64: 2013-06-01 | H64: 2013-07-01 | I64: 2013-08-01 | J64: 2013-09-01 | K64: 2013-10-01 | L64: 2013-11-01 | M64: 2013-12-01
A65: HP | B65: 226074.7247 | C65: 228047.2197 | D65: 228934.1185 | E65: 229541.612 | F65: 229395.1142 | G65: 229702.2918 | H65: 230662.1172 | I65: 232162.2848 | J65: 233590.0201 | K65: 235038.5957 | L65: 235974.9087 | M65: 238241.9687
A66: Index | B66: 233.2596034 | C66: 235.1989609 | D66: 236.286859 | E66: 236.8967075 | F66: 236.8215354 | G66: 237.0157063 | H66: 237.8880934 | I66: 239.4931005 | J66: 240.7860848 | K66: 242.1151601 | L66: 242.8982552 | M66: 244.0571436
A67: Monthly% | B67: =+B65/M59*100-100 -> 0.3107085543 | C67: =+C65/B65*100-100 -> 0.8724969117 | D67: =+D65/C65*100-100 -> 0.3889101683 | E67: =+E65/D65*100-100 -> 0.2653573489 | F67: -0.06382188918 | G67: 0.1339076244 | H67: 0.4178562513 | I67: 0.6503745105 | J67: 0.6149729892 | K67: 0.6201359258 | L67: 0.3983656352 | M67: 0.9607207883
A68: Annual% | B68: =+B65/B59*100-100 -> 3.192596964 | C68: =+C65/C59*100-100 -> 3.713137738 | D68: =+D65/D59*100-100 -> 3.195959381 | E68: 3.071348599 | F68: 1.990954584 | G68: 2.157601205 | H68: 2.666295512 | I68: 3.559893698 | J68: 4.114092075 | K68: 4.59414328 | L68: 5.033966947 | M68: 5.709387571
B70: 2014-01-01 | C70: 2014-02-01 | D70: 2014-03-01 | E70: 2014-04-01 | F70: 2014-05-01 | G70: 2014-06-01 | H70: 2014-07-01 | I70: 2014-08-01 | J70: 2014-09-01 | K70: 2014-10-01 | L70: 2014-11-01 | M70: 2014-12-01
A71: HP | B71: 241498.36 | C71: 243815.0152 | D71: 246233.7878 | E71: 247480.7079 | F71: 250042.8519 | G71: 252060.918 | H71: 253880.8793 | I71: 255821.4119 | J71: 257152.7325 | K71: 258003.9557 | L71: 257915.4196 | M71: 258418.3516
A72: Index | B72: 247.8155064 | C72: 250.1686227 | D72: 252.7688035 | E72: 254.3262087 | F72: 257.2464787 | G72: 260.069332 | H72: 261.52957 | I72: 263.4723034 | J72: 264.9046899 | K72: 266.0700496 | L72: 266.3469179 | M72: 265.6588618
A73: Monthly% | B73: =B71/M65*100-100 -> 1.366842005 | C73: =+C71/B71*100-100 -> 0.9592840131 | D73: 0.9920523704 | E73: 0.5063968301 | F73: 1.035290361 | G73: 0.8070881059 | H73: 0.7220323483 | I73: 0.7643476589 | J73: 0.5204101688 | K73: 0.3310185151 | L73: -0.03431580151 | M73: 0.1949988045
A74: Annual% | B74: =B71/B65*100-100 -> 6.822361667 | C74: 6.91426782 | D74: 7.556614737 | E74: 7.815182514 | F74: 9.000949171 | G74: 9.733741022 | H74: =H71/H65*100-100 -> 10.0661359 | I74: 10.19077114 | J74: 10.08720852 | K74: 9.77088885 | L74: 9.297815154 | M74: 8.468861684
B76: 2015-01-01 | C76: 2015-02-01 | D76: 2015-03-01 | E76: 2015-04-01 | F76: 2015-05-01 | G76: 2015-06-01 | H76: 2015-07-01 | I76: 2015-08-01 | J76: 2015-09-01 | K76: 2015-10-01 | L76: 2015-11-01 | M76: 2015-12-01
A77: HP | B77: 259740.6111 | C77: 260872.843 | D77: 261496.4933 | E77: 262057.1422 | F77: 263301.6703 | G77: 264671.4686 | H77: 266009.5409 | I77: 268537.6133 | J77: 270505.6214 | K77: 273223.2571 | L77: 273574.2443 | M77: 275732.9621
A78: Index | B78: 266.9283519 | C78: 267.8797863 | D78: 268.3067829 | E78: 269.154968 | F78: 270.3396122 | G78: 272.1630768 | H78: 273.2768059 | I78: 276.2881506 | J78: 278.1160951 | K78: 280.4862979 | L78: 280.2939328 | M78: 281.1992468
A79: Monthly% | B79: =B77/M71*100-100 -> 0.5116739972 | C79: =+C77/B77*100-100 -> 0.4359087034 | D79: 0.2390629577 | E79: 0.2144001443 | F79: 0.474907144 | G79: 0.5202391322 | H79: 0.5055597189 | I79: 0.9503690495 | J79: 0.732861265 | K79: 1.004650356 | L79: 0.1284616645 | M79: 0.789079354
A80: Annual% | B80: =B77/B71*100-100 -> 7.553778423 | C80: 6.996217099 | D80: 6.19846107 | E80: 5.889927487 | F80: 5.302618459 | G80: 5.002977347 | H80: =H77/H71*100-100 -> 4.777304075 | I80: 4.970733797 | J80: 5.192590706 | K80: 5.898863597 | L80: 6.071302257 | M80: 6.700224841
B82: 2016-01-01 | C82: 2016-02-01 | D82: 2016-03-01 | E82: 2016-04-01 | F82: 2016-05-01 | G82: 2016-06-01 | H82: 2016-07-01 | I82: 2016-08-01 | J82: 2016-09-01 | K82: 2016-10-01 | L82: 2016-11-01 | M82: 2016-12-01
A83: HP | B83: 277926.4623 | C83: 283777.2465 | D83: 283975.3435 | E83: 283808.2374 | F83: 281810.5642 | G83: 282862.8203 | H83: 283341.4501 | I83: 284214.8067 | J83: 285839.2151 | K83: 288579.6104 | L83: 290286.3773 | M83: 292637.8757
A84: Index | B84: 283.6070224 | C84: 289.6191685 | D84: 290.0568499 | E84: 289.886402 | F84: 287.6805537 | G84: 288.4834382 | H84: 288.660636 | I84: 289.259014 | J84: 289.7113087 | K84: 290.7009058 | L84: 290.463393 | M84: 291.3745783
A85: Monthly% | B85: =B83/M77*100-100 -> 0.7955161324 | C85: =+C83/B83*100-100 -> 2.105155474 | D85: 0.06980722593 | E85: -0.05884528565 | F85: -0.7038813182 | G85: 0.3733912644 | H85: 0.1692091595 | I85: 0.3082346801 | J85: 0.5715424988 | K85: 0.9587191502 | L85: 0.5914371329 | M85: 0.810061558
A86: Annual% | B86: =B83/B77*100-100 -> 7.00154327 | C86: 8.779911015 | D86: 8.596233885 | E86: 8.300134476 | F86: 7.029539135 | G86: 6.87318197 | H86: =H83/H77*100-100 -> 6.515521611 | I86: 5.837987909 | J86: 5.668493531 | K86: 5.620441473 | L86: 6.108810839 | M86: 6.130900502
B88: 2017-01-01 | C88: 2017-02-01 | D88: 2017-03-01 | E88: 2017-04-01 | F88: 2017-05-01 | G88: 2017-06-01 | H88: 2017-07-01 | I88: 2017-08-01 | J88: 2017-09-01 | K88: 2017-10-01 | L88: 2017-11-01 | M88: 2017-12-01
A89: HP | B89: 294887.0419 | C89: 296633.6186 | D89: 298123.1617 | E89: 297894.4965 | F89: 297770.8114 | G89: 296545.474 | H89: 296517.825 | I89: 296955.5347 | J89: 298786.3575 | K89: 300095.5754 | L89: 301168.091 | M89: 302021.6482
A90: Index | B90: 293.717394 | C90: 295.4561045 | D90: 297.0779214 | E90: 296.9120858 | F90: 296.5527202 | G90: 295.0778387 | H90: 294.6765186 | I90: 294.6694209 | J90: 295.3046342 | K90: 294.3450265 | L90: 293.1622923 | M90: 292.0688766
A91: Monthly% | B91: =B89/M83*100-100 -> 0.7685834087 | C91: =+C89/B89*100-100 -> 0.5922867179 | D91: 0.502149097 | E91: -0.07670157451 | F91: -0.04151975689 | G91: -0.4115035591 | H91: -0.009323683655 | I91: 0.1476166619 | J91: 0.616530968 | K91: 0.4381785896 | L91: 0.3573913569 | M91: 0.2834155251
A92: Annual% | B92: =B89/B83*100-100 -> 6.102542155 | C92: 4.530445034 | D92: =D89/D83*100-100 -> 4.982058657 | E92: 4.963301719 | F92: =F89/F83*100-100 -> 5.663466613 | G92: 4.837204723 | H92: =H89/H83*100-100 -> 4.650352053 | I92: 4.482781243 | J92: =J89/J83*100-100 -> 4.529519319 | K92: 3.990567804 | L92: =L89/L83*100-100 -> 3.748613282 | M92: 3.206615839
B94: 2018-01-01 | C94: 2018-02-01 | D94: 2018-03-01 | E94: 2018-04-01 | F94: 2018-05-01 | G94: 2018-06-01 | H94: 2018-07-01 | I94: 2018-08-01 | J94: 2018-09-01 | K94: 2018-10-01 | L94: 2018-11-01 | M94: 2018-12-01
A95: HP | B95: 303510.6903 | C95: 304643.6076 | D95: 303997.9569 | E95: 303281.2078 | F95: 302422.9164 | G95: 302786.4076 | H95: 301685.0598 | I95: 302485.6698 | J95: 303303.3739 | K95: 305344.5008 | L95: 304407.3405 | M95: 304940.2538
A96: Index | B96: 294.4487863 | C96: 295.8459106 | D96: 294.9197765 | E96: 292.9244642 | F96: 291.4716024 | G96: 291.0018409 | H96: 290.2357334 | I96: 290.7584248 | J96: 291.0582891 | K96: 292.8236948 | L96: 292.6495486 | M96: 292.3665621
A97: Monthly% | B97: =B95/M89*100-100 -> 0.4930249749 | C97: =+C95/B95*100-100 -> 0.3732709604 | D97: -0.2119363977 | E97: -0.2357743085 | F97: -0.2830018451 | G97: 0.1201930172 | H97: -0.3637375417 | I97: 0.2653794021 | J97: 0.2703282154 | K97: 0.6729654324 | L97: -0.3069190013 | M97: 0.1750658679
A98: Annual% | B98: =B95/B89*100-100 -> 2.924390442 | C98: 2.700297084 | D98: =D95/D89*100-100 -> 1.97059336 | E98: 1.808261438 | F98: =F95/F89*100-100 -> 1.562310604 | G98: 2.104545247 | H98: =H95/H89*100-100 -> 1.742638846 | I98: 1.86227716 | J98: =J95/J89*100-100 -> 1.511788026 | K98: 1.749084566 | L98: =L95/L89*100-100 -> 1.075561969 | M98: 0.9663564497
B100: 2019-01-01 | C100: 2019-02-01 | D100: 2019-03-01 | E100: 2019-04-01 | F100: 2019-05-01 | G100: 2019-06-01 | H100: 2019-07-01 | I100: 2019-08-01 | J100: 2019-09-01 | K100: 2019-10-01 | L100: 2019-11-01 | M100: 2019-12-01
A101: HP | B101: 305343.6573 | C101: 306698.9469 | D101: 305904.6515 | E101: 305197.2607 | F101: 305251.6092 | G101: 305026.5612 | H101: 304377.1656 | I101: 304133.0581 | J101: 305807.2601 | K101: 307908.7542 | L101: 308949.1186 | M101: 309878.0594
A102: Index | B102: 292.518554 | C102: 293.900022 | D102: 292.8707924 | E102: 291.8411483 | F102: 291.5125475 | G102: 290.9975946 | H102: 290.1483255 | I102: 289.9899267 | J102: 291.5733143 | K102: 293.5709702 | L102: 294.3482591 | M102: 294.5510737
A103: Monthly% | B103: =B101/M95*100-100 -> 0.1322893456 | C103: =+C101/B101*100-100 -> 0.4438571276 | D103: -0.2589820926 | E103: -0.2312455363 | F103: 0.01780766146 | G103: -0.07372539118 | H103: -0.2128980626 | I103: -0.08019903329 | J103: 0.5504833963 | K103: 0.6871956445 | L103: 0.3378807364 | M103: 0.3006776116
A104: Annual% | B104: =B101/B95*100-100 -> 0.6039217221 | C104: 0.6746700913 | D104: =D101/D95*100-100 -> 0.6272064004 | E104: 0.6317743474 | F104: =F101/F95*100-100 -> 0.9353433973 | G104: 0.7398461599 | H104: =H101/H95*100-100 -> 0.8923563559 | I104: 0.5446169581 | J104: =J101/J95*100-100 -> 0.8255385014 | K104: 0.8397902798 | L104: =L101/L95*100-100 -> 1.492006759 | M104: 1.619269845
B106: 2020-01-01 | C106: 2020-02-01 | D106: 2020-03-01 | E106: 2020-04-01 | F106: 2020-05-01 | G106: 2020-06-01 | H106: 2020-07-01 | I106: 2020-08-01 | J106: 2020-09-01 | K106: 2020-10-01 | L106: 2020-11-01 | M106: 2020-12-01
A107: HP | B107: 311285.3253 | C107: 313771.906 | D107: 313831.2276 | E107: 310997.0166 | F107: 308430.4583 | G107: 309027.8181 | H107: 313141.2307 | I107: 318288.3969 | J107: 322520.0307 | K107: 327510.6227 | L107: 329918.1752 | M107: 335169.5729
A108: Index | B108: 295.8663063 | C108: 298.2216619 | D108: 298.2087112 | E108: 295.2186592 | F108: 292.362347 | G108: 292.3681874 | H108: 295.542693 | I108: 300.0823799 | J108: 304.4265038 | K108: 309.884912 | L108: 313.4795293 | M108: 317.1374246
A109: Monthly% | B109: =B107/M101*100-100 -> 0.4541353691 | C109: =+C107/B107*100-100 -> 0.7988107835 | D109: =+D107/C107*100-100 -> 0.01890593614 | E109: =+E107/D107*100-100 -> -0.9031003628 | F109: =+F107/E107*100-100 -> -0.8252678127 | G109: 0.1936772912 | H109: 1.331081679 | I109: 1.64372035 | J109: 1.329496742 | K109: 1.547374252 | L109: 0.7351066923 | M109: 1.591727308
A110: Annual% | B110: =B107/B101*100-100 -> 1.945895333 | C110: 2.306156969 | D110: =D107/D101*100-100 -> 2.59119172 | E110: 1.900330261 | F110: 1.041386526 | G110: =G107/G101*100-100 -> 1.311773248 | H110: 2.87934383 | I110: =I107/I101*100-100 -> 4.654324296 | J110: 5.465132087 | K110: =K107/K101*100-100 -> 6.366128981 | L110: 6.787220067 | M110: =M107/M101*100-100 -> 8.161763204
B112: 2021-01-01 | C112: 2021-02-01 | D112: 2021-03-01 | E112: 2021-04-01 | F112: 2021-05-01 | G112: 2021-06-01 | H112: 2021-07-01 | I112: 2021-08-01 | J112: 2021-09-01 | K112: 2021-10-01 | L112: 2021-11-01 | M112: 2021-12-01
A113: HP | B113: 338222.4036 | C113: 344586.0184 | D113: 339723.5657 | E113: 335790.1139 | F113: 337886.7302 | G113: 334015.4716 | H113: 334869.0782 | I113: 330317.0304 | J113: 339917.7295 | K113: 346136.7154 | L113: 348153.202 | M113: 354713.8762
A114: Index | B114: 319.6950169 | C114: 325.4758843 | D114: 320.7570447 | E114: 316.7692268 | F114: 319.1812265 | G114: 315.7285087 | H114: 316.6799246 | I114: 312.4945788 | J114: 321.4949255 | K114: 328.3143374 | L114: 332.5290335 | M114: 338.2497376
A115: Monthly% | B115: =B113/M107*100-100 -> 0.9108317164 | C115: =+C113/B113*100-100 -> 1.881488235 | D115: -1.411099822 | E115: -1.157838942 | F115: 0.6243829531 | G115: -1.145726726 | H115: 0.2555589987 | I115: -1.359351476 | J115: 2.906510471 | K115: 1.829556195 | L115: 0.5825694178 | M115: 1.884421601
A116: Annual% | B116: =B113/B107*100-100 -> 8.653500871 | C116: 9.820545349 | D116: =D113/D107*100-100 -> 8.250402077 | E116: 7.972133496 | F116: =F113/F107*100-100 -> 9.550377092 | G116: 8.085891317 | H116: =H113/H107*100-100 -> 6.938673449 | I116: 3.779161812 | J116: =J113/J107*100-100 -> 5.394300228 | K116: 5.687172089 | L116: =L113/L107*100-100 -> 5.527136192 | M116: 5.831168728
B118: 2022-01-01 | C118: 2022-02-01 | D118: 2022-03-01 | E118: 2022-04-01 | F118: 2022-05-01 | G118: 2022-06-01 | H118: 2022-07-01 | I118: 2022-08-01 | J118: 2022-09-01 | K118: 2022-10-01 | L118: 2022-11-01 | M118: 2022-12-01
A119: HP | B119: 358756.4516 | C119: 364366.2275 | D119: 364612.5147 | E119: 365009.8696 | F119: 364433.4237 | G119: 365606.6235 | H119: 368439.653 | I119: 372622.9513 | J119: 375487.7266 | K119: 376583.579 | L119: 375144.4971 | M119: 374951.8866
A120: Index | B120: 341.9331594 | C120: 347.1287045 | D120: 347.5675189 | E120: 348.15253 | F120: 347.7662958 | G120: 349.0747751 | H120: 351.786472 | I120: 356.1440291 | J120: 358.9762263 | K120: 360.7636542 | L120: 360.1022502 | M120: 360.8780458
A121: Monthly% | B121: =B119/M113*100-100 -> 1.139672185 | C121: =+C119/B119*100-100 -> 1.563672499 | D121: 0.0675932992 | E121: 0.1089800595 | F121: -0.1579261135 | G121: 0.3219243063 | H121: 0.7748846238 | I121: 1.135409367 | J121: 0.76881342 | K121: 0.2918477433 | L121: -0.3821414546 | M121: -0.05134300033
A122: Annual% | B122: =B119/B113*100-100 -> 6.071167287 | C122: 5.740281994 | D122: =D119/D113*100-100 -> 7.32623566 | E122: 8.701791528 | F122: =F119/F113*100-100 -> 7.856684263 | G122: 9.457990598 | H122: =H119/H113*100-100 -> 10.02498499 | I122: 12.80767172 | J122: =J119/J113*100-100 -> 10.46429591 | K122: 8.796195926 | L122: =L119/L113*100-100 -> 7.752706247 | M122: 5.705446508
B124: 2023-01-01 | C124: 2023-02-01 | D124: 2023-03-01 | E124: 2023-04-01 | F124: 2023-05-01 | G124: 2023-06-01 | H124: 2023-07-01 | I124: 2023-08-01 | J124: 2023-09-01 | K124: 2023-10-01 | L124: 2023-11-01 | M124: 2023-12-01
A125: HP | B125: 374643.6636 | C125: 374007.2931 | D125: 371432.3682 | E125: 368204.6224 | F125: 366460.6212 | G125: 364738.9182 | H125: 364381.6704 | I125: 364881.7866 | J125: 365503.388 | K125: 365223.4705 | L125: 361441.6835 | M125: 360445.4506
A126: Index | B126: =M120*B125/M119 -> 360.5813919 | C126: =+B126/B125*C125 -> 359.9689077 | D126: 357.4906327 | E126: 354.3840406 | F126: 352.7055005 | G126: 351.0484217 | H126: 350.7045833 | I126: 351.1859275 | J126: 351.7841971 | K126: 351.5147864 | L126: 347.874949 | M126: 346.9161097
A127: Monthly% | B127: =B125/M119*100-100 -> -0.08220335956 | C127: =+C125/B125*100-100 -> -0.1698601905 | D127: -0.6884691929 | E127: -0.8689995763 | F127: -0.4736500058 | G127: -0.4698193791 | H127: -0.09794616884 | I127: 0.1372506342 | J127: 0.1703569299 | K127: -0.07658409221 | L127: -1.03547206 | M127: -0.2756275774
A128: Annual% | B128: =B125/B119*100-100 -> 4.42841152 | C128: 2.645982226 | D128: =D125/D119*100-100 -> 1.87043867 | E128: 0.8752510807 | F128: =F125/F119*100-100 -> 0.5562600415 | G128: -0.2373330287 | H128: =H125/H119*100-100 -> -1.101396808 | I128: -2.07747932 | J128: =J125/J119*100-100 -> -2.659031945 | K128: -3.016623438 | L128: =L125/L119*100-100 -> -3.65267614 | M128: -3.868879333
B130: 2024-01-01 | C130: 2024-02-01 | D130: 2024-03-01 | E130: 2024-04-01 | F130: 2024-05-01 | G130: 2024-06-01 | H130: 2024-07-01 | I130: 2024-08-01 | J130: 2024-09-01 | K130: 2024-10-01 | L130: 2024-11-01 | M130: 2024-12-01
A131: HP | B131: 360261.2947 | C131: 363248.86
A132: Index | B132: =M126*B131/M125 -> 346.7388661 | C132: =+B132/B131*C131 -> 349.614293
A133: Monthly% | B133: =B131/M125*100-100 -> -0.05109118177 | C133: =+C131/B131*100-100 -> 0.8292773406
A134: Annual% | B134: =B131/B125*100-100 -> -3.838946242 | C134: -2.876530302

Sheet SERIES CHARTS
B2: e.surv Acadata E&W HPI NATIONAL AND REGIONAL FORMATTED DATA FROM 2005
B3: A TRUE MEASURE OF HOUSE PRICE INFLATION | M3: =SERIES!$K$3 -> FEBRUARY 2024
B4: For data prior to 2005 please see | E4: APAT LGA
O5: © Acadata Limited
O6: e.surv Acadata E&W HPI clb/cms
O7: www.acadata.co.uk

Sheet DATA
B2: e.surv Acadata E&W HPI NATIONAL AND REGIONAL FORMATTED DATA FROM 2005
B3: A TRUE MEASURE OF HOUSE PRICE INFLATION
B4: For data prior to 2005 please see | E4: APAT LGA | H4: =SERIES!$K$3 -> FEBRUARY 2024
B5: In this e.surv Acadata Data Series, new weights have been adopted from April 2004 and prices on and after this date have been recalculated based on these new weights. The Index however remains based on the original weights and has not been re-cast. There is therefore discontinuity between the recalculated prices and the original Index.
H6: e.surv Acadata E&W HPI clb/cms
D9: Month | E9: Average House Price | F9: Index | G9: Monthly% | H9: Annual%
D10: 2005-01-01 | E10: 192471.4678 | F10: 194.6273523 | G10: 0.3803709559 | H10: 12.44538855
D11: 2005-02-01 | E11: 193628.706 | F11: 195.7195186 | G11: =E11/E10*100-100 -> 0.6012518384 | H11: 11.55641704
D12: 2005-03-01 | E12: 193528.1617 | F12: 195.6551615 | G12: =E12/E11*100-100 -> -0.05192634566 | H12: 9.997162171
D13: 2005-04-01 | E13: 193580.749 | F13: 195.7536815 | G13: 0.02717290779 | H13: 8.764096315
D14: 2005-05-01 | E14: 193053.6121 | F14: 195.1941451 | G14: -0.2723085103 | H14: 7.065475902
D15: 2005-06-01 | E15: 193617.1968 | F15: 195.7926608 | G15: 0.2919317028 | H15: 6.156439893
D16: 2005-07-01 | E16: 193667.845 | F16: 195.8667879 | G16: 0.02615890763 | H16: 4.942472139
D17: 2005-08-01 | E17: 193996.6086 | F17: 196.1748084 | G17: 0.1697564381 | H17: 3.966803602
D18: 2005-09-01 | E18: 194588.3641 | F18: 196.7364411 | G18: 0.3050339234 | H18: 3.369077265
D19: 2005-10-01 | E19: 195758.619 | F19: 197.9376874 | G19: 0.6014002743 | H19: 3.053046323
D20: 2005-11-01 | E20: 196584.5664 | F20: 198.8839387 | G20: 0.4219213493 | H20: 3.038257057
D21: 2005-12-01 | E21: 202504.3493 | F21: 200.6449221 | G21: 3.011316206 | H21: 3.352698978
D22: 2006-01-01 | E22: 207959.5115 | F22: 201.6606224 | G22: 2.693849377 | H22: =+E22/E10*100-100 -> 8.04692968
D23: 2006-02-01 | E23: 214054.5704 | F23: 203.3743721 | G23: 2.930887313 | H23: =+E23/E11*100-100 -> 10.54898562
D24: 2006-03-01 | E24: 215082.7533 | F24: 204.5109404 | G24: 0.4803367951 | H24: 11.13770283
D25: 2006-04-01 | E25: 216721.8273 | F25: 205.8608886 | G25: 0.7620667155 | H25: 11.95422505
D26: 2006-05-01 | E26: 217761.6539 | F26: 206.8261824 | G26: 0.4797977833 | H26: 12.79853896
D27: 2006-06-01 | E27: 219023.3629 | F27: 207.510648 | G27: 0.579399099 | H27: 13.12185413
D28: 2006-07-01 | E28: 219425.351 | F28: 208.3876235 | G28: 0.183536633 | H28: 13.29983617
D29: 2006-08-01 | E29: 220920.7066 | F29: 209.5672334 | G29: 0.6814871274 | H29: 13.87864364
D30: 2006-09-01 | E30: 222631.9807 | F30: 211.3531339 | G30: 0.7746101339 | H30: 14.41176446
D31: 2006-10-01 | E31: 224118.4216 | F31: 213.4431741 | G31: 0.6676672539 | H31: 14.48712844
D32: 2006-11-01 | E32: 224493.7542 | F32: 215.1395739 | G32: 0.1674706693 | H32: 14.19703911
D33: 2006-12-01 | E33: 221949.5968 | F33: 217.4753687 | G33: -1.133286483 | H33: 9.602385118
D34: 2007-01-01 | E34: 220005.2758 | F34: 219.4963176 | G34: -0.8760191935 | H34: 5.792360347
D35: 2007-02-01 | E35: 218977.0217 | F35: 222.2308868 | G35: -0.4673770132 | H35: 2.299624459
D36: 2007-03-01 | E36: 220366.4542 | F36: 223.6998581 | G36: 0.6345106493 | H36: 2.456589771
D37: 2007-04-01 | E37: 222143.6666 | F37: 225.5798747 | G37: 0.8064804686 | H37: 2.501750433
D38: 2007-05-01 | E38: 223263.6933 | F38: 226.8685956 | G38: 0.5041902588 | H38: 2.526633758
D39: 2007-06-01 | E39: 225044.4727 | F39: 228.8121942 | G39: 0.7976125911 | H39: 2.749071901
D40: 2007-07-01 | E40: 225832.5811 | F40: 229.7011053 | G40: 0.3502011926 | H40: 2.920004466
D41: 2007-08-01 | E41: 227701.2562 | F41: 231.6302491 | G41: 0.8274603586 | H41: 3.069223215
D42: 2007-09-01 | E42: 229400.8068 | F42: 233.3844212 | G42: 0.7463949277 | H42: 3.040365556
D43: 2007-10-01 | E43: 230754.0119 | F43: 234.663941 | G43: 0.5898868223 | H43: 2.960751869
D44: 2007-11-01 | E44: 230462.578 | F44: 234.3124214 | G44: -0.12629637 | H44: 2.658792809
D45: 2007-12-01 | E45: 230679.9674 | F45: 234.5554226 | G45: 0.09432743525 | H45: 3.933492436
D46: 2008-01-01 | E46: 231067.4468 | F46: 235.0860769 | G46: 0.1679726863 | H46: 5.028138971
D47: 2008-02-01 | E47: 231970.1688 | F47: 236.0262065 | G47: 0.39067467 | H47: 5.933566446
D48: 2008-03-01 | E48: 231372.5814 | F48: 235.3635725 | G48: -0.2576139002 | H48: 4.994465787
D49: 2008-04-01 | E49: 230835.719 | F49: 234.9646059 | G49: -0.2320337074 | H49: 3.912806745
D50: 2008-05-01 | E50: 229270.0095 | F50: 233.5998212 | G50: -0.6782786676 | H50: 2.690234186
D51: 2008-06-01 | E51: 227469.065 | F51: 231.7023164 | G51: -0.7855124928 | H51: 1.077383629
D52: 2008-07-01 | E52: 224271.2648 | F52: 228.2902382 | G52: -1.405817619 | H52: -0.6913600799
D53: 2008-08-01 | E53: 221400.037 | F53: 225.1524361 | G53: -1.280247745 | H53: -2.767318597
D54: 2008-09-01 | E54: 217665.9707 | F54: 221.4854194 | G54: -1.686569832 | H54: -5.115429291
D55: 2008-10-01 | E55: 213558.3465 | F55: 217.4847387 | G55: -1.887122831 | H55: -7.45194646
D56: 2008-11-01 | E56: 208867.2398 | F56: 212.7583728 | G56: -2.196639366 | H56: -9.370431582
D57: 2008-12-01 | E57: 205580.3594 | F57: 209.3227504 | G57: -1.573669662 | H57: -10.88070555
D58: 2009-01-01 | E58: 204091.9976 | F58: 207.6515445 | G58: -0.72398054 | H58: -11.67427499
D59: 2009-02-01 | E59: 202738.0313 | F59: 206.212217 | G59: -0.6634098141 | H59: -12.60167962
D60: 2009-03-01 | E60: 201091.4946 | F60: 204.5761324 | G60: -0.8121498915 | H60: -13.08758653
D61: 2009-04-01 | E61: 200252.2842 | F61: 203.859941 | G61: -0.4173276465 | H61: -13.2490045
D62: 2009-05-01 | E62: 200747.0697 | F62: 204.5718708 | G62: 0.2470810852 | H62: -12.44076358
D63: 2009-06-01 | E63: 202248.1754 | F63: 206.246616 | G63: 0.7477597356 | H63: -11.08761296
D64: 2009-07-01 | E64: 203955.4216 | F64: 207.9057217 | G64: 0.8441342701 | H64: -9.058602845
D65: 2009-08-01 | E65: 206323.1617 | F65: 210.2088433 | G65: 1.160910591 | H65: -6.809788959
D66: 2009-09-01 | E66: 209010.6597 | F66: 213.0717725 | G66: 1.302567263 | H66: -3.97641903
D67: 2009-10-01 | E67: 211490.1078 | F67: 215.5477441 | G67: 1.186278316 | H67: -0.9684654113
D68: 2009-11-01 | E68: 211918.5268 | F68: 216.1690895 | G68: 0.202571674 | H68: 1.460873924
D69: 2009-12-01 | E69: 216280.8355 | F69: 220.4351526 | G69: 2.058483838 | H69: 5.205008924
D70: 2010-01-01 | E70: 219556.6117 | F70: 223.8820655 | G70: 1.514593873 | H70: 7.577276087
D71: 2010-02-01 | E71: 223316.7381 | F71: 227.5437122 | G71: 1.712599933 | H71: 10.15039296
D72: 2010-03-01 | E72: 221919.0409 | F72: 226.2066132 | G72: -0.6258810898 | H72: 10.35724876
D73: 2010-04-01 | E73: 221188.1381 | F73: 225.3705733 | G73: -0.3293556239 | H73: 10.45473912
D74: 2010-05-01 | E74: 221378.2741 | F74: 225.6158466 | G74: 0.0859612198 | H74: 10.27721322
D75: 2010-06-01 | E75: 222173.6692 | F75: 226.4959378 | G75: 0.3592923218 | H75: 9.852001745
D76: 2010-07-01 | E76: 222900.3104 | F76: 227.2420623 | G76: =E76/E75*100-100 -> 0.3270599968 | H76: 9.288739991
D77: 2010-08-01 | E77: 223656.3582 | F77: 228.0314574 | G77: 0.3391864901 | H77: 8.400994012
D78: 2010-09-01 | E78: 223514.2708 | F78: 227.9339884 | G78: -0.06352930426 | H78: 6.939172956
D79: 2010-10-01 | E79: 222622.4218 | F79: 227.0859979 | G79: -0.3990120955 | H79: 5.263751661
D80: 2010-11-01 | E80: 220968.7242 | F80: 225.5648775 | G80: -0.7428261679 | H80: 4.270602263
D81: 2010-12-01 | E81: 221056.1069 | F81: 225.5958923 | G81: 0.03954524517 | H81: 2.207903161
D82: 2011-01-01 | E82: 221524.1939 | F82: 226.2144869 | G82: 0.2117503142 | H82: 0.8961616355
D83: 2011-02-01 | E83: 223236.1306 | F83: 228.0390153 | G83: 0.7727989989 | H83: -0.03609559753
D84: 2011-03-01 | E84: 223499.3714 | F84: 228.5029086 | G84: 0.117920312 | H84: 0.7121202664
D85: 2011-04-01 | E85: 221266.4085 | F85: 226.1624434 | G85: -0.9990913223 | H85: 0.03538638317
D86: 2011-05-01 | E86: 218384.5233 | F86: 223.1024502 | G86: -1.302450428 | H86: -1.352323681
D87: 2011-06-01 | E87: 216737.8023 | F87: 221.4193565 | G87: -0.7540465572 | H87: =+E87/E75*100-100 -> -2.446674696
D88: 2011-07-01 | E88: 217942.142 | F88: 222.7809651 | G88: 0.5556666731 | H88: -2.224388291
D89: 2011-08-01 | E89: 219537.4736 | F89: 224.5134764 | G89: 0.731997769 | H89: -1.841612982
D90: 2011-09-01 | E90: 219501.557 | F90: 224.4719429 | G90: -0.01636012984 | H90: -1.795283048
D91: 2011-10-01 | E91: 219753.3367 | F91: 224.8405596 | G91: 0.1147051763 | H91: -1.288767397
D92: 2011-11-01 | E92: 218338.2675 | F92: 223.5791883 | G92: -0.6439352167 | H92: -1.190420373
D93: 2011-12-01 | E93: 218402.7074 | F93: 223.8222335 | G93: 0.0295137612 | H93: -1.200328522
D94: 2012-01-01 | E94: 219080.3714 | F94: 224.583729 | G94: 0.3102818862 | H94: -1.103185353
D95: 2012-02-01 | E95: 219882.6732 | F95: 225.4728947 | G95: 0.3662134388 | H95: -1.502201925
D96: 2012-03-01 | E96: 221844.0721 | F96: 227.4658434 | G96: 0.8920206766 | H96: -0.740628161
D97: 2012-04-01 | E97: 222701.6675 | F97: 228.5751607 | G97: 0.3865757552 | H97: 0.6486564984
D98: 2012-05-01 | E98: 224917.1166 | F98: 231.1096648 | G98: 0.9948058008 | H98: 2.99132614
D99: 2012-06-01 | E99: 224850.9059 | F99: 231.2511358 | G99: -0.02943780572 | H99: 3.743280388
D100: 2012-07-01 | E100: 224671.7056 | F100: 231.2817902 | G100: -0.07969741534 | H100: 3.087775263
D101: 2012-08-01 | E101: 224181.6561 | F101: 230.6121911 | G101: -0.2181180006 | H101: 2.11543953
D102: 2012-09-01 | E102: 224359.6572 | F102: 231.1264234 | G102: 0.0794003918 | H102: 2.213241808
D103: 2012-10-01 | E103: 224714.8725 | F103: 231.5027243 | G103: 0.1583240503 | H103: 2.257774992
D104: 2012-11-01 | E104: 224665.3303 | F104: 231.7470449 | G104: -0.0220467191 | H104: 2.897825845
D105: 2012-12-01 | E105: 225374.4669 | F105: 232.3455764 | G105: 0.3156413438 | H105: 3.192158038
D106: 2013-01-01 | E106: 226074.7247 | F106: 233.2596034 | G106: 0.3107085543 | H106: 3.192596964
D107: 2013-02-01 | E107: 228047.2197 | F107: 235.1989609 | G107: 0.8724969117 | H107: 3.713137738
D108: 2013-03-01 | E108: 228934.1185 | F108: 236.286859 | G108: 0.3889101683 | H108: 3.195959381
D109: 2013-04-01 | E109: 229541.612 | F109: 236.8967075 | G109: 0.2653573489 | H109: 3.071348599
D110: 2013-05-01 | E110: 229395.1142 | F110: 236.8215354 | G110: -0.06382188918 | H110: 1.990954584
D111: 2013-06-01 | E111: 229702.2918 | F111: 237.0157063 | G111: 0.1339076244 | H111: 2.157601205
D112: 2013-07-01 | E112: 230662.1172 | F112: 237.8880934 | G112: 0.4178562513 | H112: 2.666295512
D113: 2013-08-01 | E113: 232162.2848 | F113: 239.4931005 | G113: 0.6503745105 | H113: 3.559893698
D114: 2013-09-01 | E114: 233590.0201 | F114: 240.7860848 | G114: 0.6149729892 | H114: 4.114092075
D115: 2013-10-01 | E115: 235038.5957 | F115: 242.1151601 | G115: 0.6201359258 | H115: 4.59414328
D116: 2013-11-01 | E116: 235974.9087 | F116: 242.8982552 | G116: 0.3983656352 | H116: 5.033966947
D117: 2013-12-01 | E117: 238241.9687 | F117: 244.0571436 | G117: 0.9607207883 | H117: 5.709387571
D118: 2014-01-01 | E118: 241498.36 | F118: 247.8155064 | G118: 1.366842005 | H118: 6.822361667
D119: 2014-02-01 | E119: 243815.0152 | F119: 250.1686227 | G119: 0.9592840131 | H119: 6.91426782
D120: 2014-03-01 | E120: 246233.7878 | F120: 252.7688035 | G120: 0.9920523704 | H120: 7.556614737
D121: 2014-04-01 | E121: 247480.7079 | F121: 254.3262087 | G121: 0.5063968301 | H121: 7.815182514
D122: 2014-05-01 | E122: 250042.8519 | F122: 257.2464787 | G122: 1.035290361 | H122: 9.000949171
D123: 2014-06-01 | E123: 252060.918 | F123: 260.069332 | G123: 0.8070881059 | H123: 9.733741022
D124: 2014-07-01 | E124: 253880.8793 | F124: 261.52957 | G124: 0.7220323483 | H124: 10.0661359
D125: 2014-08-01 | E125: 255821.4119 | F125: 263.4723034 | G125: 0.7643476589 | H125: 10.19077114
D126: 2014-09-01 | E126: 257152.7325 | F126: 264.9046899 | G126: 0.5204101688 | H126: 10.08720852
D127: 2014-10-01 | E127: 258003.9557 | F127: 266.0700496 | G127: 0.3310185151 | H127: 9.77088885
D128: 2014-11-01 | E128: 257915.4196 | F128: 266.3469179 | G128: -0.03431580151 | H128: 9.297815154
D129: 2014-12-01 | E129: 258418.3516 | F129: 265.6588618 | G129: 0.1949988045 | H129: 8.468861684
D130: 2015-01-01 | E130: 259740.6111 | F130: 266.9283519 | G130: 0.5116739972 | H130: 7.553778423
D131: 2015-02-01 | E131: 260872.843 | F131: 267.8797863 | G131: 0.4359087034 | H131: 6.996217099
D132: 2015-03-01 | E132: 261496.4933 | F132: 268.3067829 | G132: 0.2390629577 | H132: 6.19846107
D133: 2015-04-01 | E133: 262057.1422 | F133: 269.154968 | G133: 0.2144001443 | H133: 5.889927487
D134: 2015-05-01 | E134: 263301.6703 | F134: 270.3396122 | G134: 0.474907144 | H134: 5.302618459
D135: 2015-06-01 | E135: 264671.4686 | F135: 272.1630768 | G135: 0.5202391322 | H135: 5.002977347
D136: 2015-07-01 | E136: 266009.5409 | F136: 273.2768059 | G136: 0.5055597189 | H136: 4.777304075
D137: 2015-08-01 | E137: 268537.6133 | F137: 276.2881506 | G137: 0.9503690495 | H137: 4.970733797
D138: 2015-09-01 | E138: 270505.6214 | F138: 278.1160951 | G138: 0.732861265 | H138: 5.192590706
D139: 2015-10-01 | E139: 273223.2571 | F139: 280.4862979 | G139: 1.004650356 | H139: 5.898863597
D140: 2015-11-01 | E140: 273574.2443 | F140: 280.2939328 | G140: =E140/E139*100-100 -> 0.1284616645 | H140: 6.071302257
D141: 2015-12-01 | E141: 275732.9621 | F141: 281.1992468 | G141: 0.789079354 | H141: 6.700224841
D142: 2016-01-01 | E142: 277926.4623 | F142: 283.6070224 | G142: 0.7955161324 | H142: 7.00154327
D143: 2016-02-01 | E143: 283777.2465 | F143: 289.6191685 | G143: 2.105155474 | H143: 8.779911015
D144: 2016-03-01 | E144: 283975.3435 | F144: 290.0568499 | G144: 0.06980722593 | H144: 8.596233885
D145: 2016-04-01 | E145: 283808.2374 | F145: 289.886402 | G145: -0.05884528565 | H145: 8.300134476
D146: 2016-05-01 | E146: 281810.5642 | F146: 287.6805537 | G146: -0.7038813182 | H146: 7.029539135
D147: 2016-06-01 | E147: 282862.8203 | F147: 288.4834382 | G147: 0.3733912644 | H147: 6.87318197
D148: 2016-07-01 | E148: 283341.4501 | F148: 288.660636 | G148: 0.1692091595 | H148: 6.515521611
D149: 2016-08-01 | E149: 284214.8067 | F149: 289.259014 | G149: 0.3082346801 | H149: 5.837987909
D150: 2016-09-01 | E150: 285839.2151 | F150: 289.7113087 | G150: 0.5715424988 | H150: 5.668493531
D151: 2016-10-01 | E151: 288579.6104 | F151: 290.7009058 | G151: 0.9587191502 | H151: =+E151/E139*100-100 -> 5.620441473
D152: 2016-11-01 | E152: 290286.3773 | F152: 290.463393 | G152: 0.5914371329 | H152: 6.108810839
D153: 2016-12-01 | E153: 292637.8757 | F153: 291.3745783 | G153: 0.810061558 | H153: 6.130900502
D154: 2017-01-01 | E154: 294887.0419 | F154: 293.717394 | G154: 0.7685834087 | H154: 6.102542155
D155: 2017-02-01 | E155: 296633.6186 | F155: 295.4561045 | G155: 0.5922867179 | H155: 4.530445034
D156: 2017-03-01 | E156: 298123.1617 | F156: 297.0779214 | G156: 0.502149097 | H156: 4.982058657
D157: 2017-04-01 | E157: 297894.4965 | F157: 296.9120858 | G157: -0.07670157451 | H157: 4.963301719
D158: 2017-05-01 | E158: 297770.8114 | F158: 296.5527202 | G158: -0.04151975689 | H158: 5.663466613
D159: 2017-06-01 | E159: 296545.474 | F159: 295.0778387 | G159: -0.4115035591 | H159: 4.837204723
D160: 2017-07-01 | E160: 296517.825 | F160: 294.6765186 | G160: -0.009323683655 | H160: 4.650352053
D161: 2017-08-01 | E161: 296955.5347 | F161: 294.6694209 | G161: 0.1476166619 | H161: 4.482781243
D162: 2017-09-01 | E162: 298786.3575 | F162: 295.3046342 | G162: 0.616530968 | H162: 4.529519319
D163: 2017-10-01 | E163: 300095.5754 | F163: 294.3450265 | G163: 0.4381785896 | H163: 3.990567804
D164: 2017-11-01 | E164: 301168.091 | F164: 293.1622923 | G164: 0.3573913569 | H164: 3.748613282
D165: 2017-12-01 | E165: 302021.6482 | F165: 292.0688766 | G165: 0.2834155251 | H165: 3.206615839
D166: 2018-01-01 | E166: 303510.6903 | F166: 294.4487863 | G166: 0.4930249749 | H166: 2.924390442
D167: 2018-02-01 | E167: 304643.6076 | F167: 295.8459106 | G167: 0.3732709604 | H167: 2.700297084
D168: 2018-03-01 | E168: 303997.9569 | F168: 294.9197765 | G168: -0.2119363977 | H168: 1.97059336
D169: 2018-04-01 | E169: 303281.2078 | F169: 292.9244642 | G169: -0.2357743085 | H169: 1.808261438
D170: 2018-05-01 | E170: 302422.9164 | F170: 291.4716024 | G170: -0.2830018451 | H170: 1.562310604
D171: 2018-06-01 | E171: 302786.4076 | F171: 291.0018409 | G171: 0.1201930172 | H171: 2.104545247
D172: 2018-07-01 | E172: 301685.0598 | F172: 290.2357334 | G172: -0.3637375417 | H172: 1.742638846
D173: 2018-08-01 | E173: 302485.6698 | F173: 290.7584248 | G173: 0.2653794021 | H173: 1.86227716
D174: 2018-09-01 | E174: 303303.3739 | F174: 291.0582891 | G174: 0.2703282154 | H174: 1.511788026
D175: 2018-10-01 | E175: 305344.5008 | F175: 292.8236948 | G175: 0.6729654324 | H175: 1.749084566
D176: 2018-11-01 | E176: 304407.3405 | F176: 292.6495486 | G176: -0.3069190013 | H176: 1.075561969
D177: 2018-12-01 | E177: 304940.2538 | F177: 292.3665621 | G177: 0.1750658679 | H177: 0.9663564497
D178: 2019-01-01 | E178: 305343.6573 | F178: 292.518554 | G178: 0.1322893456 | H178: 0.6039217221
D179: 2019-02-01 | E179: 306698.9469 | F179: 293.900022 | G179: 0.4438571276 | H179: 0.6746700913
D180: 2019-03-01 | E180: 305904.6515 | F180: 292.8707924 | G180: -0.2589820926 | H180: 0.6272064004
D181: 2019-04-01 | E181: 305197.2607 | F181: 291.8411483 | G181: -0.2312455363 | H181: 0.6317743474
D182: 2019-05-01 | E182: 305251.6092 | F182: 291.5125475 | G182: 0.01780766146 | H182: 0.9353433973
D183: 2019-06-01 | E183: 305026.5612 | F183: 290.9975946 | G183: -0.07372539118 | H183: 0.7398461599
D184: 2019-07-01 | E184: 304377.1656 | F184: 290.1483255 | G184: -0.2128980626 | H184: 0.8923563559
D185: 2019-08-01 | E185: 304133.0581 | F185: 289.9899267 | G185: -0.08019903329 | H185: 0.5446169581
D186: 2019-09-01 | E186: 305807.2601 | F186: 291.5733143 | G186: 0.5504833963 | H186: 0.8255385014
D187: 2019-10-01 | E187: 307908.7542 | F187: 293.5709702 | G187: 0.6871956445 | H187: 0.8397902798
D188: 2019-11-01 | E188: 308949.1186 | F188: 294.3482591 | G188: 0.3378807364 | H188: 1.492006759
D189: 2019-12-01 | E189: 309878.0594 | F189: 294.5510737 | G189: 0.3006776116 | H189: 1.619269845
D190: 2020-01-01 | E190: 311285.3253 | F190: 295.8663063 | G190: 0.4541353691 | H190: 1.945895333
D191: 2020-02-01 | E191: 313771.906 | F191: 298.2216619 | G191: 0.7988107835 | H191: 2.306156969
D192: 2020-03-01 | E192: 313831.2276 | F192: 298.2087112 | G192: 0.01890593614 | H192: 2.59119172
D193: 2020-04-01 | E193: 310997.0166 | F193: 295.2186592 | G193: -0.9031003628 | H193: 1.900330261
D194: 2020-05-01 | E194: 308430.4583 | F194: 292.362347 | G194: -0.8252678127 | H194: 1.041386526
D195: 2020-06-01 | E195: 309027.8181 | F195: 292.3681874 | G195: 0.1936772912 | H195: 1.311773248
D196: 2020-07-01 | E196: 313141.2307 | F196: 295.542693 | G196: 1.331081679 | H196: 2.87934383
D197: 2020-08-01 | E197: 318288.3969 | F197: 300.0823799 | G197: 1.64372035 | H197: 4.654324296
D198: 2020-09-01 | E198: 322520.0307 | F198: 304.4265038 | G198: 1.329496742 | H198: 5.465132087
D199: 2020-10-01 | E199: 327510.6227 | F199: 309.884912 | G199: 1.547374252 | H199: 6.366128981
D200: 2020-11-01 | E200: 329918.1752 | F200: 313.4795293 | G200: 0.7351066923 | H200: 6.787220067
D201: 2020-12-01 | E201: 335169.5729 | F201: 317.1374246 | G201: 1.591727308 | H201: 8.161763204
D202: 2021-01-01 | E202: 338222.4036 | F202: 319.6950169 | G202: 0.9108317164 | H202: 8.653500871
D203: 2021-02-01 | E203: 344586.0184 | F203: 325.4758843 | G203: 1.881488235 | H203: 9.820545349
... 36 more rows

Sheet REGIONS
B2: e.surv Acadata E&W HPI NATIONAL AND REGIONAL FORMATTED DATA FROM 2005
B3: A TRUE MEASURE OF HOUSE PRICE INFLATION
B4: For data prior to 2005 please see | E4: APAT LGA | J4: =SERIES!$K$3 -> FEBRUARY 2024
J5: © Acadata Limited
B6: In these e.surv Acadata Data Series, new weights have been adopted from April 2004 and prices on and after this date have been recalculated based on these new weights. | J6: e.surv Acadata E&W HPI clb/cms
A10: Region | B10: North East | E10: North West | H10: Yorks & Humber | K10: East Midlands | N10: West Midlands | Q10: East of England | T10: Greater London | W10: South East | Z10: South West | AC10: Wales | AF10: ENGLAND & WALES
A11: Month | B11: Ave HP | C11: monthly % | D11: annual % | E11: Ave HP | F11: monthly % | G11: annual % | H11: Ave HP | I11: monthly % | J11: annual % | K11: Ave HP | L11: monthly % | M11: annual % | N11: Ave HP | O11: monthly % | P11: annual % | Q11: Ave HP | R11: monthly % | S11: annual % | T11: Ave HP | U11: monthly % | V11: annual % | W11: Ave HP | X11: monthly % | Y11: annual % | Z11: Ave HP | AA11: monthly % | AB11: annual % | AC11: Ave HP | AD11: monthly % | AE11: annual % | AF11: Ave HP | AG11: monthly % | AH11: annual %
A12: 2005-01-01 | B12: 134720.1698 | C12: 2.001006421 | D12: 17.52871587 | E12: 147631.4527 | F12: 0.671762203 | G12: 18.32731994 | H12: 146589.492 | I12: 1.217632137 | J12: 19.15528639 | K12: 161962.2564 | L12: 0.8780770281 | M12: 14.97835329 | N12: 167534.3783 | O12: -0.02399609093 | P12: 12.67610842 | Q12: 205620.7927 | R12: 0.4069501669 | S12: 11.43177288 | T12: 281735.942 | U12: 0.2491052952 | V12: 7.50634686 | W12: 239961.8483 | X12: 0.3803337885 | Y12: 9.215026813 | Z12: 204567.2917 | AA12: -0.4043382438 | AB12: 12.68649126 | AC12: 142421.6807 | AD12: 0.02653099218 | AE12: 20.02898721 | AF12: 192471.4678 | AG12: 0.3791125733 | AH12: 12.49070913
A13: 2005-02-01 | B13: 136308.2999 | C13: =B13/B12*100-100 -> 1.178836237 | D13: 17.88118297 | E13: 150236.4335 | F13: =E13/E12*100-100 -> 1.764516165 | G13: 18.613677 | H13: 147713.6855 | I13: =H13/H12*100-100 -> 0.7668991079 | J13: 17.72628063 | K13: 162215.1095 | L13: =K13/K12*100-100 -> 0.1561185423 | M13: 13.42447368 | N13: 169107.9774 | O13: =N13/N12*100-100 -> 0.9392694233 | P13: 12.32634331 | Q13: 207134.2667 | R13: =Q13/Q12*100-100 -> 0.7360510612 | S13: 10.39996564 | T13: 282479.7242 | U13: =T13/T12*100-100 -> 0.2639997635 | V13: 7.182966439 | W13: 240432.7077 | X13: =W13/W12*100-100 -> 0.1962225978 | Y13: 7.755017513 | Z13: 205421.3781 | AA13: 0.591030347 | AB13: 11.61132935 | AC13: 143428.3769 | AD13: =AC13/AC12*100-100 -> 0.7068419141 | AE13: 18.82600566 | AF13: 193628.706 | AG13: =AF13/AF12*100-100 -> 0.6012518384 | AH13: 11.58731301
A14: 2005-03-01 | B14: 137330.4829 | C14: 0.7499051778 | D14: 16.1570754 | E14: 150083.8734 | F14: -0.1015466772 | G14: 16.49658964 | H14: 147888.7342 | I14: 0.1185053973 | J14: 15.09492119 | K14: 160893.5558 | L14: -0.8146921108 | M14: 11.54229663 | N14: 168024.0698 | O14: -0.6409559478 | P14: 10.20100084 | Q14: 206748.5672 | R14: -0.1862074806 | S14: 9.117804096 | T14: 283729.9016 | U14: 0.4425724237 | V14: 6.063172577 | W14: 240946.7845 | X14: 0.2138131702 | Y14: 7.022842274 | Z14: 204762.3215 | AA14: -0.3364909269 | AB14: 9.642561964 | AC14: 142893.3619 | AD14: -0.3730189092 | AE14: 16.11954178 | AF14: 193528.1617 | AG14: -0.05192634566 | AH14: 10.04409992
A15: 2005-04-01 | B15: 136663.882 | C15: -0.4853990986 | D15: 12.46954704 | E15: 150312.4847 | F15: 0.1523223891 | G15: 14.64122265 | H15: 147538.4764 | I15: -0.2368387135 | J15: 12.27610732 | K15: 159660.7265 | L15: -0.7662390562 | M15: 9.654345638 | N15: 169297.6752 | O15: 0.7579898233 | P15: 10.06123745 | Q15: 207919.1827 | R15: 0.566202483 | S15: 8.681046873 | T15: 283115.017 | U15: -0.2167147651 | V15: 4.749040584 | W15: 240632.1231 | X15: -0.1305937322 | Y15: 6.166836072 | Z15: 204850.1768 | AA15: -0.05655692176 | AB15: 8.257425234 | AC15: 143859.3559 | AD15: 0.67602443 | AE15: 15.73084316 | AF15: 193580.749 | AG15: 0.02717290779 | AH15: 8.800930562
A16: 2005-05-01 | B16: 136735.7303 | C16: 0.05257302102 | D16: 9.136917867 | E16: 150344.6446 | F16: 0.02139535743 | G16: 12.06083797 | H16: 147141.1894 | I16: -0.2692769215 | J16: 10.2606177 | K16: 160156.1653 | L16: 0.3103072597 | M16: 8.327058828 | N16: 169330.2752 | O16: 0.01925604741 | P16: 8.647062647 | Q16: 207580.6295 | R16: -0.1628292343 | S16: 7.423753659 | T16: 283041.5579 | U16: -0.02594674631 | V16: 4.000878242 | W16: 238570.9318 | X16: -0.8565736089 | Y16: 4.646196952 | Z16: 203508.173 | AA16: -1.033944516 | AB16: 5.370487016 | AC16: 143962.3481 | AD16: 0.07159225429 | AE16: 13.39860721 | AF16: 193053.6121 | AG16: -0.2723085103 | AH16: 7.103438618
A17: 2005-06-01 | B17: 137164.3963 | C17: 0.3134996191 | D17: 8.320101199 | E17: 151457.1134 | F17: 0.7399457452 | G17: 10.07983379 | H17: 148052.6337 | I17: 0.6194352461 | J17: 9.715179392 | K17: 160724.3935 | L17: 0.3547963235 | M17: 6.840591473 | N17: 171711.6919 | O17: 1.406373829 | P17: 8.20127213 | Q17: 207196.1274 | R17: -0.1852302385 | S17: 5.948121207 | T17: 282904.137 | U17: -0.04855147019 | V17: 3.800130686 | W17: 239474.7867 | X17: 0.3788620992 | Y17: 4.083118754 | Z17: 202514.435 | AA17: -0.3836203743 | AB17: 4.070801865 | AC17: 145171.5268 | AD17: 0.839927045 | AE17: 11.8728853 | AF17: 193617.1968 | AG17: 0.2919317028 | AH17: 6.177252609
A18: 2005-07-01 | B18: 137613.8451 | C18: 0.3276715623 | D18: 8.0589815 | E18: 152735.2559 | F18: 0.8438973151 | G18: 8.596640984 | H18: 148541.3805 | I18: 0.3301169002 | J18: 8.142956693 | K18: 161538.6166 | L18: 0.5065958479 | M18: 5.788322025 | N18: 170488.6688 | O18: -0.712253794 | P18: 5.342075541 | Q18: 206576.4981 | R18: -0.2990544639 | S18: 4.608919243 | T18: 283222.7575 | U18: 0.1126248908 | V18: 3.452633829 | W18: 238836.4426 | X18: -0.2665600523 | Y18: 3.246614028 | Z18: 202084.4 | AA18: -0.2113758757 | AB18: 2.557077489 | AC18: 146280.7212 | AD18: 0.7640578257 | AE18: 9.646877069 | AF18: 193667.845 | AG18: 0.02615890763 | AH18: 4.965903217
A19: 2005-08-01 | B19: 138201.1658 | C19: 0.4267890205 | D19: 7.347150835 | E19: 152911.9675 | F19: 0.1156979535 | G19: 6.550394664 | H19: 149445.1068 | I19: 0.6084003893 | J19: 6.627491499 | K19: 161571.5671 | L19: 0.02039786063 | M19: 4.50874081 | N19: 169938.1051 | O19: -0.3229327452 | P19: 3.168594551 | Q19: 206863.9249 | R19: 0.1391381601 | S19: 3.882741698 | T19: 283215.5481 | U19: -0.002545501063 | V19: 2.94865174 | W19: 239758.1191 | X19: 0.3859028193 | Y19: 2.762276561 | Z19: 201802.9392 | AA19: -0.184068822 | AB19: 1.650751737 | AC19: 147909.2547 | AD19: 1.113293297 | AE19: 9.176267747 | AF19: 193996.6086 | AG19: 0.1697564381 | AH19: 3.997051755
A20: 2005-09-01 | B20: 139968.0409 | C20: 1.278480549 | D20: 7.501394253 | E20: 153770.8076 | F20: 0.5616565408 | G20: 6.11199689 | H20: 151239.7637 | I20: 1.200880334 | J20: 6.014822868 | K20: 162737.4975 | L20: 0.7216185971 | M20: 3.856407909 | N20: 169330.668 | O20: -0.3574460632 | P20: 2.025815869 | Q20: 207452.5488 | R20: 0.2845464244 | S20: 3.225062695 | T20: 283994.1527 | U20: 0.2749159048 | V20: 2.565997431 | W20: 239519.6592 | X20: -0.09945854102 | Y20: 2.359351064 | Z20: 202057.3074 | AA20: 0.1709808307 | AB20: 0.7445429392 | AC20: 148874.7332 | AD20: 0.652750591 | AE20: 8.14300127 | AF20: 194588.3641 | AG20: 0.3050339234 | AH20: 3.401281719
A21: 2005-10-01 | B21: 142288.5146 | C21: 1.657859686 | D21: 8.14790257 | E21: 154557.5643 | F21: 0.5116424428 | G21: 6.000656347 | H21: 152249.1431 | I21: 0.6674034004 | J21: 5.827107877 | K21: 163035.7902 | L21: 0.1832968271 | M21: 2.915500263 | N21: 170770.8025 | O21: 0.8504865144 | P21: 1.998628719 | Q21: 208152.987 | R21: 0.3376378291 | S21: 2.982874581 | T21: 286359.7356 | U21: 0.8329688851 | V21: 2.737034222 | W21: 240473.3337 | X21: 0.3981612388 | Y21: 1.746171253 | Z21: 203286.7484 | AA21: 0.5251594947 | AB21: 0.154200855 | AC21: 150506.6385 | AD21: 1.096160023 | AE21: 7.728511115 | AF21: 195758.619 | AG21: 0.6014002743 | AH21: 3.093783045
A22: 2005-11-01 | B22: 143407.4938 | C22: 0.7864156921 | D22: 8.691490722 | E22: 155052.7368 | F22: 0.320380648 | G22: 6.676416376 | H22: 153092.6407 | I22: 0.5540245791 | J22: 5.894877959 | K22: 163370.4253 | L22: 0.205252528 | M22: 2.70100752 | N22: 171954.0733 | O22: 0.6928999365 | P22: 3.158633731 | Q22: 207764.1315 | R22: -0.1868123572 | S22: 2.260692791 | T22: 288077.327 | U22: 0.5998019896 | V22: 2.803138542 | W22: 241636.696 | X22: 0.4837801951 | Y22: 1.30381333 | Z22: 204658.1852 | AA22: 0.7998031783 | AB22: 0.4236156639 | AC22: 150661.1642 | AD22: 0.102670362 | AE22: 6.928309571 | AF22: 196584.5664 | AG22: 0.4219213493 | AH22: 3.07054326
A23: 2005-12-01 | B23: 146844.5735 | C23: 2.396722536 | D23: 9.168282619 | E23: 159304.6259 | F23: 2.742221247 | G23: 6.392168904 | H23: 157645.6407 | I23: 2.974016243 | J23: 6.302591109 | K23: 166128.4401 | L23: 1.688197149 | M23: 1.459956848 | N23: 176931.3964 | O23: 2.894565402 | P23: 3.183254586 | Q23: 214974.6894 | R23: 3.47054992 | S23: 2.332281302 | T23: 292295.748 | U23: 1.464336361 | V23: 4.019484225 | W23: 250923.8777 | X23: 3.843448389 | Y23: 2.02437251 | Z23: 213776.2884 | AA23: 0.9778553549 | AB23: 0.7990719865 | AC23: 154899.7852 | AD23: 2.813346766 | AE23: 6.71359558 | AF23: 202504.3493 | AG23: 3.011316206 | AH23: 5.736043126
A24: 2006-01-01 | B24: 150268.3793 | C24: =B24/B23*100-100 -> 2.331584803 | D24: =B24/B12*100-100 -> 11.54111485 | E24: 163571.2418 | F24: =E24/E23*100-100 -> 2.678274933 | G24: =E24/E12*100-100 -> 10.79701435 | H24: 162402.5727 | I24: =H24/H23*100-100 -> 3.017483984 | J24: =H24/H12*100-100 -> 10.78732213 | K24: 169351.4733 | L24: =K24/K23*100-100 -> 1.940085136 | M24: =K24/K12*100-100 -> 4.562307981 | N24: 182018.8873 | O24: =N24/N23*100-100 -> 2.875403131 | P24: =N24/N12*100-100 -> 8.645693633 | Q24: 222053.1749 | R24: =Q24/Q23*100-100 -> 3.292706432 | S24: =Q24/Q12*100-100 -> 7.991595601 | T24: 294012.3473 | U24: =T24/T23*100-100 -> 0.5872816482 | V24: =T24/T12*100-100 -> 4.357415389 | W24: 260999.7805 | X24: =W24/W23*100-100 -> 4.015521728 | Y24: =W24/W12*100-100 -> 8.767198765 | Z24: 219486.7093 | AA24: =Z24/Z23*100-100 -> 2.671213393 | AB24: =Z24/Z12*100-100 -> 7.293158887 | AC24: 158899.3932 | AD24: =AC24/AC23*100-100 -> 2.58206164 | AE24: =AC24/AC12*100-100 -> 11.56966575 | AF24: 207959.5115 | AG24: 2.693849377 | AH24: =AF24/AF12*100-100 -> 8.04692968
A25: 2006-02-01 | B25: 153765.4052 | C25: 2.327186802 | D25: 12.80707428 | E25: 167857.3882 | F25: 2.620354509 | G25: 11.72881589 | H25: 167077.1428 | I25: 2.878384285 | J25: 13.1087768 | K25: 173797.9364 | L25: 2.625582739 | M25: 7.140411842 | N25: 185872.7082 | O25: 2.117264267 | P25: 9.913625011 | Q25: 230346.85 | R25: 3.734995045 | S25: 11.20653943 | T25: 297329.6878 | U25: 1.128299736 | V25: 5.257001596 | W25: 271473.0431 | X25: 4.012747659 | Y25: 12.91019667 | Z25: 227190.7341 | AA25: 3.510018814 | AB25: 10.59741504 | AC25: 163901.7726 | AD25: 3.148142577 | AE25: 14.27429925 | AF25: 214054.5704 | AG25: 2.930887313 | AH25: 10.54898562
A26: 2006-03-01 | B26: 153764.9195 | C26: -0.0003158451644 | D26: 11.96707112 | E26: 168663.635 | F26: 0.480316552 | G26: 12.37958562 | H26: 166983.361 | I26: -0.05613086945 | J26: 12.91148166 | K26: 174696.9052 | L26: 0.5172494324 | M26: 8.579181036 | N26: 186369.0373 | O26: 0.267026365 | P26: 10.91805927 | Q26: 232148.8818 | R26: 0.7823123403 | S26: 12.28560611 | T26: 297654.7982 | U26: 0.1093433947 | V26: 4.907800181 | W26: 273984.7475 | X26: 0.9252131615 | Y26: 13.71172602 | Z26: 228185.4262 | AA26: 0.4378224901 | AB26: 11.43916741 | AC26: 164487.6563 | AD26: 0.3574602271 | AE26: 15.1121746 | AF26: 215082.7533 | AG26: 0.4803367951 | AH26: 11.13770283
A27: 2006-04-01 | B27: 153162.3094 | C27: -0.3919035224 | D27: 12.07226599 | E27: 169129.1781 | F27: 0.2760186843 | G27: 12.51838358 | H27: 168609.7403 | I27: 0.9739768965 | J27: 14.28187713 | K27: 175348.3733 | L27: 0.3729133802 | M27: 9.825614079 | N27: 186908.3257 | O27: 0.2893658777 | P27: 10.40218099 | Q27: 233539.7598 | R27: 0.5991319212 | S27: 12.32237296 | T27: 300436.6571 | U27: 0.9345923148 | V27: 6.118234301 | W27: 276668.895 | X27: 0.9796704353 | Y27: 14.97587747 | Z27: 232394.3066 | AA27: 1.844500093 | AB27: 13.44598783 | AC27: 163842.9274 | AD27: -0.3919618677 | AE27: 13.89104747 | AF27: 216721.8273 | AG27: =AF27/AF26*100-100 -> 0.7620667155 | AH27: 11.95422505
A28: 2006-05-01 | B28: 153686.4986 | C28: 0.342244266 | D28: 12.39673654 | E28: 169893.8125 | F28: 0.452100815 | G28: 13.00290274 | H28: 169154.0273 | I28: 0.3228087094 | J28: 14.96035067 | K28: 176245.3807 | L28: 0.5115572677 | M28: 10.0459544 | N28: 187563.8708 | O28: 0.350730819 | P28: 10.76806591 | Q28: 234774.9095 | R28: 0.5288819413 | S28: 13.10058652 | T28: 302370.5464 | U28: 0.6436928537 | V28: 6.829028449 | W28: 277495.6527 | X28: 0.2988256525 | Y28: 16.31578521 | Z28: 234713.6738 | AA28: 0.9980309723 | AB28: 15.33378258 | AC28: 163538.5715 | AD28: -0.1857607566 | AE28: 13.59815511 | AF28: 217761.6539 | AG28: 0.4797977833 | AH28: 12.79853896
A29: 2006-06-01 | B29: 154482.8161 | C29: 0.5181440969 | D29: 12.62603142 | E29: 170165.9855 | F29: 0.1602017867 | G29: 12.35258722 | H29: 169682.8634 | I29: 0.3126358782 | J29: 14.60982433 | K29: 176294.8428 | L29: 0.02806435487 | M29: 9.68767027 | N29: 188249.1641 | O29: 0.3653652858 | P29: 9.630952937 | Q29: 235781.8166 | R29: 0.4288819264 | S29: 13.79643991 | T29: 304492.6656 | U29: 0.7018273457 | V29: 7.631040236 | W29: 280844.9803 | X29: 1.206983828 | Y29: 17.27538593 | Z29: 235756.4311 | AA29: 0.4442678303 | AB29: 16.41463045 | AC29: 164507.76 | AD29: 0.5926360297 | AE29: 13.31957694 | AF29: 219023.3629 | AG29: 0.579399099 | AH29: 13.12185413
A30: 2006-07-01 | B30: 154381.1494 | C30: -0.06581101306 | D30: 12.18431499 | E30: 170789.1722 | F30: 0.366222852 | G30: 11.82039873 | H30: 168774.7731 | I30: -0.5351691476 | J30: 13.62138452 | K30: 176014.6487 | L30: -0.1589349696 | M30: 8.961344557 | N30: 187622.1669 | O30: -0.3330677137 | P30: 10.04964037 | Q30: 236738.2636 | R30: 0.4056491704 | S30: 14.60077295 | T30: 306252.9898 | U30: 0.5781171397 | V30: 8.131490754 | W30: 281548.7378 | X30: 0.2505857574 | Y30: 17.88349164 | Z30: 235919.5285 | AA30: 0.06918043994 | AB30: 16.743068 | AC30: 165762.8603 | AD30: 0.762942898 | AE30: 13.31832308 | AF30: 219425.351 | AG30: 0.183536633 | AH30: 13.29983617
A31: 2006-08-01 | B31: 153288.3945 | C31: -0.7078292341 | D31: 10.91686062 | E31: 171433.7494 | F31: 0.377411075 | G31: 12.11270918 | H31: 170251.3115 | I31: 0.8748573019 | J31: 13.92230574 | K31: 176015.0842 | L31: 0.0002474568705 | M31: 8.939392884 | N31: 189389.881 | O31: 0.9421669507 | P31: 11.44638859 | Q31: 238385.9048 | R31: 0.6959758586 | S31: 15.2380266 | T31: 308286.8422 | U31: 0.6641085673 | V31: 8.852372087 | W31: 284875.5375 | X31: 1.181607039 | Y31: 18.81788969 | Z31: 236795.9463 | AA31: 0.3714901552 | AB31: 17.34018704 | AC31: 167562.2294 | AD31: 1.085508011 | AE31: 13.28718394 | AF31: 220920.7066 | AG31: 0.6814871274 | AH31: 13.87864364
A32: 2006-09-01 | B32: 152787.0348 | C32: -0.3270695885 | D32: 9.158514924 | E32: 172695.1368 | F32: 0.7357870784 | G32: 12.30684129 | H32: 172311.2943 | I32: 1.209965852 | J32: 13.93253335 | K32: 178322.583 | L32: 1.310966511 | M32: 9.576825094 | N32: 190687.5713 | O32: 0.6851952011 | P32: 12.612543 | Q32: 239751.0694 | R32: 0.5726700273 | S32: 15.56911246 | T32: 311500.9114 | U32: 1.042558012 | V32: 9.685677839 | W32: 287004.3078 | X32: 0.7472632867 | Y32: 19.82494831 | Z32: 238094.3066 | AA32: 0.5483034434 | AB32: 17.8350388 | AC32: 168657.9474 | AD32: 0.6539170813 | AE32: 13.28849685 | AF32: 222631.9807 | AG32: 0.7746101339 | AH32: 14.41176446
A33: 2006-10-01 | B33: 153250.4265 | C33: 0.3032925902 | D33: =B33/B21*100-100 -> 7.70400336 | E33: 173035.2103 | F33: 0.196921306 | G33: =E33/E21*100-100 -> 11.95518714 | H33: 174590.5691 | I33: 1.322765758 | J33: 14.67425402 | K33: 179340.2321 | L33: 0.5706787519 | M33: =K33/K21*100-100 -> 10.00052927 | N33: 191536.4321 | O33: 0.445157867 | P33: =N33/N21*100-100 -> 12.15994142 | Q33: 241225.3177 | R33: 0.6149079195 | S33: =Q33/Q21*100-100 -> 15.88847276 | T33: 314148.8948 | U33: 0.8500724425 | V33: =T33/T21*100-100 -> 9.704283017 | W33: 288949.7881 | X33: 0.6778575127 | Y33: =W33/W21*100-100 -> 20.15876509 | Z33: 239825.5414 | AA33: 0.7271214483 | AB33: =Z33/Z21*100-100 -> 17.97401613 | AC33: 169976.5571 | AD33: 0.7818248121 | AE33: =AC33/AC21*100-100 -> 12.93625238 | AF33: 224118.4216 | AG33: 0.6676672539 | AH33: =AF33/AF21*100-100 -> 14.48712844
A34: 2006-11-01 | B34: 155389.0856 | C34: 1.395532191 | D34: 8.354927247 | E34: 172826.536 | F34: -0.1205964786 | G34: 11.46306703 | H34: 174809.8443 | I34: 0.1255939556 | J34: 14.18566132 | K34: 178999.4213 | L34: -0.1900359103 | M34: 9.566600547 | N34: 190997.3598 | O34: -0.281446358 | P34: 11.07463527 | Q34: 239704.1803 | R34: -0.6305878037 | S34: 15.37322563 | T34: 318829.6906 | U34: 1.48999277 | V34: 10.67503782 | W34: 289792.1695 | X34: 0.2915321122 | Y34: 19.92887434 | Z34: 239345.1495 | AA34: -0.200308908 | AB34: 16.94873049 | AC34: 169266.1205 | AD34: -0.417961523 | AE34: 12.3488733 | AF34: 224493.7542 | AG34: 0.1674706693 | AH34: 14.19703911
A35: 2006-12-01 | B35: 155601.9782 | C35: 0.1370061568 | D35: 5.963723722 | E35: 171692.1316 | F35: -0.6563832241 | G35: 7.775986162 | H35: 172314.8072 | I35: -1.427286357 | J35: 9.305151984 | K35: 176456.3672 | L35: -1.420705224 | M35: 6.21683259 | N35: 188518.047 | O35: -1.298087465 | P35: 6.548668459 | Q35: 235751.1438 | R35: -1.649131223 | S35: 9.664604884 | T35: 324643.2783 | U35: 1.823414785 | V35: 11.06671257 | W35: 281802.3672 | X35: -2.757080115 | Y35: 12.30591915 | Z35: 236009.3396 | AA35: -1.393723587 | AB35: 10.40014838 | AC35: 166615.3303 | AD35: -1.566048881 | AE35: 7.563306231 | AF35: 221949.5968 | AG35: -1.133286483 | AH35: 9.602385118
A36: 2007-01-01 | B36: 156270.6988 | C36: 0.4297635644 | D36: 3.994399581 | E36: 170779.2189 | F36: -0.5317148891 | G36: 4.406628633 | H36: 169317.2434 | I36: -1.739585744 | J36: 4.257734696 | K36: 176082.9194 | L36: -0.2116374451 | M36: 3.97483763 | N36: 187756.895 | O36: -0.4037554766 | P36: 3.152424336 | Q36: 232341.6129 | R36: -1.446241521 | S36: 4.63332172 | T36: 330559.6381 | U36: 1.822418698 | V36: 12.43052924 | W36: 276468.9819 | X36: -1.892597782 | Y36: 5.926902048 | Z36: 229906.1271 | AA36: -2.586004654 | AB36: 4.747174843 | AC36: 164686.3493 | AD36: -1.157745244 | AE36: 3.64189944 | AF36: 220005.2758 | AG36: -0.8760191935 | AH36: 5.792360347
A37: 2007-02-01 | B37: 155110.7209 | C37: -0.7422875207 | D37: 0.874914436 | E37: 171315.1933 | F37: 0.3138404756 | G37: 2.059965973 | H37: 167077.1428 | I37: -1.323019741 | J37: 0 | K37: 176407.4597 | L37: 0.1843110734 | M37: 1.501469701 | N37: 185872.7082 | O37: -1.003524711 | P37: 0 | Q37: 231529.3824 | R37: -0.3495845735 | S37: 0.513370366 | T37: 336362.3902 | U37: 1.755432737 | V37: 13.12775144 | W37: 271473.0431 | X37: -1.807052177 | Y37: 0 | Z37: 227190.7341 | AA37: -1.18108773 | AB37: 0 | AC37: 163901.7726 | AD37: -0.4764066137 | AE37: 0 | AF37: 218977.0217 | AG37: -0.4673770132 | AH37: 2.299624459
A38: 2007-03-01 | B38: 154806.2486 | C38: -0.1962935295 | D38: 0.6772214903 | E38: 171977.3325 | F38: 0.3865034996 | G38: 1.964678087 | H38: 166983.361 | I38: -0.05613086945 | J38: 0 | K38: 177196.552 | L38: 0.4473123222 | M38: 1.430847798 | N38: 186369.0373 | O38: 0.267026365 | P38: 0 | Q38: 233663.7667 | R38: 0.9218632441 | S38: 0.6525488723 | T38: 340196.1378 | U38: 1.139767015 | V38: 14.29217329 | W38: 273984.7475 | X38: 0.9252131615 | Y38: 0 | Z38: 228185.4262 | AA38: 0.4378224901 | AB38: 0 | AC38: 164487.6563 | AD38: 0.3574602271 | AE38: 0 | AF38: 220366.4542 | AG38: 0.6345106493 | AH38: 2.456589771
A39: 2007-04-01 | B39: 154243.7546 | C39: -0.3633535143 | D39: 0.7060779346 | E39: 172712.1796 | F39: 0.4272930279 | G39: 2.118499907 | H39: 168609.7403 | I39: 0.9739768965 | J39: 0 | K39: 177592.1633 | L39: 0.2232612504 | M39: 1.279618329 | N39: 186908.3257 | O39: 0.2893658777 | P39: 0 | Q39: 235100.4886 | R39: 0.6148672144 | S39: 0.6682925207 | T39: 344122.2975 | U39: 1.154087091 | V39: 14.54071578 | W39: 276668.895 | X39: 0.9796704353 | Y39: 0 | Z39: 232394.3066 | AA39: 1.844500093 | AB39: 0 | AC39: 163842.9274 | AD39: -0.3919618677 | AE39: 0 | AF39: 222143.6666 | AG39: 0.8064804686 | AH39: 2.501750433
A40: 2007-05-01 | B40: 154164.7082 | C40: -0.05124775678 | D40: 0.3111591384 | E40: 172676.4466 | F40: -0.02068935067 | G40: 1.637866629 | H40: 169154.0273 | I40: 0.3228087094 | J40: 0 | K40: 178481.5247 | L40: 0.5007886523 | M40: 1.268767425 | N40: 187563.8708 | O40: 0.350730819 | P40: 0 | Q40: 236190.848 | R40: 0.4637843926 | S40: 0.6031046966 | T40: 348237.6715 | U40: 1.195904481 | V40: 15.16917757 | W40: 277495.6527 | X40: 0.2988256525 | Y40: 0 | Z40: 234713.6738 | AA40: 0.9980309723 | AB40: 0 | AC40: 163538.5715 | AD40: -0.1857607566 | AE40: 0 | AF40: 223263.6933 | AG40: 0.5041902588 | AH40: 2.526633758
A41: 2007-06-01 | B41: 155186.5352 | C41: 0.6628151649 | D41: 0.4555323025 | E41: 172960.1451 | F41: 0.1642948624 | G41: 1.64202009 | H41: 169682.8634 | I41: 0.3126358782 | J41: 0 | K41: 178828.5389 | L41: 0.1944258518 | M41: 1.437192395 | N41: 188249.1641 | O41: 0.3653652858 | P41: 0 | Q41: 237192.7947 | R41: 0.4242106371 | S41: 0.5984253036 | T41: 354998.3111 | U41: 1.941386649 | V41: 16.58681843 | W41: 280844.9803 | X41: 1.206983828 | Y41: 0 | Z41: 235756.4311 | AA41: 0.4442678303 | AB41: 0 | AC41: 164507.76 | AD41: 0.5926360297 | AE41: 0 | AF41: 225044.4727 | AG41: 0.7976125911 | AH41: 2.749071901
A42: 2007-07-01 | B42: 154822.3817 | C42: -0.2346553634 | D42: 0.2858071137 | E42: 173588.1174 | F42: 0.3630733824 | G42: 1.638830586 | H42: 168774.7731 | I42: -0.5351691476 | J42: 0 | K42: 179131.7872 | L42: 0.1695748693 | M42: 1.770954016 | N42: 187622.1669 | O42: -0.3330677137 | P42: 0 | Q42: 238157.1187 | R42: 0.4065570545 | S42: 0.5993349309 | T42: 360082.6744 | U42: 1.432221816 | V42: 17.57686825 | W42: 281548.7378 | X42: 0.2505857574 | Y42: 0 | Z42: 235919.5285 | AA42: 0.06918043994 | AB42: 0 | AC42: 165762.8603 | AD42: 0.762942898 | AE42: 0 | AF42: 225832.5811 | AG42: 0.3502011926 | AH42: 2.920004466
A43: 2007-08-01 | B43: 154557.7255 | C43: -0.1709418557 | D43: 0.82806723 | E43: 174420.8149 | F43: 0.4796973323 | G43: 1.742402251 | H43: 170251.3115 | I43: 0.8748573019 | J43: 0 | K43: 179081.5232 | L43: -0.02805975637 | M43: 1.742145566 | N43: 189389.881 | O43: 0.9421669507 | P43: 0 | Q43: 239924.4415 | R43: 0.7420827228 | S43: 0.6453975449 | T43: 365030.7401 | U43: 1.374147115 | V43: 18.40620167 | W43: 284875.5375 | X43: 1.181607039 | Y43: 0 | Z43: 236795.9463 | AA43: 0.3714901552 | AB43: 0 | AC43: 167562.2294 | AD43: 1.085508011 | AE43: 0 | AF43: 227701.2562 | AG43: 0.8274603586 | AH43: 3.069223215
A44: 2007-09-01 | B44: 154339.6858 | C44: -0.141073301 | D44: 1.016219079 | E44: 176263.9032 | F44: 1.056690524 | G44: 2.066512366 | H44: 172311.2943 | I44: 1.209965852 | J44: 0 | K44: 181138.8071 | L44: 1.14879741 | M44: 1.579286274 | N44: 190687.5713 | O44: 0.6851952011 | P44: 0 | Q44: 241346.9584 | R44: 0.5929020275 | S44: 0.6656441757 | T44: 367441.1812 | U44: 0.6603392145 | V44: 17.95830054 | W44: 287004.3078 | X44: 0.7472632867 | Y44: 0 | Z44: 238094.3066 | AA44: 0.5483034434 | AB44: 0 | AC44: 168657.9474 | AD44: 0.6539170813 | AE44: 0 | AF44: 229400.8068 | AG44: 0.7463949277 | AH44: 3.040365556
A45: 2007-10-01 | B45: 155326.1508 | C45: 0.639151907 | D45: 1.354465586 | E45: 176652.1497 | F45: 0.2202643548 | G45: 2.090290976 | H45: 174590.5691 | I45: 1.322765758 | J45: 0 | K45: 181405.0603 | L45: 0.1469884938 | M45: 1.151346893 | N45: 191536.4321 | O45: 0.445157867 | P45: 0 | Q45: 242811.2592 | R45: 0.6067202215 | S45: 0.657452349 | T45: 369163.7104 | U45: 0.4687904552 | V45: 17.51233779 | W45: 288949.7881 | X45: 0.6778575127 | Y45: 0 | Z45: 239825.5414 | AA45: 0.7271214483 | AB45: 0 | AC45: 169976.5571 | AD45: 0.7818248121 | AE45: 0 | AF45: 230754.0119 | AG45: 0.5898868223 | AH45: 2.960751869
A46: 2007-11-01 | B46: 156799.8461 | C46: 0.9487747644 | D46: 0.9078891022 | E46: 176451.312 | F46: -0.1136910739 | G46: 2.097349236 | H46: 174809.8443 | I46: 0.1255939556 | J46: 0 | K46: 180942.6465 | L46: -0.2549068 | M46: 1.085604179 | N46: 190997.3598 | O46: -0.281446358 | P46: 0 | Q46: 241339.4569 | R46: -0.6061507871 | S46: 0.6822061216 | T46: 367753.9807 | U46: -0.3818711376 | V46: 15.34496052 | W46: 289792.1695 | X46: 0.2915321122 | Y46: 0 | Z46: 239345.1495 | AA46: -0.200308908 | AB46: 0 | AC46: 169266.1205 | AD46: -0.417961523 | AE46: 0 | AF46: 230462.578 | AG46: -0.12629637 | AH46: 2.658792809
A47: 2007-12-01 | B47: 156710.1771 | C47: -0.05718694595 | D47: 0.7122010462 | E47: 175976.6764 | F47: -0.268989578 | G47: 2.495481151 | H47: 174989.7707 | I47: 0.1029269181 | J47: 1.552370041 | K47: 179852.9648 | L47: -0.602224918 | M47: 1.924893773 | N47: 189770.4805 | O47: -0.6423540424 | P47: 0.6643573618 | Q47: 243225.1466 | R47: 0.7813433458 | S47: 3.17029336 | T47: 368229.9353 | U47: 0.1294220109 | V47: 13.42601555 | W47: 290661.1987 | X47: 0.29988015 | Y47: 3.143632738 | Z47: 240173.3434 | AA47: 0.3460249553 | AB47: 1.764338545 | AC47: 168611.7449 | AD47: -0.386595719 | AE47: 1.198217839 | AF47: 230679.9674 | AG47: 0.09432743525 | AH47: 3.933492436
A48: 2008-01-01 | B48: 160216.5761 | C48: 2.237505647 | D48: 2.525027021 | E48: 176238.1338 | F48: 0.1485750706 | G48: 3.196474906 | H48: 174690.6593 | I48: -0.1709307903 | J48: 3.173578638 | K48: 179826.4439 | L48: -0.01474584111 | M48: 2.126000949 | N48: 189852.402 | O48: 0.0431687254 | P48: 1.116074571 | Q48: 243199.1142 | R48: -0.01070303037 | S48: 4.673076506 | T48: 370641.8177 | U48: 0.6549935692 | V48: 12.12555164 | W48: 292870.1203 | X48: 0.7599643945 | Y48: 5.932361139 | Z48: 237359.4494 | AA48: -1.171609633 | AB48: 3.241898039 | AC48: 166923.6062 | AD48: -1.001198807 | AE48: 1.358495652 | AF48: 231067.4468 | AG48: 0.1679726863 | AH48: 5.028138971
A49: 2008-02-01 | B49: 162227.1372 | C49: 1.254902026 | D49: 4.587959031 | E49: 176907.8492 | F49: 0.3800059552 | G49: 3.264541728 | H49: 174220.7928 | I49: -0.2689705866 | J49: 4.27565962 | K49: 180861.1848 | L49: 0.5754108331 | M49: 2.524680683 | N49: 190569.8982 | O49: 0.3779231763 | P49: 2.52710044 | Q49: 247275.8242 | R49: 1.676284909 | S49: 6.801055505 | T49: 373822.5622 | U49: 0.858172064 | V49: 11.13684916 | W49: 293203.4484 | X49: 0.1138143121 | Y49: 8.004627296 | Z49: 235409.7777 | AA49: -0.8214004966 | AB49: 3.617684331 | AC49: 166530.9529 | AD49: -0.235229346 | AE49: 1.60411947 | AF49: 231970.1688 | AG49: 0.39067467 | AH49: 5.933566446
A50: 2008-03-01 | B50: 163508.6342 | C50: 0.7899399366 | D50: 5.621469198 | E50: 175541.35 | F50: -0.7724356097 | G50: 2.072376329 | H50: 174282.5438 | I50: 0.03544410053 | J50: 4.371203653 | K50: 179468.4717 | L50: -0.7700453175 | M50: 1.282146658 | N50: 191410.3783 | O50: 0.4410350606 | P50: 2.705031387 | Q50: 245971.8162 | R50: -0.5273495808 | S50: 5.267418943 | T50: 373105.5502 | U50: -0.1918054415 | V50: 9.673658456 | W50: 292690.7941 | X50: -0.1748459401 | Y50: 6.827404384 | Z50: 234368.4108 | AA50: -0.4423634767 | AB50: 2.709631674 | AC50: 166260.9883 | AD50: -0.1621107452 | AE50: 1.07809429 | AF50: 231372.5814 | AG50: -0.2576139002 | AH50: 4.994465787
A51: 2008-04-01 | B51: 161039.6414 | C51: -1.510007585 | D51: 4.405939653 | E51: 174660.335 | F51: -0.5018846215 | G51: 1.12797797 | H51: 173928.7201 | I51: -0.2030172559 | J51: 3.15461003 | K51: 178564.8136 | L51: -0.5035191614 | M51: 0.5476876175 | N51: 191276.7809 | O51: -0.06979630265 | P51: 2.337218083 | Q51: 245944.2202 | R51: -0.01121918805 | S51: 4.612381557 | T51: 372185.478 | U51: -0.2465983857 | V51: 8.155002067 | W51: 291446.4446 | X51: -0.4251413184 | Y51: 5.341239965 | Z51: 235755.2205 | AA51: 0.5917220991 | AB51: 1.446211791 | AC51: 165599.0734 | AD51: -0.3981179936 | AE51: 1.071847309 | AF51: 230835.719 | AG51: -0.2320337074 | AH51: 3.912806745
A52: 2008-05-01 | B52: 159809.257 | C52: -0.7640257973 | D52: 3.661375469 | E52: 172506.8199 | F52: -1.232973187 | G52: -0.09823385617 | H52: 172232.7686 | I52: -0.9750842101 | J52: 1.820081625 | K52: 176108.4665 | L52: -1.375605334 | M52: -1.329581993 | N52: 189413.5129 | O52: -0.9741213645 | P52: 0.9861398629 | Q52: 243812.2427 | R52: -0.8668540695 | S52: 3.226795106 | T52: 369711.7624 | U52: -0.664645918 | V52: 6.166504278 | W52: 291018.9105 | X52: -0.1466938914 | Y52: 4.873322411 | Z52: 235827.8903 | AA52: 0.03082426529 | AB52: 0.4747130845 | AC52: 163242.3192 | AD52: -1.423168688 | AE52: -0.1811513252 | AF52: 229270.0095 | AG52: -0.6782786676 | AH52: 2.690234186
A53: 2008-06-01 | B53: 157621.9945 | C53: -1.368670729 | D53: 1.569375343 | E53: 172011.219 | F53: -0.2872934735 | G53: -0.5486385876 | H53: 169578.7206 | I53: -1.540965767 | J53: -0.06137497479 | K53: 176332.9532 | L53: 0.1274707248 | M53: -1.395518699 | N53: 187350.6362 | O53: -1.089086384 | P53: -0.4773078047 | Q53: 242263.6887 | R53: -0.6351420223 | S53: 2.137878606 | T53: 367304.938 | U53: -0.6510002172 | V53: 3.46667195 | W53: 288487.9167 | X53: -0.8697008116 | Y53: 2.721407498 | Z53: 233356.2486 | AA53: -1.04807015 | AB53: -1.018077232 | AC53: 161695.0903 | AD53: -0.947811159 | AE53: -1.709748953 | AF53: 227469.065 | AG53: -0.7855124928 | AH53: 1.077383629
A54: 2008-07-01 | B54: 153882.2206 | C54: -2.37262181 | D54: -0.6072513924 | E54: 170232.6047 | F54: -1.034010663 | G54: -1.933031329 | H54: 166464.5387 | I54: -1.836422561 | J54: -1.368826824 | K54: 174179.1884 | L54: -1.221419341 | M54: -2.764779403 | N54: 184853.2987 | O54: -1.332975157 | P54: -1.475768161 | Q54: 238500.9863 | R54: -1.553143333 | S54: 0.1443868845 | T54: 362765.3537 | U54: -1.235917024 | V54: 0.7450176155 | W54: 284597.4027 | X54: -1.348588173 | Y54: 1.082819596 | Z54: 229428.6284 | AA54: -1.683100489 | AB54: -2.751319523 | AC54: 160114.0554 | AD54: -0.9777878129 | AE54: -3.407762664 | AF54: 224271.2648 | AG54: -1.405817619 | AH54: -0.6913600799
A55: 2008-08-01 | B55: 150733.5229 | C55: -2.046173804 | D55: -2.474287515 | E55: 168487.3902 | F55: -1.025194036 | G55: -3.401787094 | H55: 164870.1781 | I55: -0.9577779418 | J55: -3.16070013 | K55: 171533.2639 | L55: -1.519081872 | M55: -4.21498497 | N55: 182863.4787 | O55: -1.076431974 | P55: -3.446014238 | Q55: 233926.1225 | R55: -1.918173963 | S55: -2.500086681 | T55: 358662.7972 | U55: -1.130911893 | V55: -1.744494958 | W55: 280477.1668 | X55: -1.447741942 | Y55: -1.543962251 | Z55: 226854.3078 | AA55: -1.122057264 | AB55: -4.198398923 | AC55: 160118.7601 | AD55: 0.002938346019 | AE55: -4.442211895 | AF55: 221400.037 | AG55: -1.280247745 | AH55: -2.767318597
A56: 2008-09-01 | B56: 149377.7515 | C56: -0.8994491547 | D56: -3.214943838 | E56: 165804.2873 | F56: -1.592465078 | G56: -5.934065714 | H56: 163049.4885 | I56: -1.104317133 | J56: -5.37504278 | K56: 167985.4479 | L56: -2.068296231 | M56: -7.261480535 | N56: 180046.6571 | O56: -1.540395965 | P56: -5.58028728 | Q56: 228964.2739 | R56: -2.121117802 | S56: -5.130656958 | T56: 351032.1029 | U56: -2.127539942 | V56: -4.465770056 | W56: 276494.413 | X56: -1.41999217 | Y56: -3.661929311 | Z56: 222891.3089 | AA56: -1.746935704 | AB56: -6.385284009 | AC56: 158127.7791 | AD56: -1.243440163 | AE56: -6.243505543 | AF56: 217665.9707 | AG56: -1.686569832 | AH56: -5.115429291
A57: 2008-10-01 | B57: 147824.6342 | C57: -1.039724693 | D57: -4.829525866 | E57: 162348.6191 | F57: -2.08418508 | G57: -8.097003424 | H57: 161421.5279 | I57: -0.9984457101 | J57: -7.542813608 | K57: 165889.0454 | L57: -1.247966719 | M57: -8.553242604 | N57: 177447.4395 | O57: -1.443635572 | P57: -7.355776887 | Q57: 223725.0611 | R57: -2.28822285 | S57: -7.860507873 | T57: 343825.6196 | U57: -2.052941396 | V57: -6.863646148 | W57: 269830.4064 | X57: -2.41017767 | Y57: -6.616852659 | Z57: 219154.4136 | AA57: -1.67655499 | AB57: -8.61923534 | AC57: 155903.0563 | AD57: -1.406914643 | AE57: -8.279671677 | AF57: 213558.3465 | AG57: -1.887122831 | AH57: -7.45194646
A58: 2008-11-01 | B58: 145555.4831 | C58: -1.53502905 | D58: -7.171156928 | E58: 160715.8949 | F58: -1.005690263 | G58: -8.917710479 | H58: 158829.5793 | I58: -1.605701902 | J58: -9.141513176 | K58: 163670.011 | L58: -1.337661824 | M58: -9.54591736 | N58: 174218.6205 | O58: -1.819591735 | P58: -8.784801659 | Q58: 218323.5241 | R58: -2.414363813 | S58: -9.536746707 | T58: 334489.5243 | U58: -2.715357657 | V58: -9.045301522 | W58: 261588.0133 | X58: -3.054656876 | Y58: -9.732546006 | Z58: 214612.84 | AA58: -2.07231674 | AB58: -10.33332388 | AC58: 153197.9058 | AD58: -1.735149099 | AE58: -9.492871153 | AF58: 208867.2398 | AG58: -2.196639366 | AH58: -9.370431582
A59: 2008-12-01 | B59: 143509.2352 | C59: -1.405819898 | D59: -8.423793639 | E59: 159081.1772 | F59: -1.017147467 | G59: -9.600987758 | H59: 157319.2987 | I59: -0.9508812183 | J59: -10.09800282 | K59: 161289.9398 | L59: -1.454188954 | M59: -10.3212227 | N59: 172186.7317 | O59: -1.166286826 | P59: -9.265797684 | Q59: 215544.9871 | R59: -1.272669548 | S59: -11.3804678 | T59: 331139.5287 | U59: -1.001524829 | V59: -10.07262123 | W59: 253825.696 | X59: -2.967382627 | Y59: -12.67300308 | Z59: 211136.505 | AA59: -1.619816843 | AB59: -12.08995052 | AC59: 151860.1129 | AD59: -0.8732448863 | AE59: -9.93503272 | AF59: 205580.3594 | AG59: -1.573669662 | AH59: -10.88070555
A60: 2009-01-01 | B60: 142973.9227 | C60: -0.3730160324 | D60: -10.76209083 | E60: 159755.8149 | F60: 0.4240838992 | G60: -9.352299987 | H60: 156008.7629 | I60: -0.8330419931 | J60: -10.69427322 | K60: 159564.0546 | L60: -1.070051319 | M60: -11.26774732 | N60: 170882.9982 | O60: -0.7571625665 | P60: -9.991658553 | Q60: 216184.1377 | R60: 0.2965276627 | S60: -11.10817225 | T60: 327956.9462 | U60: -0.9611001461 | V60: -11.5164748 | W60: 250352.309 | X60: -1.368414275 | Y60: -14.51763372 | Z60: 207971.4012 | AA60: -1.499079385 | AB60: -12.38124214 | AC60: 152809.2314 | AD60: 0.6249952279 | AE60: -8.455589426 | AF60: 204091.9976 | AG60: -0.72398054 | AH60: -11.67427499
A61: 2009-02-01 | B61: 143296.3181 | C61: 0.2254924765 | D61: -11.66932943 | E61: 157710.2946 | F61: -1.280404243 | G61: -10.85172574 | H61: 154911.5745 | I61: -0.70328636 | J61: -11.08318815 | K61: 158890.2347 | L61: -0.4222880716 | M61: -12.14796317 | N61: 169866.59 | O61: -0.5947977671 | P61: -10.86389217 | Q61: 215209.0812 | R61: -0.4510305444 | S61: -12.96800573 | T61: 325817.7776 | U61: -0.6522711652 | V61: -12.84159639 | W61: 249087.605 | X61: -0.5051696745 | Y61: -15.04615435 | Z61: 205761.4547 | AA61: -1.062620368 | AB61: -12.59434643 | AC61: 151797.7082 | AD61: -0.6619516317 | AE61: -8.847150894 | AF61: 202738.0313 | AG61: -0.6634098141 | AH61: -12.60167962
A62: 2009-03-01 | B62: 142798.5928 | C62: -0.3473399292 | D62: -12.66602308 | E62: 157585.8481 | F62: -0.07890828744 | G62: -10.2286452 | H62: 153200.0405 | I62: -1.104845817 | J62: -12.09673834 | K62: 158533.5158 | L62: -0.2245064674 | M62: -11.66497697 | N62: 167428.6774 | O62: -1.435192496 | P62: -12.52894492 | Q62: 212767.6617 | R62: -1.134440718 | S62: -13.49917035 | T62: 322162.1325 | U62: -1.121990669 | V62: -13.65388901 | W62: 247102.4216 | X62: -0.7969820232 | Y62: -15.57560861 | Z62: 204499.4482 | AA62: -0.6133347675 | AB62: -12.744449 | AC62: 150835.1079 | AD62: -0.6341335822 | AE62: -9.278111793 | AF62: 201091.4946 | AG62: -0.8121498915 | AH62: -13.08758653
A63: 2009-04-01 | B63: 143203.8954 | C63: 0.2838281338 | D63: -11.07537612 | E63: 156092.1883 | F63: -0.9478388136 | G63: -10.6310037 | H63: 151715.0695 | I63: -0.9693019083 | J63: -12.77169783 | K63: 157267.9763 | L63: -0.7982788101 | M63: -11.92667065 | N63: 166639.2104 | O63: -0.4715243614 | P63: -12.88058612 | Q63: 210600.4663 | R63: -1.018573694 | S63: -14.37063813 | T63: 320842.5664 | U63: -0.4095969089 | V63: -13.79497982 | W63: 248225.6547 | X63: 0.4545617342 | Y63: -14.82975372 | Z63: 204401.3867 | AA63: -0.04795194767 | AB63: -13.29931684 | AC63: 148196.6585 | AD63: -1.749227633 | AE63: -10.50876341 | AF63: 200252.2842 | AG63: -0.4173276465 | AH63: -13.2490045
A64: 2009-05-01 | B64: 142426.9101 | C64: -0.5425727337 | D64: -10.87693366 | E64: 156036.3488 | F64: -0.03577340819 | G64: -9.547721693 | H64: 151386.2623 | I64: -0.2167268014 | J64: -12.10368182 | K64: 156894.147 | L64: -0.2377021114 | M64: -10.91050294 | N64: 166668.9578 | O64: 0.01785136316 | P64: -12.00788412 | Q64: 210746.9102 | R64: 0.069536379 | S64: -13.56180153 | T64: 324752.7854 | U64: 1.218734493 | V64: -12.16054818 | W64: 248045.3947 | X64: -0.07261936842 | Y64: -14.76657158 | Z64: 206670.6773 | AA64: 1.110212888 | AB64: -12.36376791 | AC64: 147236.5469 | AD64: -0.6478632139 | AE64: -9.804916023 | AF64: 200747.0697 | AG64: 0.2470810852 | AH64: -12.44076358
A65: 2009-06-01 | B65: 142903.5944 | C65: 0.3346869867 | D65: -9.337783135 | E65: 155575.3224 | F65: -0.2954609203 | G65: -9.55513062 | H65: 152031.1942 | I65: 0.4260174588 | J65: -10.34771717 | K65: 157459.2986 | L65: 0.360211994 | M65: -10.70341889 | N65: 170328.393 | O65: 2.19563094 | P65: -9.085767473 | Q65: 212652.9577 | R65: 0.9044248806 | S65: -12.2225213 | T65: 327764.6256 | U65: 0.9274255031 | V65: -10.76498254 | W65: 251035.3974 | X65: 1.205425575 | Y65: -12.98235285 | Z65: 207174.7972 | AA65: 0.2439242756 | AB65: -11.21952016 | AC65: 147108.9649 | AD65: -0.0866510181 | AE65: -9.020759589 | AF65: 202248.1754 | AG65: 0.7477597356 | AH65: -11.08761296
A66: 2009-07-01 | B66: 141857.4188 | C66: -0.7320848857 | D66: -7.814289243 | E66: 157513.8797 | F66: 1.246057059 | G66: -7.471380144 | H66: 153982.6823 | I66: 1.28361031 | J66: -7.498207437 | K66: 159587.5667 | L66: 1.351630636 | M66: -8.37736232 | N66: 171055.6983 | O66: 0.4270018146 | P66: -7.464081242 | Q66: 214636.2534 | R66: 0.9326443101 | S66: -10.00613594 | T66: 332584.5081 | U66: 1.470531657 | V66: -8.319660435 | W66: 252088.5876 | X66: 0.419538529 | Y66: -11.42273781 | Z66: 208468.961 | AA66: 0.6246723876 | AB66: -9.135593748 | AC66: 147392.6307 | AD66: 0.1928269561 | AE66: -7.945226735 | AF66: 203955.4216 | AG66: 0.8441342701 | AH66: -9.058602845
A67: 2009-08-01 | B67: 143233.3519 | C67: 0.9699408772 | D67: -4.975781688 | E67: 159178.9003 | F67: 1.057062779 | G67: -5.524739811 | H67: 156429.5124 | I67: 1.589029405 | J67: -5.119583048 | K67: 160676.2268 | L67: 0.6821709916 | M67: -6.329406256 | N67: 173282.3577 | O67: 1.301715989 | P67: -5.239494007 | Q67: 217575.3388 | R67: 1.369333163 | S67: -6.989721168 | T67: 336397.7436 | U67: 1.146546323 | V67: -6.207795679 | W67: 255946.1491 | X67: 1.530240439 | Y67: -8.746172799 | Z67: 208915.2142 | AA67: 0.2140621718 | AB67: -7.907759755 | AC67: 149711.1344 | AD67: 1.57301194 | AE67: -6.499941515 | AF67: 206323.1617 | AG67: 1.160910591 | AH67: -6.809788959
A68: 2009-09-01 | B68: 146547.0397 | C68: 2.313488964 | D68: -1.895002312 | E68: 161098.8388 | F68: 1.206151423 | G68: -2.837953456 | H68: 159026.8543 | I68: 1.660391183 | J68: -2.467124718 | K68: 162273.0788 | L68: 0.9938321484 | M68: -3.400514259 | N68: 173033.7167 | O68: -0.1434889395 | P68: -3.895068363 | Q68: 219060.717 | R68: 0.6826960295 | S68: -4.325372124 | T68: 344397.5092 | U68: 2.378067559 | V68: -1.890024785 | W68: 259841.7161 | X68: 1.522026011 | Y68: -6.022796887 | Z68: 210550.733 | AA68: 0.7828624993 | AB68: -5.536589089 | AC68: 151285.7912 | AD68: 1.051796762 | AE68: -4.32687284 | AF68: 209010.6597 | AG68: 1.302567263 | AH68: -3.97641903
A69: 2009-10-01 | B69: 149568.3803 | C69: 2.06168651 | D69: 1.179604523 | E69: 162346.6103 | F69: 0.7745378401 | G69: -0.001237347735 | H69: 161024.4189 | I69: 1.256117805 | J69: -0.2460074467 | K69: 162898.5291 | L69: 0.385430753 | M69: -1.802720771 | N69: 173365.9347 | O69: 0.1919961447 | P69: -2.300120384 | Q69: 221947.8248 | R69: 1.317948653 | S69: -0.7943840828 | T69: 347579.9824 | U69: 0.9240697553 | V69: 1.091938068 | W69: 264028.4552 | X69: 1.611265188 | Y69: -2.150221415 | Z69: 213956.7972 | AA69: 1.617692876 | AB69: -2.371668558 | AC69: 154229.8944 | AD69: 1.946053992 | AE69: -1.073206587 | AF69: 211490.1078 | AG69: 1.186278316 | AH69: -0.9684654113
A70: 2009-11-01 | B70: 150560.7843 | C70: 0.6635119296 | D70: 3.438758258 | E70: 163574.8616 | F70: 0.7565611116 | G70: 1.778894838 | H70: 161933.2145 | I70: 0.5643837356 | J70: 1.954066244 | K70: 163596.7929 | L70: 0.4286495508 | M70: -0.04473515523 | N70: 172582.8368 | O70: -0.4517023094 | P70: -0.9389258791 | Q70: 220613.1829 | R70: -0.6013313457 | S70: 1.048745804 | T70: 349765.6496 | U70: 0.628824239 | V70: 4.566996628 | W70: 264120.2393 | X70: 0.03476295976 | Y70: 0.9680206502 | Z70: 214332.9278 | AA70: 0.1757974244 | AB70: -0.1304265776 | AC70: 154612.7969 | AD70: 0.2482673683 | AE70: 0.9235707882 | AF70: 211918.5268 | AG70: 0.202571674 | AH70: 1.460873924
A71: 2009-12-01 | B71: 147909.9287 | C71: -1.760654735 | D71: 3.066488059 | E71: 164390.6742 | F71: 0.4987395679 | G71: 3.337602262 | H71: 164477.4433 | I71: 1.571159318 | J71: 4.550074074 | K71: 165732.4936 | L71: 1.305466117 | M71: 2.754389948 | N71: 177071.7023 | O71: 2.600991806 | P71: 2.837019147 | Q71: 227123.4021 | R71: 2.950965605 | S71: 5.371692985 | T71: 355982.2252 | U71: 1.777354528 | V71: 7.50218394 | W71: 270480.3083 | X71: 2.408020321 | Y71: 6.561436664 | Z71: 222990.8084 | AA71: 4.039454262 | AB71: 5.614520961 | AC71: 156283.345 | AD71: 1.080472064 | AE71: 2.912701682 | AF71: 216280.8355 | AG71: 2.058483838 | AH71: 5.205008924
A72: 2010-01-01 | B72: 150686.6439 | C72: 1.877301414 | D72: 5.394495061 | E72: 164918.0903 | F72: 0.3208309471 | G72: 3.23135372 | H72: 165652.9633 | I72: 0.714699799 | J72: 6.181832497 | K72: 168782.8247 | L72: 1.840514783 | M72: 5.777472929 | N72: 181562.8356 | O72: 2.536335994 | P72: 6.249795155 | Q72: 229991.2681 | R72: 1.262690688 | S72: 6.386745411 | T72: 364178.6023 | U72: 2.30246808 | V72: 11.04463758 | W72: 275024.2296 | X72: 1.679945335 | Y72: 9.854880413 | Z72: 226134.8977 | AA72: 1.409963642 | AB72: 8.733651055 | AC72: 155991.0682 | AD72: -0.1870171973 | AE72: 2.082228177 | AF72: 219556.6117 | AG72: 1.514593873 | AH72: 7.577276087
A73: 2010-02-01 | B73: 152686.6925 | C73: 1.327289891 | D73: 6.55311628 | E73: 165663.2827 | F73: 0.4518560612 | G73: 5.042783101 | H73: 166823.2276 | I73: 0.7064554056 | J73: 7.68932412 | K73: 170209.3726 | L73: 0.8451973272 | M73: 7.123872639 | N73: 184518.4927 | O73: 1.627897651 | P73: 8.625535333 | Q73: 235964.9704 | R73: 2.597360436 | S73: 9.644522934 | T73: 373189.7362 | U73: 2.474372148 | V73: 14.53940267 | W73: 280484.3034 | X73: 1.985306431 | Y73: 12.60468112 | Z73: 230210.4532 | AA73: 1.802267402 | AB73: 11.8822053 | AC73: 157115.8389 | AD73: 0.7210481433 | AE73: 3.50343285 | AF73: 223316.7381 | AG73: 1.712599933 | AH73: 10.15039296
A74: 2010-03-01 | B74: 154740.2068 | C74: 1.344920297 | D74: 8.362557197 | E74: 166232.0049 | F74: 0.3433000541 | G74: 5.486632727 | H74: 164825.8905 | I74: -1.197277555 | J74: 7.588672965 | K74: 168346.4531 | L74: -1.094487055 | M74: 6.189818731 | N74: 181436.7484 | O74: -1.670154705 | P74: 8.366590012 | Q74: 233868.1792 | R74: -0.8886027175 | S74: 9.917163786 | T74: 372109.6958 | U74: -0.2894078612 | V74: 15.50385915 | W74: 279335.3957 | X74: -0.4096156667 | Y74: 13.04437808 | Z74: 227438.2218 | AA74: -1.204216142 | AB74: 11.21703447 | AC74: 155841.7966 | AD74: -0.810893666 | AE74: 3.319312527 | AF74: 221919.0409 | AG74: -0.6258810898 | AH74: 10.35724876
A75: 2010-04-01 | B75: 152638.3367 | C75: -1.358321868 | D75: 6.58811782 | E75: 166682.639 | F75: 0.271087476 | G75: 6.784741 | H75: 164003.5457 | I75: -0.4989172464 | J75: 8.099707044 | K75: 167475.9465 | L75: -0.5170923068 | M75: 6.490812942 | N75: 179477.9627 | O75: -1.079597018 | P75: 7.704520591 | Q75: 233760.6633 | R75: -0.04597285893 | S75: 10.99722021 | T75: 368866.1607 | U75: -0.8716609879 | V75: 14.96796229 | W75: 279051.9829 | X75: -0.1014596684 | Y75: 12.41867136 | Z75: 228125.1138 | AA75: 0.3020125687 | AB75: 11.60644135 | AC75: 155083.9035 | AD75: -0.4863220892 | AE75: 4.647368576 | AF75: 221188.1381 | AG75: -0.3293556239 | AH75: 10.45473912
A76: 2010-05-01 | B76: 150550.8176 | C76: -1.3676244 | D76: 5.703913326 | E76: 166421.343 | F76: -0.1567625707 | G76: 6.655496801 | H76: 163085.6787 | I76: -0.559662937 | J76: 7.728188907 | K76: 167752.1984 | L76: 0.1649502179 | M76: 6.920622347 | N76: 178527.0784 | O76: -0.5298055943 | P76: 7.114774568 | Q76: 234751.147 | R76: 0.4237169954 | S76: 11.39007767 | T76: 366875.9265 | U76: -0.5395545718 | V76: 12.97083289 | W76: 281174.3245 | X76: 0.7605541779 | Y76: 13.35599467 | Z76: 230058.9084 | AA76: 0.847690363 | AB76: 11.31666642 | AC76: 154750.5587 | AD76: -0.2149447915 | AE76: 5.103360517 | AF76: 221378.2741 | AG76: 0.0859612198 | AH76: 10.27721322
A77: 2010-06-01 | B77: 150433.9298 | C77: -0.07764012061 | D77: 5.269521291 | E77: 164645.2844 | F77: -1.067206028 | G77: 5.829949051 | H77: 162578.0129 | I77: -0.3112877695 | J77: 6.937272778 | K77: 168822.3953 | L77: 0.6379629222 | M77: 7.216529475 | N77: 180212.1957 | O77: 0.9439001059 | P77: 5.802792198 | Q77: 236557.7157 | R77: 0.7695675601 | S77: 11.24120642 | T77: 371942.533 | U77: 1.38101361 | V77: 13.47854649 | W77: 282370.1854 | X77: 0.425309424 | Y77: 12.48221896 | Z77: 228879.2339 | AA77: -0.5127706347 | AB77: 10.47638852 | AC77: 155187.0791 | AD77: 0.2820800342 | AE77: 5.491245351 | AF77: 222173.6692 | AG77: 0.3592923218 | AH77: 9.852001745
A78: 2010-07-01 | B78: 149771.1442 | C78: -0.4405824955 | D78: 5.578647528 | E78: 163871.7482 | F78: -0.4698198508 | G78: 4.036386207 | H78: 162745.0149 | I78: 0.1027211832 | J78: 5.690466288 | K78: 167972.7191 | L78: -0.5032959133 | M78: 5.254264183 | N78: 179904.6842 | O78: -0.1706385353 | P78: 5.173160559 | Q78: 238224.8129 | R78: 0.7047317128 | S78: 10.99001641 | T78: 376024.9839 | U78: 1.097602607 | V78: 13.06148504 | W78: 284058.4943 | X78: 0.5979062502 | Y78: 12.68201272 | Z78: 229309.7069 | AA78: 0.1880786866 | AB78: 9.997049858 | AC78: 154998.6121 | AD78: -0.1214450514 | AE78: 5.160353944 | AF78: 222900.3104 | AG78: 0.3270599968 | AH78: 9.288739991
A79: 2010-08-01 | B79: 149013.7598 | C79: -0.5056944696 | D79: 4.035657775 | E79: 164494.6845 | F79: 0.3801365238 | G79: 3.339503086 | H79: 163971.0192 | I79: 0.7533282792 | J79: 4.82102554 | K79: 167868.4655 | L79: -0.06206579781 | M79: 4.476230745 | N79: 181859.0488 | O79: 1.086333357 | P79: 4.949546656 | Q79: 239101.8608 | R79: 0.3681597488 | S79: 9.893824395 | T79: 378815.6219 | U79: 0.7421416447 | V79: 12.60944199 | W79: 284513.0676 | X79: 0.1600280625 | Y79: 11.16130039 | Z79: 228699.7973 | AA79: -0.2659763805 | AB79: 9.470149507 | AC79: 155439.9778 | AD79: 0.2847546037 | AE79: 3.826598108 | AF79: 223656.3582 | AG79: 0.3391864901 | AH79: 8.400994012
A80: 2010-09-01 | B80: 150052.754 | C80: 0.6972471684 | D80: 2.392210953 | E80: 165593.6286 | F80: 0.6680726941 | G80: 2.790082052 | H80: 164157.3614 | I80: 0.113643406 | J80: 3.226189179 | K80: 167764.7243 | L80: -0.0617990584 | M80: 3.384200002 | N80: 181772.7927 | O80: -0.04743022725 | P80: 5.050504703 | Q80: 238867.3755 | R80: -0.0980692099 | S80: 9.041629515 | T80: 376540.3742 | U80: -0.6006214005 | V80: 9.333071282 | W80: 283629.4755 | X80: -0.310562941 | Y80: 9.154711489 | Z80: 229425.0051 | AA80: 0.3171003518 | AB80: 8.964239567 | AC80: 155489.5724 | AD80: 0.03190598153 | AE80: 2.778701944 | AF80: 223514.2708 | AG80: -0.06352930426 | AH80: 6.939172956
A81: 2010-10-01 | B81: 150483.8012 | C81: 0.2872637726 | D81: 0.612041788 | E81: 164873.6366 | F81: -0.434794516 | G81: 1.556562407 | H81: 162755.2509 | I81: -0.8541258969 | J81: 1.074887902 | K81: 167513.5761 | L81: -0.1497026144 | M81: 2.833080834 | N81: 181638.3187 | O81: -0.07397913407 | P81: 4.771631756 | Q81: 236960.8763 | R81: -0.7981413164 | S81: 6.764225545 | T81: 376049.721 | U81: -0.1303056216 | V81: 8.190845265 | W81: 282034.4599 | X81: -0.5623589135 | Y81: 6.819721257 | Z81: 228846.825 | AA81: -0.2520126829 | AB81: 6.959361886 | AC81: 154618.0159 | AD81: -0.5605241128 | AE81: 0.2516512756 | AF81: 222622.4218 | AG81: -0.3990120955 | AH81: 5.263751661
A82: 2010-11-01 | B82: 148710.3963 | C82: -1.178468978 | D82: -1.228997298 | E82: 163444.2673 | F82: -0.866948361 | G82: -0.07983763747 | H82: 161785.2708 | I82: -0.5959746534 | J82: -0.09136092062 | K82: 166415.906 | L82: -0.6552723206 | M82: 1.723208045 | N82: 179609.2773 | O82: -1.117077849 | P82: 4.071343728 | Q82: 234058.3686 | R82: -1.22488898 | S82: 6.094461565 | T82: 376138.4366 | U82: 0.0235914605 | V82: 7.540130657 | W82: 279369.0357 | X82: -0.9450703768 | Y82: 5.77342974 | Z82: 227560.7796 | AA82: -0.561967801 | AB82: 6.171637707 | AC82: 152784.689 | AD82: -1.185713654 | AE82: -1.182378151 | AF82: 220968.7242 | AG82: -0.7428261679 | AH82: 4.270602263
A83: 2010-12-01 | B83: 147024.9541 | C83: -1.133372164 | D83: -0.5983199634 | E83: 163079.1252 | F83: -0.2234046655 | G83: -0.7978244437 | H83: 160456.6083 | I83: -0.8212506211 | J83: -2.444611812 | K83: 165320.2378 | L83: -0.6583915145 | M83: -0.2487477251 | N83: 178750.689 | O83: -0.478031146 | P83: 0.9481959857 | Q83: 234295.6418 | R83: 0.1013735114 | S83: 3.15786027 | T83: 378861.2168 | U83: 0.7238771655 | V83: 6.427003934 | W83: 279237.4014 | X83: -0.04711844042 | Y83: 3.237608361 | Z83: 230183.3401 | AA83: 1.152465973 | AB83: 3.225483511 | AC83: 151396.6132 | AD83: -0.9085175766 | AE83: -3.126841035 | AF83: 221056.1069 | AG83: 0.03954524517 | AH83: 2.207903161
A84: 2011-01-01 | B84: 146890.6198 | C84: -0.09136837237 | D84: -2.519151017 | E84: 162626.6049 | F84: -0.2774851162 | G84: -1.389468817 | H84: 160974.0098 | I84: 0.322455687 | J84: -2.824551649 | K84: 165341.6586 | L84: 0.01295712116 | M84: -2.038812963 | N84: 178477.2041 | O84: -0.1529979917 | P84: -1.699484094 | Q84: 234439.0083 | R84: 0.06119045008 | S84: 1.933873501 | T84: 380923.3791 | U84: 0.5443054616 | V84: 4.597957348 | W84: 281991.2709 | X84: 0.986210834 | Y84: 2.533246351 | Z84: 228307.4227 | AA84: -0.8149666366 | AB84: 0.9607208043 | AC84: 151726.6494 | AD84: 0.2179944603 | AE84: -2.733758316 | AF84: 221524.1939 | AG84: 0.2117503142 | AH84: 0.8961616355
A85: 2011-02-01 | B85: 150418.9654 | C85: 2.402022407 | D85: -1.485215952 | E85: 162449.6122 | F85: -0.1088337782 | G85: -1.939880975 | H85: 159882.4378 | I85: -0.6781044618 | J85: -4.160565565 | K85: 165274.9714 | L85: -0.04033297336 | M85: -2.899018523 | N85: 177345.3072 | O85: -0.6341968624 | P85: -3.887515755 | Q85: 236562.7318 | R85: 0.9058746032 | S85: 0.2533263388 | T85: 387133.9181 | U85: 1.630390603 | V85: 3.736485901 | W85: 286394.7822 | X85: 1.561577178 | Y85: 2.107240513 | Z85: 229277.3536 | AA85: 0.4248354864 | AB85: -0.4053245952 | AC85: 152563.8789 | AD85: 0.551801215 | AE85: -2.897199949 | AF85: 223236.1306 | AG85: 0.7727989989 | AH85: -0.03609559753
A86: 2011-03-01 | B86: 149458.3387 | C86: =B86/B85*100-100 -> -0.6386340422 | D86: -3.413377984 | E86: 161130.9261 | F86: =E86/E85*100-100 -> -0.8117508304 | G86: -3.068650182 | H86: 160547.7013 | I86: 0.4160954167 | J86: -2.595580822 | K86: 164508.659 | L86: =K86/K85*100-100 -> -0.4636590612 | M86: -2.279699989 | N86: 176675.6429 | O86: =N86/N85*100-100 -> -0.3776047762 | P86: -2.62411313 | Q86: 236741.438 | R86: =Q86/Q85*100-100 -> 0.07554282931 | S86: 1.228580455 | T86: 390494.2065 | U86: =T86/T85*100-100 -> 0.867991214 | V86: 4.940615876 | W86: 289157.3374 | X86: =W86/W85*100-100 -> 0.9645969006 | Y86: 3.516182291 | Z86: 226685.3026 | AA86: =Z86/Z85*100-100 -> -1.130530767 | AB86: -0.3310433779 | AC86: 152387.1067 | AD86: =AC86/AC85*100-100 -> -0.1158676924 | AE86: -2.21679289 | AF86: 223499.3714 | AG86: =AF86/AF85*100-100 -> 0.117920312 | AH86: 0.7121202664
A87: 2011-04-01 | B87: 148286.14 | C87: -0.7842979502 | D87: -2.85131302 | E87: 159626.6888 | F87: -0.9335497219 | G87: -4.233164426 | H87: 159763.1257 | I87: -0.4886869107 | J87: -2.585566058 | K87: 163490.8236 | L87: -0.6187123334 | M87: -2.379519543 | N87: 175939.2212 | O87: -0.4168212921 | P87: -1.971685803 | Q87: 235340.9532 | R87: -0.591567206 | S87: 0.6760290184 | T87: 385386.1235 | U87: -1.308107245 | V87: 4.478579092 | W87: 283510.5671 | X87: -1.952836618 | Y87: 1.597761129 | Z87: 226713.2919 | AA87: 0.01234719405 | AB87: -0.6188805302 | AC87: 150311.5989 | AD87: -1.361997012 | AE87: -3.07724046 | AF87: 221266.4085 | AG87: -0.9990913223 | AH87: 0.03538638317
A88: 2011-05-01 | B88: 146560.9133 | C88: -1.163444292 | D88: -2.650204314 | E88: 157800.4702 | F88: -1.144055926 | G88: -5.180148547 | H88: 157917.5272 | I88: =H88/H87*100-100 -> -1.155209306 | J88: =H88/H76*100-100 -> -3.16897933 | K88: 162364.2453 | L88: -0.6890774099 | M88: -3.211852481 | N88: 175787.0495 | O88: -0.08649102935 | P88: -1.534797349 | Q88: 232940.6309 | R88: -1.019933978 | S88: -0.7712490914 | T88: 375236.5461 | U88: -2.633612579 | V88: 2.278868401 | W88: 279215.4263 | X88: -1.514984355 | Y88: -0.6966845715 | Z88: 225549.3935 | AA88: -0.5133789839 | AB88: -1.960156616 | AC88: 148550.5933 | AD88: -1.171569945 | AE88: -4.006425192 | AF88: 218384.5233 | AG88: -1.302450428 | AH88: -1.352323681
A89: 2011-06-01 | B89: 145019.1465 | C89: -1.051963177 | D89: -3.59944281 | E89: 158069.634 | F89: 0.1705722244 | G89: -3.993828569 | H89: 156414.622 | I89: -0.9517026082 | J89: -3.791035941 | K89: 163088.0619 | L89: 0.4457980254 | M89: -3.396666281 | N89: 174070.1622 | O89: -0.9766859279 | P89: -3.408223012 | Q89: 231313.0767 | R89: -0.6986991584 | S89: -2.217065284 | T89: 369889.6908 | U89: -1.424929231 | V89: -0.5519245487 | W89: 276793.8271 | X89: -0.867287028 | Y89: -1.97483959 | Z89: 223545.5313 | AA89: -0.888436092 | AB89: -2.330356719 | AC89: 148667.9425 | AD89: 0.07899612253 | AE89: -4.200824338 | AF89: 216737.8023 | AG89: -0.7540465572 | AH89: -2.446674696
A90: 2011-07-01 | B90: 141275.8895 | C90: -2.581215742 | D90: -5.672157204 | E90: 159618.9388 | F90: 0.9801406945 | G90: -2.595205955 | H90: 156373.1508 | I90: -0.02651364514 | J90: -3.915243842 | K90: 163460.4613 | L90: 0.2283425517 | M90: -2.686303909 | N90: 173231.3127 | O90: -0.4819030524 | P90: -3.709392852 | Q90: 232475.8348 | R90: 0.5026772217 | S90: -2.413257466 | T90: 376434.3435 | U90: 1.769352535 | V90: 0.1088649833 | W90: 278928.5184 | X90: 0.7712206868 | Y90: -1.805957591 | Z90: 223568.927 | AA90: 0.01046575184 | AB90: -2.503504984 | AC90: 149497.6185 | AD90: 0.5580732056 | AE90: -3.549059913 | AF90: 217942.142 | AG90: 0.5556666731 | AH90: -2.224388291
A91: 2011-08-01 | B91: 139372.1133 | C91: -1.347559113 | D91: -6.470306156 | E91: 160150.338 | F91: 0.3329174086 | G91: -2.64102546 | H91: 157946.3713 | I91: 1.006068163 | J91: -3.674215079 | K91: 164008.6391 | L91: 0.3353579914 | M91: -2.299315943 | N91: 174414.7944 | O91: 0.683180006 | P91: -4.093419848 | Q91: 233497.5604 | R91: 0.4394975657 | S91: -2.343896573 | T91: 383716.1448 | U91: 1.934414728 | V91: 1.293643301 | W91: 281009.9906 | X91: 0.7462385605 | Y91: -1.231253494 | Z91: 223438.5383 | AA91: -0.05832147965 | AB91: -2.300508812 | AC91: 151277.3799 | AD91: 1.190494788 | AE91: -2.677945529 | AF91: 219537.4736 | AG91: 0.731997769 | AH91: -1.841612982
A92: 2011-09-01 | B92: 139088.8299 | C92: -0.2032569242 | D92: -7.306713053 | E92: 159693.2772 | F92: -0.2853948397 | G92: -3.563151203 | H92: 157694.0829 | I92: -0.1597304171 | J92: -3.937245643 | K92: 163830.5877 | L92: -0.1085622023 | M92: -2.345032107 | N92: 174310.3686 | O92: -0.05987212712 | P92: -4.105358111 | Q92: 232870.7851 | R92: -0.2684290796 | S92: -2.510426699 | T92: 385776.0259 | U92: 0.5368241836 | V92: 2.452765309 | W92: 279509.2717 | X92: -0.5340446607 | Y92: -1.452671229 | Z92: 225080.8074 | AA92: 0.7349981303 | AB92: -1.893515386 | AC92: 151532.0796 | AD92: 0.1683660598 | AE92: -2.545182137 | AF92: 219501.557 | AG92: -0.01636012984 | AH92: -1.795283048
A93: 2011-10-01 | B93: 140999.5557 | C93: 1.373745017 | D93: -6.302502609 | E93: 158857.0791 | F93: -0.5236276266 | G93: -3.649193162 | H93: 157111.6877 | I93: -0.3693195854 | J93: -3.467515258 | K93: 163464.6089 | L93: -0.223388548 | M93: -2.417097966 | N93: 175455.7553 | O93: 0.6570961363 | P93: -3.403777075 | Q93: 233072.8761 | R93: 0.08678246946 | S93: -1.640777244 | T93: 388271.6057 | U93: 0.6468986336 | V93: 3.250071495 | W93: 278407.9448 | X93: -0.3940215843 | Y93: -1.285841103 | Z93: 225160.183 | AA93: 0.03526538692 | AB93: -1.610964908 | AC93: 154455.4098 | AD93: 1.92918239 | AE93: -0.1051663226 | AF93: 219753.3367 | AG93: 0.1147051763 | AH93: -1.288767397
A94: 2011-11-01 | B94: 140040.2338 | C94: -0.6803723381 | D94: -5.830232971 | E94: 158033.5346 | F94: -0.5184185452 | G94: -3.310445101 | H94: 156552.439 | I94: -0.3559561747 | J94: -3.23443033 | K94: 163906.5654 | L94: 0.2703682882 | M94: -1.507873099 | N94: 173805.6316 | O94: -0.9404785376 | P94: -3.231261679 | Q94: 230874.889 | R94: -0.9430471402 | S94: -1.360122087 | T94: 386509.2594 | U94: -0.4538952433 | V94: 2.757182412 | W94: 275776.8807 | X94: -0.9450391791 | Y94: -1.285810013 | Z94: 223453.6698 | AA94: -0.7579107179 | AB94: -1.804840773 | AC94: 153968.8951 | AD94: -0.314987143 | AE94: 0.7750816984 | AF94: 218338.2675 | AG94: -0.6439352167 | AH94: -1.190420373
A95: 2011-12-01 | B95: 139858.7193 | C95: -0.1296159535 | D95: -4.874162247 | E95: 156611.7307 | F95: -0.8996849341 | G95: -3.96580158 | H95: 157886.4056 | I95: 0.8520893072 | J95: -1.601805474 | K95: 163484.6655 | L95: -0.2574026713 | M95: -1.110313157 | N95: 175211.1444 | O95: 0.8086693101 | P95: -1.980157213 | Q95: 230930.9434 | R95: 0.02427911991 | S95: -1.436090888 | T95: 388192.6949 | U95: 0.4355485708 | V95: 2.463033349 | W95: 274414.7686 | X95: -0.493918158 | Y95: -1.727072651 | Z95: 224582.2439 | AA95: 0.5050595133 | AB95: -2.433319572 | AC95: 153156.5251 | AD95: -0.5276195794 | AE95: 1.162451287 | AF95: 218402.7074 | AG95: 0.0295137612 | AH95: -1.200328522
A96: 2012-01-01 | B96: 141235.9214 | C96: 0.9847095133 | D96: -3.849598015 | E96: 156916.597 | F96: 0.1946637957 | G96: -3.511115471 | H96: 158062.9379 | I96: 0.1118097011 | J96: -1.808411109 | K96: 164191.8574 | L96: 0.4325738478 | M96: -0.6954092501 | N96: 175674.4422 | O96: 0.2644225814 | P96: -1.570375265 | Q96: 232169.1023 | R96: 0.5361597915 | S96: -0.9682288253 | T96: 389433.1006 | U96: 0.3195334785 | V96: 2.233971951 | W96: 276124.1765 | X96: 0.6229285415 | Y96: -2.080594326 | Z96: 224365.0918 | AA96: -0.09669155766 | AB96: -1.726764231 | AC96: 151577.1146 | AD96: -1.031239465 | AE96: -0.09855544972 | AF96: 219080.3714 | AG96: 0.3102818862 | AH96: -1.103185353
A97: 2012-02-01 | B97: 143945.4877 | C97: 1.918468261 | D97: =B97/B85*100-100 -> -4.30363129 | E97: 158599.866 | F97: 1.07271573 | G97: =E97/E85*100-100 -> -2.369809404 | H97: 158629.5375 | I97: 0.3584645701 | J97: -0.7836384778 | K97: 165043.5979 | L97: 0.5187470865 | M97: =K97/K85*100-100 -> -0.1399930688 | N97: 175896.2406 | O97: 0.1262553901 | P97: =N97/N85*100-100 -> -0.8170876404 | Q97: 233151.8639 | R97: 0.4232956284 | S97: =Q97/Q85*100-100 -> -1.441844963 | T97: 389940.6049 | U97: 0.1303187531 | V97: =T97/T85*100-100 -> 0.7249911974 | W97: 277487.5174 | X97: 0.4937419545 | Y97: =W97/W85*100-100 -> -3.110135155 | Z97: 223616.7553 | AA97: -0.3335351789 | AB97: =Z97/Z85*100-100 -> -2.468886823 | AC97: 151650.5929 | AD97: 0.04847587824 | AE97: =AC97/AC85*100-100 -> -0.5986253402 | AF97: 219882.6732 | AG97: 0.3662134388 | AH97: =AF97/AF85*100-100 -> -1.502201925
A98: 2012-03-01 | B98: 145907.5906 | C98: 1.36308746 | D98: -2.375744358 | E98: 159371.7698 | F98: 0.486698882 | G98: -1.091755865 | H98: 157177.1968 | I98: -0.915555061 | J98: -2.099378894 | K98: 165417.1816 | L98: 0.2263545405 | M98: 0.5522642756 | N98: 175108.2114 | O98: -0.4480079998 | P98: -0.8871802811 | Q98: 235761.4702 | R98: 1.119273174 | S98: -0.4139401006 | T98: 395652.4447 | U98: 1.464797395 | V98: 1.32095129 | W98: 283169.1689 | X98: 2.047534075 | Y98: -2.070903189 | Z98: 223965.0798 | AA98: 0.1557685322 | AB98: -1.199999638 | AC98: 152699.008 | AD98: 0.6913359906 | AE98: 0.2046769849 | AF98: 221844.0721 | AG98: 0.8920206766 | AH98: -0.740628161
A99: 2012-04-01 | B99: 144811.6379 | C99: -0.7511279398 | D99: -2.343106404 | E99: 158252.7648 | F99: -0.7021349969 | G99: -0.8607107022 | H99: 158228.3184 | I99: 0.6687494449 | J99: -0.9606768254 | K99: 165384.7374 | L99: -0.01961351987 | M99: 1.158422071 | N99: 173620.3658 | O99: -0.8496721135 | P99: -1.317986628 | Q99: 235042.7114 | R99: -0.3048669594 | S99: -0.1267275661 | T99: 402552.9792 | U99: 1.744089921 | V99: 4.454456096 | W99: 285093.5822 | X99: 0.6795984538 | Y99: 0.5583619532 | Z99: 224949.475 | AA99: 0.4395306442 | AB99: -0.7779944937 | AC99: 153016.5654 | AD99: 0.2079629384 | AE99: 1.799572714 | AF99: 222701.6675 | AG99: 0.3865757552 | AH99: 0.6486564984
A100: 2012-05-01 | B100: 143682.2664 | C100: -0.7798900192 | D100: -1.964130037 | E100: 157345.5406 | F100: -0.573275428 | G100: -0.2882942079 | H100: 158378.5091 | I100: 0.0949202792 | J100: 0.2919130899 | K100: 164837.2751 | L100: -0.3310234625 | M100: 1.523136962 | N100: 174257.2276 | O100: 0.3668128766 | P100: -0.8702699722 | Q100: 238001.3468 | R100: 1.258765023 | S100: 2.172534652 | T100: 412890.6837 | U100: 2.568035777 | V100: 10.03477354 | W100: 288241.2649 | X100: 1.104087528 | Y100: 3.232571595 | Z100: 228696.4076 | AA100: 1.665677423 | AB100: 1.395266037 | AC100: 152745.5765 | AD100: -0.1770977171 | AE100: 2.823942401 | AF100: 224917.1166 | AG100: 0.9948058008 | AH100: 2.99132614
A101: 2012-06-01 | B101: 143137.1031 | C101: -0.3794228146 | D101: -1.297789585 | E101: 157724.148 | F101: 0.2406216418 | G101: -0.2185656764 | H101: 159295.7764 | I101: 0.5791614255 | J101: 1.841998116 | K101: 165136.2807 | L101: 0.1813943578 | M101: 1.255897413 | N101: 174507.6345 | O101: 0.1436995542 | P101: 0.2513195385 | Q101: 237568.0278 | R101: -0.1820657932 | S101: 2.704106141 | T101: 414383.7699 | U101: 0.3616177967 | V101: 12.02901301 | W101: 287286.4944 | X101: -0.3312400296 | Y101: 3.790788035 | Z101: 227471.824 | AA101: -0.5354625553 | AB101: 1.756372696 | AC101: 152121.6777 | AD101: -0.4084562419 | AE101: 2.323120292 | AF101: 224850.9059 | AG101: -0.02943780572 | AH101: 3.743280388
A102: 2012-07-01 | B102: 142503.1184 | C102: -0.4429213045 | D102: 0.868675426 | E102: 157126.7583 | F102: -0.3787560223 | G102: -1.561331319 | H102: 157640.5559 | I102: -1.039086252 | J102: 0.8105004532 | K102: 164371.7685 | L102: -0.4629582944 | M102: 0.5575092549 | N102: 174525.7818 | O102: 0.01039912192 | P102: 0.7472488629 | Q102: 238350.1497 | R102: 0.3292202027 | S102: 2.526849688 | T102: 414855.4732 | U102: 0.1138324727 | V102: 10.20659522 | W102: 288129.651 | X102: 0.2934898221 | Y102: 3.298742165 | Z102: 226559.7682 | AA102: -0.400953304 | AB102: 1.337771398 | AC102: 151509.6906 | AD102: -0.4023010522 | AE102: 1.345889051 | AF102: 224671.7056 | AG102: -0.07969741534 | AH102: 3.087775263
A103: 2012-08-01 | B103: 142172.3974 | C103: -0.2320798511 | D103: 2.009214014 | E103: 158521.6335 | F103: 0.8877388153 | G103: -1.016984737 | H103: 157694.8032 | I103: 0.03441202324 | J103: -0.1592743685 | K103: 163471.4736 | L103: -0.5477187032 | M103: -0.3275226488 | N103: 174256.1592 | O103: -0.1544886462 | P103: -0.09095283239 | Q103: 237887.7478 | R103: -0.1940011106 | S103: 1.880185526 | T103: 413073.7812 | U103: -0.429472927 | V103: 7.650873383 | W103: 286923.8591 | X103: -0.4184893589 | Y103: 2.104504735 | Z103: 225883.9089 | AA103: -0.2983138985 | AB103: 1.094426506 | AC103: 150811.7616 | AD103: -0.4606497171 | AE103: -0.3077910516 | AF103: 224181.6561 | AG103: -0.2181180006 | AH103: 2.11543953
A104: 2012-09-01 | B104: 141668.7098 | C104: -0.3542794674 | D104: 1.854843335 | E104: 157756.0806 | F104: -0.4829328191 | G104: -1.213073412 | H104: 157884.9116 | I104: 0.120554679 | J104: 0.1210120078 | K104: 163932.2836 | L104: 0.2818901299 | M104: 0.06207381806 | N104: 174103.3067 | O104: -0.08771714432 | P104: -0.11878919 | Q104: 238698.3374 | R104: 0.3407445722 | S104: 2.502483201 | T104: 418049.341 | U104: 1.204520827 | V104: 8.365816663 | W104: 285979.7555 | X104: -0.3290432758 | Y104: 2.314944225 | Z104: 223846.9573 | AA104: -0.9017692132 | AB104: -0.5481809189 | AC104: 151460.736 | AD104: 0.4303207999 | AE104: -0.04708153109 | AF104: 224359.6572 | AG104: 0.0794003918 | AH104: 2.213241808
A105: 2012-10-01 | B105: 143170.9109 | C105: 1.060361996 | D105: 1.539973065 | E105: 158693.7187 | F105: 0.5943594537 | G105: -0.1028348201 | H105: 157775.9092 | I105: -0.06903914701 | J105: 0.422770274 | K105: 164638.2084 | L105: 0.430619772 | M105: 0.7179532656 | N105: 174633.4171 | O105: 0.3044803703 | P105: -0.4686869221 | Q105: 239133.334 | R105: 0.1822369753 | S105: 2.600241602 | T105: 418675.5261 | U105: 0.149787381 | V105: 7.830580431 | W105: 285044.8883 | X105: -0.3268997629 | Y105: 2.383891546 | Z105: 224570.2649 | AA105: 0.3231259463 | AB105: -0.2619992793 | AC105: 152063.6013 | AD105: 0.3980340642 | AE105: -1.548543037 | AF105: 224714.8725 | AG105: 0.1583240503 | AH105: 2.257774992
A106: 2012-11-01 | B106: 142784.1351 | C106: -0.2701496904 | D106: 1.959366468 | E106: 156763.8885 | F106: -1.216072194 | G106: -0.8034029127 | H106: 157749.5132 | I106: -0.01673005533 | J106: 0.7646474736 | K106: 165266.9243 | L106: 0.3818772689 | M106: 0.8299599979 | N106: 174378.1759 | O106: -0.1461583114 | P106: 0.3294164197 | Q106: 237454.8376 | R106: -0.70190816 | S106: 2.850006176 | T106: 423049.4469 | U106: 1.044704204 | V106: 9.45389707 | W106: 285655.1708 | X106: 0.214100479 | Y106: 3.581986301 | Z106: 222993.2228 | AA106: -0.7022488424 | AB106: -0.2060592621 | AC106: 152001.9617 | AD106: -0.04053544194 | AE106: -1.277487549 | AF106: 224665.3303 | AG106: -0.0220467191 | AH106: 2.897825845
A107: 2012-12-01 | B107: 142099.2604 | C107: =B107/B106*100-100 -> -0.479657446 | D107: =B107/B95*100-100 -> 1.60200318 | E107: 156810.6776 | F107: =E107/E106*100-100 -> 0.02984684837 | G107: =E107/E95*100-100 -> 0.1270319668 | H107: 156983.6983 | I107: -0.4854626426 | J107: -0.5717447779 | K107: 164637.5022 | L107: =K107/K106*100-100 -> -0.3808518275 | M107: =K107/K95*100-100 -> 0.7051650375 | N107: 175285.0778 | O107: =N107/N106*100-100 -> 0.5200776921 | P107: =N107/N95*100-100 -> 0.04219679048 | Q107: 238222.7123 | R107: =Q107/Q106*100-100 -> 0.3233771297 | S107: =Q107/Q95*100-100 -> 3.157553828 | T107: 422469.3559 | U107: =T107/T106*100-100 -> -0.1371213305 | V107: =T107/T95*100-100 -> 8.829805766 | W107: 288203.6957 | X107: =W107/W106*100-100 -> 0.8921682985 | Y107: =W107/W95*100-100 -> 5.024848744 | Z107: 225979.6057 | AA107: =Z107/Z106*100-100 -> 1.339225834 | AB107: =Z107/Z95*100-100 -> 0.6222049546 | AC107: 151634.3712 | AD107: =AC107/AC106*100-100 -> -0.2418326991 | AE107: =AC107/AC95*100-100 -> -0.9938550601 | AF107: 225374.4669 | AG107: =AF107/AF106*100-100 -> 0.3156413438 | AH107: =AF107/AF95*100-100 -> 3.192158038
A108: 2013-01-01 | B108: 141676.5112 | C108: -0.2975027452 | D108: 0.3119530861 | E108: 157406.5415 | F108: 0.3799893706 | G108: 0.3122324461 | H108: 157371.7162 | I108: 0.2471708612 | J108: -0.4373078517 | K108: 164811.9247 | L108: 0.1059433877 | M108: 0.3776480464 | N108: 176267.8114 | O108: 0.5606487376 | P108: 0.3377663918 | Q108: 237755.9144 | R108: -0.1959501768 | S108: 2.406354721 | T108: 428054.8395 | U108: 1.322103847 | V108: 9.91742584 | W108: 288585.9108 | X108: 0.1326197958 | Y108: 4.513090613 | Z108: 225542.9957 | AA108: -0.1932076994 | AB108: 0.5249942901 | AC108: 150804.9164 | AD108: -0.5470097714 | AE108: -0.5094424533 | AF108: 226074.7247 | AG108: 0.3107085543 | AH108: 3.192596964
A109: 2013-02-01 | B109: 143962.622 | C109: 1.613613153 | D109: 0.01190333262 | E109: 159683.1899 | F109: 1.446349247 | G109: 0.6830546995 | H109: 157228.8672 | I109: -0.09077171942 | J109: -0.8829820117 | K109: 166655.8931 | L109: 1.11883191 | M109: 0.9768905255 | N109: 178055.8765 | O109: 1.01440249 | P109: 1.227789652 | Q109: 241965.5645 | R109: 1.770576365 | S109: 3.780240213 | T109: 430846.4747 | U109: 0.6521676549 | V109: 10.49028218 | W109: 290230.6909 | X109: 0.569944693 | Y109: 4.592341157 | Z109: 226579.7269 | AA109: 0.4596600979 | AB109: 1.325022171 | AC109: 152701.4511 | AD109: 1.25760804 | AE109: 0.6929470067 | AF109: 228047.2197 | AG109: 0.8724969117 | AH109: 3.713137738
A110: 2013-03-01 | B110: 144292.7663 | C110: 0.2293263562 | D110: -1.106744577 | E110: 159762.4233 | F110: 0.04961915977 | G110: 0.2451209026 | H110: 157750.531 | I110: 0.3317862381 | J110: 0.3647693387 | K110: 165876.9898 | L110: -0.4673722419 | M110: 0.2779688329 | N110: 177239.2587 | O110: -0.458630084 | P110: 1.216988762 | Q110: 241870.9138 | R110: -0.03911742058 | S110: 2.591366418 | T110: 437784.2491 | U110: 1.610266023 | V110: 10.64869052 | W110: 292313.1143 | X110: 0.7175062642 | Y110: 3.229145821 | Z110: 225760.12 | AA110: -0.3617299864 | AB110: 0.8014821931 | AC110: 152365.3546 | AD110: -0.2201004412 | AE110: -0.2185040077 | AF110: 228934.1185 | AG110: 0.3889101683 | AH110: 3.195959381
A111: 2013-04-01 | B111: 144123.0187 | C111: -0.1176411127 | D111: -0.4755275839 | E111: 159475.3848 | F111: -0.1796658556 | G111: 0.7725741589 | H111: 158499.4734 | I111: 0.4747638044 | J111: 0.1713694587 | K111: 165772.8464 | L111: -0.06278349304 | M111: 0.2346703683 | N111: 176683.2666 | O111: -0.3136957552 | P111: 1.764136857 | Q111: 243851.5462 | R111: 0.8188799405 | S111: 3.747759177 | T111: 440171.4754 | U111: 0.545297438 | V111: 9.344980212 | W111: 292947.4874 | X111: 0.2170183601 | Y111: 2.754851637 | Z111: 226366.4029 | AA111: 0.2685518102 | AB111: 0.6298872068 | AC111: 152157.9408 | AD111: -0.1361291939 | AE111: -0.5611317462 | AF111: 229541.612 | AG111: 0.2653573489 | AH111: 3.071348599
A112: 2013-05-01 | B112: 142337.3599 | C112: -1.238982343 | D112: -0.9360281952 | E112: 158448.0416 | F112: -0.6442017577 | G112: 0.7006877637 | H112: 158683.1527 | I112: 0.1158863691 | J112: 0.1923515618 | K112: 164683.2758 | L112: -0.6572672572 | M112: -0.09342509688 | N112: 175404.7611 | O112: -0.7236143968 | P112: 0.6585284685 | Q112: 242567.1004 | R112: -0.5267326918 | S112: 1.918372981 | T112: 441969.2362 | U112: 0.4084228366 | V112: 7.042675869 | W112: 294144.206 | X112: 0.4085096097 | Y112: 2.047916759 | Z112: 226971.7128 | AA112: 0.2674027079 | AB112: -0.7541416064 | AC112: 151164.3593 | AD112: -0.6529935463 | AE112: -1.035196731 | AF112: 229395.1142 | AG112: -0.06382188918 | AH112: 1.990954584
A113: 2013-06-01 | B113: 143581.1171 | C113: 0.8738093927 | D113: 0.3102018865 | E113: 159841.3159 | F113: 0.8793257052 | G113: 1.342323234 | H113: 159007.956 | I113: 0.204686693 | J113: -0.1806830064 | K113: 166169.9169 | L113: 0.9027274613 | M113: 0.6259292324 | N113: 177124.3081 | O113: 0.9803308678 | P113: 1.499460821 | Q113: 243653.2284 | R113: 0.4477639748 | S113: 2.561456067 | T113: 442412.6591 | U113: 0.1003288933 | V113: 6.763993002 | W113: 292410.7792 | X113: -0.58931192 | Y113: 1.783684528 | Z113: 226322.5259 | AA113: -0.2860210773 | AB113: -0.5052485412 | AC113: 150231.8505 | AD113: -0.6168840507 | AE113: -1.242312881 | AF113: 229702.2918 | AG113: 0.1339076244 | AH113: 2.157601205
A114: 2013-07-01 | B114: 143656.4657 | C114: 0.0524780484 | D114: 0.8093488056 | E114: 160582.2387 | F114: 0.463536472 | G114: 2.199167365 | H114: 158569.4701 | I114: -0.2757635015 | J114: 0.589260931 | K114: 166477.2097 | L114: 0.1849268381 | M114: 1.280901918 | N114: 177858.8939 | O114: 0.4147289361 | P114: 1.90981073 | Q114: 244358.963 | R114: 0.2896471189 | S114: 2.521002518 | T114: 444851.8015 | U114: 0.5513274566 | V114: 7.230549024 | W114: 293917.9967 | X114: 0.5154452713 | Y114: 2.008937867 | Z114: 227978.0583 | AA114: 0.7314925425 | AB114: 0.6260114635 | AC114: 150852.7864 | AD114: 0.4133184172 | AE114: -0.4335723858 | AF114: 230662.1172 | AG114: 0.4178562513 | AH114: 2.666295512
A115: 2013-08-01 | B115: 143848.51 | C115: 0.1336829951 | D115: 1.178929672 | E115: 161454.4034 | F115: 0.5431264857 | G115: 1.850075458 | H115: 160270.8322 | I115: 1.072944317 | J115: 1.633553528 | K115: 166815.2258 | L115: 0.2030404985 | M115: 2.045465265 | N115: 179297.7454 | O115: 0.8089848432 | P115: 2.89320397 | Q115: 245623.8959 | R115: 0.5176535547 | S115: 3.25201619 | T115: 451040.226 | U115: 1.391120475 | V115: 9.191201797 | W115: 293721.7095 | X115: -0.06678299856 | Y115: 2.369217521 | Z115: 230254.0938 | AA115: 0.9983572531 | AB115: 1.934703937 | AC115: 151729.0941 | AD115: 0.5809025668 | AE115: 0.6082632278 | AF115: 232162.2848 | AG115: 0.6503745105 | AH115: 3.559893698
A116: 2013-09-01 | B116: 143769.0377 | C116: -0.05524718062 | D116: 1.48256305 | E116: 162082.9424 | F116: 0.3892981284 | G116: 2.742754376 | H116: 160655.0615 | I116: 0.2397374971 | J116: 1.754537409 | K116: 168665.7995 | L116: 1.109355374 | M116: 2.88748246 | N116: 179897.7133 | O116: 0.3346209947 | P116: 3.328142729 | Q116: 246795.832 | R116: 0.4771262572 | S116: 3.392354833 | T116: 457521.3753 | U116: 1.436933757 | V116: 9.441955883 | W116: 293932.3052 | X116: 0.07169906106 | Y116: 2.780808629 | Z116: 231567.1415 | AA116: 0.5702603394 | AB116: 3.448867161 | AC116: 153788.5848 | AD116: 1.357347264 | AE116: 1.536932197 | AF116: 233590.0201 | AG116: 0.6149729892 | AH116: 4.114092075
A117: 2013-10-01 | B117: 144715.7901 | C117: 0.6585231715 | D117: 1.079045458 | E117: 162110.0095 | F117: 0.01669959214 | G117: 2.152757426 | H117: 162137.6624 | I117: 0.9228472931 | J117: 2.764524154 | K117: 168975.6386 | L117: 0.1837000203 | M117: 2.63452224 | N117: 180911.5802 | O117: 0.5635796976 | P117: 3.595052564 | Q117: 246836.7258 | R117: 0.01656991868 | S117: 3.221379343 | T117: 463678.3758 | U117: 1.345729579 | V117: 10.74886084 | W117: 296103.5616 | X117: 0.7386926911 | Y117: 3.879625199 | Z117: 232004.4488 | AA117: 0.1888468348 | AB117: 3.31040435 | AC117: 155290.322 | AD117: 0.9764945818 | AE117: 2.121954672 | AF117: 235038.5957 | AG117: 0.6201359258 | AH117: 4.59414328
A118: 2013-11-01 | B118: 144789.7988 | C118: 0.05114071391 | D118: 1.404682439 | E118: 161684.1427 | F118: -0.2627023778 | G118: 3.138640026 | H118: 161434.1385 | I118: -0.4339052464 | J118: 2.335744319 | K118: 170122.6584 | L118: 0.678807779 | M118: 2.938116095 | N118: 181467.1874 | O118: 0.3071152894 | P118: 4.065308908 | Q118: 247884.9978 | R118: 0.4246823374 | S118: 4.392481656 | T118: 469997.652 | U118: 1.362857646 | V118: 11.09756918 | W118: 297566.1906 | X118: 0.4939585921 | Y118: 4.169719664 | Z118: 231003.6474 | AA118: -0.4313716396 | AB118: 3.592227786 | AC118: 155090.822 | AD118: -0.1284690409 | AE118: 2.032118747 | AF118: 235974.9087 | AG118: 0.3983656352 | AH118: 5.033966947
A119: 2013-12-01 | B119: 145162.8129 | C119: =B119/B118*100-100 -> 0.2576245721 | D119: =B119/B107*100-100 -> 2.155924316 | E119: 162223.3155 | F119: =E119/E118*100-100 -> 0.3334728984 | G119: =E119/E107*100-100 -> 3.451702365 | H119: 162530.5395 | I119: 0.6791630116 | J119: 3.533386758 | K119: 169837.1059 | L119: =K119/K118*100-100 -> -0.1678509434 | M119: =K119/K107*100-100 -> 3.158213437 | N119: 182839.1675 | O119: =N119/N118*100-100 -> 0.7560486153 | P119: =N119/N107*100-100 -> 4.309602263 | Q119: 248837.7052 | R119: =Q119/Q118*100-100 -> 0.3843344131 | S119: =Q119/Q107*100-100 -> 4.45591136 | T119: 476873.1561 | U119: =T119/T118*100-100 -> 1.462880535 | V119: =T119/T107*100-100 -> 12.87757313 | W119: 302409.7364 | X119: =W119/W118*100-100 -> 1.627720467 | Y119: =W119/W107*100-100 -> 4.92916675 | Z119: 233492.9125 | AA119: =Z119/Z118*100-100 -> 1.077586926 | AB119: =Z119/Z107*100-100 -> 3.324772048 | AC119: 156006.3849 | AD119: =AC119/AC118*100-100 -> 0.5903398117 | AE119: =AC119/AC107*100-100 -> 2.88326033 | AF119: 238241.9687 | AG119: 0.9607207883 | AH119: 5.709387571
A120: 2014-01-01 | B120: 147417.1683 | C120: 1.552984077 | D120: 4.051946953 | E120: 164039.2658 | F120: 1.119413883 | G120: 4.213753896 | H120: 163429.9201 | I120: 0.553360975 | J120: 3.84961413 | K120: 173463.2104 | L120: 2.135048433 | M120: 5.249186703 | N120: 183948.2014 | O120: 0.6065625216 | P120: 4.357227736 | Q120: 251936.5604 | R120: 1.245331886 | S120: 5.964371504 | T120: 490266.6538 | U120: 2.808608003 | V120: 14.53360843 | W120: 305739.795 | X120: 1.101174409 | Y120: 5.94411701 | Z120: 234065.0217 | AA120: 0.2450220918 | AB120: 3.778448519 | AC120: 156797.1543 | AD120: 0.5068827376 | AE120: 3.973503038 | AF120: 241498.36 | AG120: =AF120/AF119*100-100 -> 1.366842005 | AH120: =AF120/AF108*100-100 -> 6.822361667
A121: 2014-02-01 | B121: 148977.7655 | C121: 1.058626475 | D121: 3.483642741 | E121: 165074.8871 | F121: 0.631325257 | G121: 3.376496468 | H121: 163772.9976 | I121: 0.2099233298 | J121: 4.16216849 | K121: 174816.8537 | L121: 0.7803633497 | M121: 4.896892872 | N121: 185556.9276 | O121: 0.874553919 | P121: 4.212751218 | Q121: 255073.1821 | R121: 1.24500456 | S121: 5.417141765 | T121: 494837.0964 | U121: 0.932236086 | V121: 14.85230249 | W121: 309782.6936 | X121: 1.322333132 | Y121: 6.73671095 | Z121: 235954.4306 | AA121: 0.8072154136 | AB121: 4.137485683 | AC121: 158351.7591 | AD121: 0.99147515 | AE121: 3.700232028 | AF121: 243815.0152 | AG121: 0.9592840131 | AH121: 6.91426782
A122: 2014-03-01 | B122: 151817.3633 | C122: 1.906054759 | D122: 5.214812343 | E122: 165765.3364 | F122: 0.4182642518 | G122: 3.757399848 | H122: 164833.2853 | I122: 0.6474130003 | J122: 4.489844984 | K122: 176306.8206 | L122: 0.8523016536 | M122: 6.287689984 | N122: 186126.1779 | O122: 0.3067793218 | P122: 5.014080555 | Q122: 257969.908 | R122: 1.135645007 | S122: 6.656027359 | T122: 502111.1528 | U122: 1.469990115 | V122: 14.69374557 | W122: 313156.2872 | X122: 1.089019368 | Y122: 7.130426881 | Z122: 238316.1161 | AA122: 1.000907447 | AB122: 5.561653687 | AC122: 158202.3946 | AD122: -0.09432452867 | AE122: 3.830949651 | AF122: 246233.7878 | AG122: 0.9920523704 | AH122: 7.556614737
A123: 2014-04-01 | B123: 150960.3444 | C123: -0.5645064684 | D123: 4.744090035 | E123: 165125.3211 | F123: -0.3860971891 | G123: 3.542826549 | H123: 164995.4362 | I123: 0.09837268908 | J123: 4.098412869 | K123: 175631.4242 | L123: -0.3830801429 | M123: 5.947040202 | N123: 186236.6603 | O123: 0.05935889468 | P123: 5.407073267 | Q123: 260335.8069 | R123: 0.9171220451 | S123: 6.759957423 | T123: 507325.6833 | U123: 1.038521138 | V123: 15.25637431 | W123: 315159.2423 | X123: 0.6396023901 | Y123: 7.582162607 | Z123: 240668.7833 | AA123: 0.9872043962 | AB123: 6.318243406 | AC123: 157847.0295 | AD123: -0.2246269018 | AE123: 3.738936383 | AF123: 247480.7079 | AG123: 0.5063968301 | AH123: 7.815182514
A124: 2014-05-01 | B124: 152141.9591 | C124: 0.7827318281 | D124: 6.88828231 | E124: 166394.8864 | F124: 0.768849589 | G124: 5.015426367 | H124: 165424.4155 | I124: 0.2599946247 | J124: 4.248253631 | K124: 175967.5395 | L124: 0.1913753481 | M124: 6.852100589 | N124: 186519.5185 | O124: 0.1518810527 | P124: 6.336633831 | Q124: 262274.2202 | R124: 0.7445819042 | S124: 8.124399306 | T124: 520614.7804 | U124: 2.619441026 | V124: 17.79434805 | W124: 318290.4648 | X124: 0.9935366284 | Y124: 8.208986689 | Z124: 242149.4232 | AA124: 0.6152189481 | AB124: 6.687049326 | AC124: 156835.4427 | AD124: -0.6408652226 | AE124: 3.751600876 | AF124: 250042.8519 | AG124: 1.035290361 | AH124: 9.000949171
A125: 2014-06-01 | B125: 150583.5399 | C125: -1.024319108 | D125: 4.876980305 | E125: 166144.5153 | F125: -0.1504680564 | G125: 3.943410568 | H125: 165315.3149 | I125: -0.06595194418 | J125: 3.966693894 | K125: 176427.6006 | L125: 0.2614465679 | M125: 6.173008832 | N125: 187237.8297 | O125: 0.3851131191 | P125: 5.709843928 | Q125: 265037.1015 | R125: 1.053432312 | S125: 8.776355333 | T125: 532434.2817 | U125: 2.27029692 | V125: 20.3478858 | W125: 321372.6314 | X125: 0.9683502888 | Y125: 9.904509097 | Z125: 241146.0328 | AA125: -0.4143682995 | AB125: 6.54972669 | AC125: 158120.5736 | AD125: 0.8194135218 | AE125: 5.251032354 | AF125: 252060.918 | AG125: 0.8070881059 | AH125: 9.733741022
A126: 2014-07-01 | B126: 149776.3723 | C126: =B126/B125*100-100 -> -0.5360264836 | D126: =B126/B114*100-100 -> 4.260098251 | E126: 167064.9426 | F126: =E126/E125*100-100 -> 0.5539920362 | G126: =E126/E114*100-100 -> 4.036999349 | H126: 165599.4225 | I126: 0.1718580067 | J126: 4.433358066 | K126: 178072.5387 | L126: =K126/K125*100-100 -> 0.9323587502 | M126: =K126/K114*100-100 -> 6.965114965 | N126: 189382.7861 | O126: =N126/N125*100-100 -> 1.145578559 | P126: =N126/N114*100-100 -> 6.479233044 | Q126: 266461.5412 | R126: =Q126/Q125*100-100 -> 0.5374491646 | S126: =Q126/Q114*100-100 -> 9.045126877 | T126: 536113.7893 | U126: =T126/T125*100-100 -> 0.6910726243 | V126: =T126/T114*100-100 -> 20.51514401 | W126: 325109.8708 | X126: =W126/W125*100-100 -> 1.162899081 | Y126: =W126/W114*100-100 -> 10.61244103 | Z126: 242817.8087 | AA126: =Z126/Z125*100-100 -> 0.6932628724 | AB126: =Z126/Z114*100-100 -> 6.50928888 | AC126: 158130.918 | AD126: =AC126/AC125*100-100 -> 0.006542111375 | AE126: =AC126/AC114*100-100 -> 4.824658375 | AF126: 253880.8793 | AG126: =AF126/AF125*100-100 -> 0.7220323483 | AH126: =AF126/AF114*100-100 -> 10.0661359
A127: 2014-08-01 | B127: 149456.5442 | C127: -0.213537041 | D127: 3.898569602 | E127: 168146.0894 | F127: 0.6471416258 | G127: 4.144629014 | H127: 166691.1973 | I127: 0.6592866106 | J127: 4.005947312 | K127: 179218.757 | L127: 0.6436805559 | M127: 7.435491055 | N127: 190936.5773 | O127: 0.8204500974 | P127: 6.49134319 | Q127: 269430.3948 | R127: 1.114177129 | S127: 9.692256874 | T127: 539527.5622 | U127: 0.636762759 | V127: 19.61850209 | W127: 327096.0012 | X127: 0.6109105312 | Y127: 11.36255533 | Z127: 245704.4328 | AA127: 1.188802478 | AB127: 6.710125667 | AC127: 160295.6142 | AD127: 1.368926616 | AE127: 5.645931098 | AF127: 255821.4119 | AG127: 0.7643476589 | AH127: 10.19077114
A128: 2014-09-01 | B128: 148820.0059 | C128: -0.4259019703 | D128: 3.513251701 | E128: 169354.9841 | F128: 0.718954969 | G128: 4.486617553 | H128: 167845.6823 | I128: 0.6925890919 | J128: 4.475813457 | K128: 180799.6047 | L128: 0.8820771078 | M128: 7.19399261 | N128: 191184.4982 | O128: 0.1298445881 | P128: 6.274001316 | Q128: 271231.6761 | R128: 0.6685516321 | S128: 9.901238582 | T128: 543314.1304 | U128: 0.7018303579 | V128: 18.75163867 | W128: 327838.5147 | X128: 0.2270016928 | Y128: 11.5353804 | Z128: 247312.5075 | AA128: 0.6544752625 | AB128: 6.799481954 | AC128: 160826.8316 | AD128: 0.331398573 | AE128: 4.576572954 | AF128: 257152.7325 | AG128: 0.5204101688 | AH128: 10.08720852
A129: 2014-10-01 | B129: 150293.61 | C129: 0.990192198 | D129: 3.854327035 | E129: 170144.8315 | F129: 0.4663857099 | G129: 4.956400915 | H129: 169472.5449 | I129: 0.9692608996 | J129: 4.523861045 | K129: 180430.6201 | L129: -0.2040848368 | M129: 6.779072746 | N129: 192601.5688 | O129: 0.7412058152 | P129: 6.461713789 | Q129: 272980.3911 | R129: 0.6447311066 | S129: 10.59148113 | T129: 543742.5779 | U129: 0.07885814517 | V129: 17.26718482 | W129: 327836.3314 | X129: -0.000665949433 | Y129: 10.71678086 | Z129: 248142.6907 | AA129: 0.335681844 | AB129: 6.956005393 | AC129: 162623.4088 | AD129: 1.117087958 | AE129: 4.722178856 | AF129: 258003.9557 | AG129: 0.3310185151 | AH129: 9.77088885
A130: 2014-11-01 | B130: 149324.3563 | C130: -0.6449067694 | D130: 3.1318211 | E130: 169390.654 | F130: -0.4432562135 | G130: 4.766398968 | H130: 170238.1769 | I130: 0.4517734867 | J130: 5.453641017 | K130: 180703.4999 | L130: 0.1512380806 | M130: 6.219536887 | N130: 192903.9341 | O130: 0.1569900447 | P130: 6.302377227 | Q130: 272355.8831 | R130: -0.2287739457 | S130: 9.871870213 | T130: 543698.8614 | U130: -0.008039919164 | V130: 15.68118673 | W130: 328999.6541 | X130: 0.3548485964 | Y130: 10.5635198 | Z130: 246652.9941 | AA130: -0.6003387133 | AB130: 6.774502007 | AC130: 162082.1996 | AD130: -0.332799058 | AE130: 4.50792476 | AF130: 257915.4196 | AG130: -0.03431580151 | AH130: 9.297815154
A131: 2014-12-01 | B131: 150928.9553 | C131: 1.074572874 | D131: 3.972189765 | E131: 169868.032 | F131: 0.281820729 | G131: 4.712464706 | H131: 170240.4992 | I131: 0.001364103829 | J131: 4.743699053 | K131: 180719.14 | L131: 0.008655142387 | M131: 6.407336057 | N131: 193463.0656 | O131: 0.2898497305 | P131: 5.810515444 | Q131: 274558.8665 | R131: 0.8088620821 | S131: 10.33652089 | T131: 540516.2812 | U131: -0.5853571579 | V131: 13.34592318 | W131: 329860.3798 | X131: 0.2616190462 | Y131: 9.077301461 | Z131: 248684.7546 | AA131: 0.8237323577 | AB131: 6.506339737 | AC131: 162478.1466 | AD131: 0.2442877664 | AE131: 4.148395393 | AF131: 258418.3516 | AG131: 0.1949988045 | AH131: 8.468861684
A132: 2015-01-01 | B132: 151979.354 | C132: =B132/B131*100-100 -> 0.6959557048 | D132: =B132/B120*100-100 -> 3.094745174 | E132: 171149.3067 | F132: =E132/E131*100-100 -> 0.7542765372 | G132: =E132/E120*100-100 -> 4.334353026 | H132: 170431.4122 | I132: 0.1121431708 | J132: 4.284094476 | K132: 182333.9978 | L132: =K132/K131*100-100 -> 0.8935731697 | M132: =K132/K120*100-100 -> 5.113930144 | N132: 194569.8594 | O132: =N132/N131*100-100 -> 0.572095638 | P132: =N132/N120*100-100 -> 5.774265734 | Q132: 277862.5026 | R132: =Q132/Q131*100-100 -> 1.203252382 | S132: =Q132/Q120*100-100 -> 10.29066291 | T132: 542724.9959 | U132: =T132/T131*100-100 -> 0.4086305584 | V132: =T132/T120*100-100 -> 10.69996129 | W132: 332342.8777 | X132: =W132/W131*100-100 -> 0.7525905062 | Y132: =W132/W120*100-100 -> 8.701216894 | Z132: 246877.8371 | AA132: =Z132/Z131*100-100 -> -0.7265895755 | AB132: =Z132/Z120*100-100 -> 5.474041074 | AC132: 162912.6949 | AD132: =AC132/AC131*100-100 -> 0.2674502965 | AE132: =AC132/AC120*100-100 -> 3.900287962 | AF132: 259740.6111 | AG132: =AF132/AF131*100-100 -> 0.5116739972 | AH132: =AF132/AF120*100-100 -> 7.553778423
A133: 2015-02-01 | B133: 155206.1673 | C133: 2.123191878 | D133: 4.18075933 | E133: 171793.896 | F133: 0.3766239537 | G133: 4.070279234 | H133: 170089.2494 | I133: -0.2007627589 | J133: 3.856711385 | K133: 184354.3272 | L133: 1.108037713 | M133: 5.455694541 | N133: 194915.0276 | O133: 0.177400664 | P133: 5.043250123 | Q133: 281849.8111 | R133: 1.434993379 | S133: 10.49762614 | T133: 540877.113 | U133: -0.340482375 | V133: 9.304075395 | W133: 333418.2945 | X133: 0.3235865335 | Y133: 7.629735739 | Z133: 248805.525 | AA133: 0.7808266386 | AB133: 5.446430642 | AC133: 164180.9665 | AD133: 0.7784977614 | AE133: 3.68117628 | AF133: 260872.843 | AG133: 0.4359087034 | AH133: 6.996217099
A134: 2015-03-01 | B134: 155909.4787 | C134: 0.4531465653 | D134: 2.695419924 | E134: 172250.4643 | F134: 0.2657651426 | G134: 3.912234031 | H134: 170196.7179 | I134: 0.06318358946 | J134: 3.253852916 | K134: 185363.6435 | L134: 0.5474871595 | M134: 5.136966821 | N134: 195111.5535 | O134: 0.1008264688 | P134: 4.827572208 | Q134: 282773.6998 | R134: 0.3277946691 | S134: 9.614994258 | T134: 539077.9865 | U134: -0.3326312796 | V134: 7.362280933 | W134: 335509.3493 | X134: 0.6271565722 | Y134: 7.137989247 | Z134: 250087.0598 | AA134: 0.5150748971 | AB134: 4.939214325 | AC134: 164156.1196 | AD134: -0.01513389963 | AE134: 3.763359574 | AF134: 261496.4933 | AG134: 0.2390629577 | AH134: 6.19846107
A135: 2015-04-01 | B135: 155338.1895 | C135: -0.3664236702 | D135: 2.899996734 | E135: 171974.9727 | F135: -0.1599366422 | G135: 4.148153386 | H135: 169822.0493 | I135: -0.2201385871 | J135: 2.925300956 | K135: 185774.5827 | L135: 0.2216935196 | M135: 5.775252652 | N135: 194498.4308 | O135: -0.3142421367 | P135: 4.436167651 | Q135: 283860.3224 | R135: 0.3842728612 | S135: 9.036219725 | T135: 541524.6928 | U135: 0.4538687027 | V135: 6.741036498 | W135: 336292.4011 | X135: 0.2333919661 | Y135: 6.705549461 | Z135: 252312.6247 | AA135: 0.889916064 | AB135: 4.838118734 | AC135: 162522.8719 | AD135: -0.9949355675 | AE135: 2.962261943 | AF135: 262057.1422 | AG135: 0.2144001443 | AH135: 5.889927487
A136: 2015-05-01 | B136: 152761.7844 | C136: -1.658578055 | D136: 0.4073992982 | E136: 171771.2075 | F136: -0.1184853583 | G136: 3.231061482 | H136: 171233.7563 | I136: 0.8312860313 | J136: 3.511779543 | K136: 186835.5266 | L136: 0.5710920456 | M136: 6.176131764 | N136: 195774.0003 | O136: 0.6558250949 | P136: 4.961669358 | Q136: 283943.5426 | R136: 0.0293173147 | S136: 8.262086313 | T136: 545551.6367 | U136: 0.7436307043 | V136: 4.789886345 | W136: 338684.7143 | X136: 0.711378888 | Y136: 6.407433387 | Z136: 254380.8932 | AA136: 0.8197245283 | AB136: 5.051207574 | AC136: 162011.3053 | AD136: -0.3147659608 | AE136: 3.300186762 | AF136: 263301.6703 | AG136: 0.474907144 | AH136: 5.302618459
A137: 2015-06-01 | B137: 152147.4092 | C137: -0.4021785921 | D137: 1.038539298 | E137: 172251.8156 | F137: 0.2797955015 | G137: 3.675896454 | H137: 172402.9745 | I137: 0.6828199526 | J137: 4.287358167 | K137: 188254.2817 | L137: 0.7593604745 | M137: 6.703418916 | N137: 197298.1735 | O137: 0.7785370542 | P137: 5.373029486 | Q137: 285478.1158 | R137: 0.5404501166 | S137: 7.712510495 | T137: 552006.0224 | U137: 1.183093465 | V137: 3.675897924 | W137: 340002.544 | X137: 0.389102205 | Y137: 5.796981678 | Z137: 253578.8692 | AA137: -0.315284677 | AB137: 5.155729221 | AC137: 161607.1748 | AD137: -0.2494458616 | AE137: 2.20502691 | AF137: 264671.4686 | AG137: 0.5202391322 | AH137: 5.002977347
A138: 2015-07-01 | B138: 151506.7303 | C138: =B138/B137*100-100 -> -0.421090859 | D138: =B138/B126*100-100 -> 1.155294412 | E138: 172852.5892 | F138: =E138/E137*100-100 -> 0.3487763252 | G138: =E138/E126*100-100 -> 3.464309402 | H138: 173346.9587 | I138: 0.5475452072 | J138: 4.678480249 | K138: 188055.869 | L138: =K138/K137*100-100 -> -0.1053961006 | M138: =K138/K126*100-100 -> 5.606327835 | N138: 197811.58 | O138: =N138/N137*100-100 -> 0.2602186216 | P138: =N138/N126*100-100 -> 4.450665304 | Q138: 286869.7434 | R138: =Q138/Q137*100-100 -> 0.4874725839 | S138: =Q138/Q126*100-100 -> 7.658967233 | T138: 555614.4552 | U138: =T138/T137*100-100 -> 0.653694466 | V138: =T138/T126*100-100 -> 3.63741175 | W138: 341952.9543 | X138: =W138/W137*100-100 -> 0.5736458135 | Y138: =W138/W126*100-100 -> 5.180735824 | Z138: 255779.0571 | AA138: =Z138/Z137*100-100 -> 0.8676542594 | AB138: =Z138/Z126*100-100 -> 5.337849185 | AC138: 162692.5721 | AD138: =AC138/AC137*100-100 -> 0.6716269438 | AE138: =AC138/AC126*100-100 -> 2.884732575 | AF138: 266009.5409 | AG138: =AF138/AF137*100-100 -> 0.5055597189 | AH138: =AF138/AF126*100-100 -> 4.777304075
A139: 2015-08-01 | B139: 152825.4775 | C139: 0.8704214946 | D139: 2.254122265 | E139: 175030.6799 | F139: 1.260085675 | G139: 4.094410085 | H139: 174815.7019 | I139: 0.8472852418 | J139: 4.87398542 | K139: 188426.2205 | L139: 0.1969369524 | M139: 5.137555715 | N139: 198730.218 | O139: 0.4644004886 | P139: 4.081795511 | Q139: 291507.8681 | R139: 1.616805122 | S139: 8.194128693 | T139: 565482.2625 | U139: 1.776017015 | V139: 4.810634727 | W139: 343944.4968 | X139: 0.5824024775 | Y139: 5.150932913 | Z139: 255907.7526 | AA139: 0.05031510093 | AB139: 4.152680385 | AC139: 163128.5032 | AD139: 0.2679477359 | AE139: 1.767290363 | AF139: 268537.6133 | AG139: 0.9503690495 | AH139: 4.970733797
A140: 2015-09-01 | B140: 152604.1198 | C140: -0.1448434065 | D140: 2.542745484 | E140: 175314.5433 | F140: 0.162179234 | G140: 3.518974789 | H140: 175695.6543 | I140: 0.5033600208 | J140: 4.676898355 | K140: 190176.9589 | L140: 0.9291373549 | M140: 5.186601091 | N140: 198824.5442 | O140: 0.04746445048 | P140: 3.996163973 | Q140: 293751.1613 | R140: 0.7695480861 | S140: 8.302675236 | T140: 571606.4629 | U140: 1.083004865 | V140: 5.207361797 | W140: 347635.6712 | X140: 1.073188963 | Y140: 6.038691495 | Z140: 256791.2346 | AA140: 0.3452345508 | AB140: 3.832692139 | AC140: 164581.7704 | AD140: 0.8908726742 | AE140: 2.334771372 | AF140: 270505.6214 | AG140: 0.732861265 | AH140: 5.192590706
A141: 2015-10-01 | B141: 153431.244 | C141: 0.5420064324 | D141: 2.087669621 | E141: 176237.1583 | F141: 0.5262626856 | G141: 3.580671078 | H141: 177170.485 | I141: 0.8394235478 | J141: 4.542293316 | K141: 192618.8476 | L141: 1.284008678 | M141: 6.755077102 | N141: 200429.9601 | O141: 0.8074535778 | P141: 4.064552207 | Q141: 296498.2013 | R141: 0.9351588669 | S141: 8.615201317 | T141: 578960.9599 | U141: 1.286636438 | V141: 6.477032236 | W141: 351796.794 | X141: 1.196978099 | Y141: 7.308666029 | Z141: 258735.013 | AA141: 0.7569488874 | AB141: 4.268641648 | AC141: 165650.7555 | AD141: 0.6495161225 | AE141: 1.86156889 | AF141: 273223.2571 | AG141: 1.004650356 | AH141: 5.898863597
A142: 2015-11-01 | B142: 153821.8927 | C142: 0.2546083277 | D142: 3.011924202 | E142: 174770.2039 | F142: -0.8323752084 | G142: 3.175824504 | H142: 177018.7314 | I142: -0.0856539705 | J142: 3.982981151 | K142: 192727.1048 | L142: 0.05620283975 | M142: 6.653775364 | N142: 200234.781 | O142: -0.09738018597 | P142: 3.800257881 | Q142: 295301.5173 | R142: -0.4036058246 | S142: 8.424871896 | T142: 581283.0784 | U142: 0.401083772 | V142: 6.912690027 | W142: 353276.584 | X142: 0.4206377081 | Y142: 7.379013819 | Z142: 260188.9235 | AA142: 0.5619303427 | AB142: 5.487843143 | AC142: 166129.8208 | AD142: 0.2892019761 | AE142: 2.497264491 | AF142: 273574.2443 | AG142: 0.1284616645 | AH142: 6.071302257
A143: 2015-12-01 | B143: 155367.4743 | C143: 1.004786511 | D143: 2.940800205 | E143: 175382.0059 | F143: 0.3500608321 | G143: 3.246033928 | H143: 177488.1006 | I143: 0.2651522359 | J143: 4.257272173 | K143: 191872.164 | L143: -0.4436017464 | M143: 6.171468062 | N143: 202424.6773 | O143: 1.093664269 | P143: 4.63220804 | Q143: 298344.1961 | R143: 1.030363405 | S143: 8.663107425 | T143: 587299.8052 | U143: 1.035076882 | V143: 8.655340378 | W143: 356026.6018 | X143: 0.7784319549 | Y143: 7.932514361 | Z143: 263411.3306 | AA143: 1.238487435 | AB143: 5.921784811 | AC143: 166803.3875 | AD143: 0.405445984 | AE143: 2.662044718 | AF143: 275732.9621 | AG143: 0.789079354 | AH143: 6.700224841
A144: 2016-01-01 | B144: 157185.1384 | C144: =B144/B143*100-100 -> 1.169912838 | D144: =B144/B132*100-100 -> 3.425323405 | E144: 175757.5335 | F144: =E144/E143*100-100 -> 0.2141197618 | G144: =E144/E132*100-100 -> 2.692518518 | H144: 178668.0568 | I144: =H144/H143*100-100 -> 0.6648086708 | J144: =H144/H132*100-100 -> 4.83282071 | K144: 192747.3002 | L144: =K144/K143*100-100 -> 0.4561037591 | M144: =K144/K132*100-100 -> 5.711113967 | N144: 202379.2393 | O144: =N144/N143*100-100 -> -0.02244686132 | P144: =N144/N132*100-100 -> 4.01366376 | Q144: 302548.1998 | R144: =Q144/Q143*100-100 -> 1.409111946 | S144: =Q144/Q132*100-100 -> 8.88414123 | T144: 595079.4476 | U144: =T144/T143*100-100 -> 1.324645835 | V144: =T144/T132*100-100 -> 9.646589348 | W144: 358954.3742 | X144: =W144/W143*100-100 -> 0.8223465298 | Y144: =W144/W132*100-100 -> 8.007241403 | Z144: 263613.8513 | AA144: =Z144/Z143*100-100 -> 0.07688381292 | AB144: =Z144/Z132*100-100 -> 6.779067088 | AC144: 168113.1416 | AD144: =AC144/AC143*100-100 -> 0.7852083408 | AE144: =AC144/AC132*100-100 -> 3.192167897 | AF144: 277926.4623 | AG144: =AF144/AF143*100-100 -> 0.7955161324 | AH144: =AF144/AF132*100-100 -> 7.00154327
A145: 2016-02-01 | B145: 159338.4328 | C145: 1.369909658 | D145: 2.662436388 | E145: 178845.2587 | F145: 1.756809617 | G145: 4.104547895 | H145: 179618.1294 | I145: 0.5317529111 | J145: 5.602282341 | K145: 195462.8826 | L145: 1.408882193 | M145: 6.025654788 | N145: 204897.7253 | O145: 1.244438905 | P145: 5.121563905 | Q145: 310849.8639 | R145: 2.743914565 | S145: 10.28918652 | T145: 609024.4084 | U145: 2.343377994 | V145: 12.59940452 | W145: 368909.2406 | X145: 2.773295747 | Y145: 10.6445707 | Z145: 268688.5798 | AA145: 1.925061403 | AB145: 7.991404045 | AC145: 170711.6842 | AD145: 1.545710569 | AE145: 3.977755642 | AF145: 283777.2465 | AG145: 2.105155474 | AH145: 8.779911015
A146: 2016-03-01 | B146: 158871.8777 | C146: -0.2928075885 | D146: 1.900076288 | E146: 180189.077 | F146: 0.7513860108 | G146: 4.608761281 | H146: 179804.3256 | I146: 0.1036622611 | J146: 5.645001751 | K146: 195820.4258 | L146: 0.1829212875 | M146: 5.641226132 | N146: 203852.606 | O146: -0.5100687494 | P146: 4.480028136 | Q146: 312171.3549 | R146: 0.4251219325 | S146: 10.39617725 | T146: 609893.4098 | U146: 0.1426874565 | V146: 13.13639679 | W146: 369123.1752 | X146: 0.05799111601 | Y146: 10.01874494 | Z146: 267536.7114 | AA146: -0.428700174 | AB146: 6.977430816 | AC146: 169659.8785 | AD146: -0.6161299017 | AE146: 3.352758901 | AF146: 283975.3435 | AG146: 0.06980722593 | AH146: 8.596233885
A147: 2016-04-01 | B147: 157718.8109 | C147: -0.725784124 | D147: 1.532540975 | E147: 180639.6893 | F147: 0.2500775122 | G147: 5.038359093 | H147: 178421.8855 | I147: -0.768858116 | J147: 5.064028047 | K147: 195142.1187 | L147: -0.3463923937 | M147: 5.042420721 | N147: 204361.9393 | O147: 0.2498536913 | P147: 5.071253495 | Q147: 313507.4807 | R147: 0.4280104002 | S147: 10.44427699 | T147: 607927.6461 | U147: -0.3223126662 | V147: 12.26222077 | W147: 368703.9906 | X147: -0.1135622454 | Y147: 9.637919084 | Z147: 268787.3804 | AA147: 0.4674756379 | AB147: 6.5295011 | AC147: 168745.4611 | AD147: -0.5389709062 | AE147: 3.828746731 | AF147: 283808.2374 | AG147: -0.05884528565 | AH147: 8.300134476
A148: 2016-05-01 | B148: 155550.0031 | C148: -1.375110433 | D148: 1.825206947 | E148: 179408.3537 | F148: -0.6816528492 | G148: 4.44611548 | H148: 178693.1177 | I148: 0.1520173299 | J148: 4.356244693 | K148: 194846.3661 | L148: -0.1515575576 | M148: 4.287642562 | N148: 204945.1791 | O148: 0.2853955311 | P148: 4.684574447 | Q148: 311801.8665 | R148: -0.544042601 | S148: 9.811219372 | T148: 600982.8689 | U148: -1.142369036 | V148: 10.16058399 | W148: 365276.8892 | X148: -0.9294994275 | Y148: 7.851601729 | Z148: 266792.676 | AA148: -0.74211235 | AB148: 4.879211891 | AC148: 167348.124 | AD148: -0.8280739024 | AE148: 3.29410265 | AF148: 281810.5642 | AG148: -0.7038813182 | AH148: 7.029539135
A149: 2016-06-01 | B149: 156236.0036 | C149: 0.4410161221 | D149: 2.687258697 | E149: 179859.8566 | F149: 0.2516621116 | G149: 4.416813233 | H149: 179406.8752 | I149: 0.3994320414 | J149: 4.06251734 | K149: 195856.1076 | L149: 0.5182244545 | M149: 4.038062703 | N149: 206793.74 | O149: 0.9019782437 | P149: 4.812800048 | Q149: 313834.0198 | R149: 0.6517450722 | S149: 9.932776763 | T149: 598165.8748 | U149: -0.4687311892 | V149: 8.362200862 | W149: 368162.6752 | X149: 0.7900269968 | Y149: 8.282329567 | Z149: 268258.7834 | AA149: 0.5495305865 | AB149: 5.789092037 | AC149: 168147.7555 | AD149: 0.4778252484 | AE149: 4.047209411 | AF149: 282862.8203 | AG149: 0.3733912644 | AH149: 6.87318197
A150: 2016-07-01 | B150: 155503.3335 | C150: =B150/B149*100-100 -> -0.4689509146 | D150: =B150/B138*100-100 -> 2.637904693 | E150: 179215.996 | F150: =E150/E149*100-100 -> -0.3579790259 | G150: =E150/E138*100-100 -> 3.681406742 | H150: 179304.3252 | I150: =H150/H149*100-100 -> -0.05716057245 | J150: =H150/H138*100-100 -> 3.436672068 | K150: 197816.493 | L150: =K150/K149*100-100 -> 1.000931419 | M150: =K150/K138*100-100 -> 5.190278812 | N150: 207873.643 | O150: =N150/N149*100-100 -> 0.5222125956 | P150: =N150/N138*100-100 -> 5.086690554 | Q150: 314224.5822 | R150: =Q150/Q149*100-100 -> 0.1244487218 | S150: =Q150/Q138*100-100 -> 9.53563053 | T150: 596032.448 | U150: =T150/T149*100-100 -> -0.3566613956 | V150: =T150/T138*100-100 -> 7.274467467 | W150: 370606.7124 | X150: =W150/W149*100-100 -> 0.6638470793 | Y150: =W150/W138*100-100 -> 8.379444503 | Z150: 269292.3509 | AA150: =Z150/Z149*100-100 -> 0.3852874969 | AB150: =Z150/Z138*100-100 -> 5.283190098 | AC150: 167722.3783 | AD150: =AC150/AC149*100-100 -> -0.2529782666 | AE150: =AC150/AC138*100-100 -> 3.091601611 | AF150: 283341.4501 | AG150: =AF150/AF149*100-100 -> 0.1692091595 | AH150: =AF150/AF138*100-100 -> 6.515521611
A151: 2016-08-01 | B151: 154883.6656 | C151: =B151/B150*100-100 -> -0.3984916884 | D151: 1.346757215 | E151: 179948.4258 | F151: =E151/E150*100-100 -> 0.4086854795 | G151: 2.80964795 | H151: 179089.2065 | I151: =H151/H150*100-100 -> -0.1199741032 | J151: 2.444577066 | K151: 198720.0275 | L151: =K151/K150*100-100 -> 0.4567538976 | M151: 5.463043806 | N151: 208282.1237 | O151: =N151/N150*100-100 -> 0.1965043474 | P151: 4.806468716 | Q151: 316022.6914 | R151: =Q151/Q150*100-100 -> 0.5722369549 | S151: 8.409660936 | T151: 597069.371 | U151: =T151/T150*100-100 -> 0.173970896 | V151: 5.585870789 | W151: 372492.9953 | X151: =W151/W150*100-100 -> 0.5089715957 | Y151: 8.300321336 | Z151: 270211.1677 | AA151: =Z151/Z150*100-100 -> 0.3411967768 | AB151: 5.589285593 | AC151: 167205.109 | AD151: =AC151/AC150*100-100 -> -0.3084080505 | AE151: 2.499015022 | AF151: 284214.8067 | AG151: =AF151/AF150*100-100 -> 0.3082346801 | AH151: =AF151/AF139*100-100 -> 5.837987909
A152: 2016-09-01 | B152: 154949.9418 | C152: =B152/B151*100-100 -> 0.04279093869 | D152: 1.537194375 | E152: 179871.0777 | F152: =E152/E151*100-100 -> -0.04298346169 | G152: 2.599062431 | H152: 179679.6754 | I152: =H152/H151*100-100 -> 0.3297065844 | J152: 2.267569523 | K152: 200121.1709 | L152: =K152/K151*100-100 -> 0.7050841358 | M152: 5.22892574 | N152: 208589.7551 | O152: =N152/N151*100-100 -> 0.1476993486 | P152: 4.911471534 | Q152: 318543.6136 | R152: =Q152/Q151*100-100 -> 0.7977029059 | S152: 8.439950389 | T152: 604656.5452 | U152: =T152/T151*100-100 -> 1.270735782 | V152: 5.781964409 | W152: 373691.8307 | X152: =W152/W151*100-100 -> 0.3218410658 | Y152: 7.495249096 | Z152: 270781.9661 | AA152: =Z152/Z151*100-100 -> 0.2112415846 | AB152: 5.448290143 | AC152: 168727.3882 | AD152: =AC152/AC151*100-100 -> 0.9104262975 | AE152: 2.518880319 | AF152: 285839.2151 | AG152: 0.5715424988 | AH152: 5.668493531
A153: 2016-10-01 | B153: 156897.9473 | C153: =B153/B152*100-100 -> 1.257183749 | D153: 2.259450681 | E153: 182907.8966 | F153: =E153/E152*100-100 -> 1.688330859 | G153: 3.785091852 | H153: 182059.0661 | I153: =H153/H152*100-100 -> 1.324240324 | J153: 2.759252554 | K153: 201353.6855 | L153: =K153/K152*100-100 -> 0.6158841494 | M153: 4.534778388 | N153: 210969.819 | O153: =N153/N152*100-100 -> 1.141026269 | P153: 5.258624454 | Q153: 321237.505 | R153: =Q153/Q152*100-100 -> 0.8456899788 | S153: 8.343829256 | T153: 612253.0295 | U153: =T153/T152*100-100 -> 1.256330461 | V153: 5.750313385 | W153: 375253.7785 | X153: =W153/W152*100-100 -> 0.4179775156 | Y153: 6.667765279 | Z153: 272874.7763 | AA153: =Z153/Z152*100-100 -> 0.7728765152 | AB153: 5.464959376 | AC153: 170894.8945 | AD153: =AC153/AC152*100-100 -> 1.284620267 | AE153: 3.165780257 | AF153: 288579.6104 | AG153: 0.9587191502 | AH153: 5.620441473
A154: 2016-11-01 | B154: 157973.9271 | C154: =B154/B153*100-100 -> 0.6857832089 | D154: 2.699247985 | E154: 183359.3073 | F154: =E154/E153*100-100 -> 0.246796718 | G154: 4.914512444 | H154: 183471.7967 | I154: =H154/H153*100-100 -> 0.7759737519 | J154: 3.645413793 | K154: 202483.7249 | L154: =K154/K153*100-100 -> 0.5612211277 | M154: 5.062401597 | N154: 211734.853 | O154: =N154/N153*100-100 -> 0.3626272414 | P154: 5.743293917 | Q154: 322752.9142 | R154: =Q154/Q153*100-100 -> 0.4717410681 | S154: 9.296056845 | T154: 620223.1289 | U154: =T154/T153*100-100 -> 1.301765615 | V154: 6.698982299 | W154: 376492.5622 | X154: =W154/W153*100-100 -> 0.3301189165 | Y154: 6.57161535 | Z154: 273053.1172 | AA154: =Z154/Z153*100-100 -> 0.06535632271 | AB154: 4.944174238 | AC154: 172136.2097 | AD154: =AC154/AC153*100-100 -> 0.7263617807 | AE154: 3.615479043 | AF154: 290286.3773 | AG154: 0.5914371329 | AH154: 6.108810839
A155: 2016-12-01 | B155: 158968.2694 | C155: =B155/B154*100-100 -> 0.6294344501 | D155: 2.317598999 | E155: 184688.8404 | F155: =E155/E154*100-100 -> 0.7250971556 | G155: 5.306607403 | H155: 184081.1325 | I155: =H155/H154*100-100 -> 0.3321141436 | J155: 3.714633203 | K155: 203426.6275 | L155: =K155/K154*100-100 -> 0.4656683522 | M155: 6.021959214 | N155: 213713.5233 | O155: =N155/N154*100-100 -> 0.9345037979 | P155: 5.576813133 | Q155: 323406.0201 | R155: =Q155/Q154*100-100 -> 0.2023547506 | S155: 8.400305529 | T155: 624309.6578 | U155: =T155/T154*100-100 -> 0.6588804448 | V155: 6.30169674 | W155: 380317.826 | X155: =W155/W154*100-100 -> 1.01602638 | Y155: 6.822867737 | Z155: 278449.6087 | AA155: =Z155/Z154*100-100 -> 1.976352266 | AB155: 5.709047532 | AC155: 173249.9617 | AD155: =AC155/AC154*100-100 -> 0.6470178792 | AE155: 3.864774162 | AF155: 292637.8757 | AG155: 0.810061558 | AH155: 6.130900502
A156: 2017-01-01 | B156: 159783.844 | C156: 0.513042404 | D156: 1.653276931 | E156: 184478.6977 | F156: -0.1137820726 | G156: 4.962042886 | H156: 184337.8506 | I156: 0.1394592462 | J156: 3.173367356 | K156: 205155.5841 | L156: 0.8499165705 | M156: 6.437591557 | N156: 215702.0751 | O156: 0.9304754234 | P156: 6.583103994 | Q156: 326416.7707 | R156: 0.9309507168 | S156: 7.889179631 | T156: 629680.6349 | U156: 0.8603065769 | V156: 5.81454921 | W156: 384745.0118 | X156: 1.164075278 | Y156: 7.18493474 | Z156: 280115.9324 | AA156: 0.5984291574 | AB156: 6.259944597 | AC156: 173961.8397 | AD156: 0.4108965044 | AE156: 3.479024954 | AF156: 294887.0419 | AG156: =AF156/AF155*100-100 -> 0.7685834087 | AH156: 6.102542155
A157: 2017-02-01 | B157: 160470.8624 | C157: 0.4299673508 | D157: 0.7107071292 | E157: 186465.5569 | F157: 1.077012849 | G157: 4.260833229 | H157: 184039.5789 | I157: -0.1618070776 | J157: 2.461583095 | K157: 206399.8838 | L157: 0.6065151558 | M157: 5.595436382 | N157: 217184.7997 | O157: 0.6873947113 | P157: 5.996686608 | Q157: 328903.2552 | R157: 0.7617514506 | S157: 5.807752685 | T157: 630857.1842 | U157: 0.1868485769 | V157: 3.584876977 | W157: 387851.9276 | X157: 0.807525957 | Y157: 5.134782459 | Z157: 282041.4982 | AA157: 0.6874174739 | AB157: 4.969663546 | AC157: 175754.7026 | AD157: 1.030606966 | AE157: 2.954114366 | AF157: 296633.6186 | AG157: =AF157/AF156*100-100 -> 0.5922867179 | AH157: 4.530445034
A158: 2017-03-01 | B158: 159786.8288 | C158: -0.4262665285 | D158: 0.5759049761 | E158: 187176.7005 | F158: 0.3813806418 | G158: 3.877939558 | H158: 185310.012 | I158: 0.6903042531 | J158: 3.062043316 | K158: 207709.2061 | L158: 0.6343619249 | M158: 6.071266698 | N158: 218590.4397 | O158: 0.6472091887 | P158: 7.229651848 | Q158: 332114.9363 | R158: 0.9764820045 | S158: 6.388664802 | T158: 636085.1797 | U158: 0.828712995 | V158: 4.294483168 | W158: 388911.2497 | X158: 0.2731253914 | Y158: 5.360832323 | Z158: 281917.8931 | AA158: -0.04382513849 | AB158: 5.37540499 | AC158: 175488.4914 | AD158: -0.1514674702 | AE158: 3.435469228 | AF158: 298123.1617 | AG158: =AF158/AF157*100-100 -> 0.502149097 | AH158: 4.982058657
A159: 2017-04-01 | B159: 158668.7103 | C159: -0.6997563757 | D159: 0.6022740018 | E159: 186809.0339 | F159: -0.1964275335 | G159: 3.415276333 | H159: 185994.8052 | I159: 0.3695392502 | J159: 4.244389467 | K159: 207929.1602 | L159: 0.1058951962 | M159: 6.552681458 | N159: 217251.9469 | O159: -0.6123290531 | P159: 6.307440472 | Q159: 332535.2316 | R159: 0.126551147 | S159: 6.069313186 | T159: 637410.536 | U159: 0.208361452 | V159: 4.849736649 | W159: 388071.0972 | X159: -0.2160267912 | Y159: 5.252752086 | Z159: 281748.784 | AA159: -0.05998525212 | AB159: 4.822177147 | AC159: 173229.4524 | AD159: -1.287286138 | AE159: 2.65725149 | AF159: 297894.4965 | AG159: =AF159/AF158*100-100 -> -0.07670157451 | AH159: 4.963301719
A160: 2017-05-01 | B160: 158551.3327 | C160: -0.07397651154 | D160: 1.92949507 | E160: 186437.2134 | F160: -0.1990377439 | G160: 3.917799541 | H160: 186230.0567 | I160: 0.1264828156 | J160: 4.217811572 | K160: 207852.064 | L160: -0.03707811123 | M160: 6.67484753 | N160: 217216.1387 | O160: -0.01648233208 | P160: 5.987435123 | Q160: 334147.0728 | R160: 0.484712917 | S160: 7.166476132 | T160: 635310.8652 | U160: -0.3294063436 | V160: 5.711975845 | W160: 387313.756 | X160: -0.195155268 | Y160: 6.032921191 | Z160: 283165.2567 | AA160: 0.5027431657 | AB160: 6.136817912 | AC160: 171678.7202 | AD160: -0.8951896619 | AE160: 2.587776995 | AF160: 297770.8114 | AG160: =AF160/AF159*100-100 -> -0.04151975689 | AH160: 5.663466613
A161: 2017-06-01 | B161: 158304.0983 | C161: -0.1559333196 | D161: 1.323699176 | E161: 186105.5397 | F161: -0.1779010101 | G161: 3.472527579 | H161: 184397.3831 | I161: -0.9840911862 | J161: 2.78167035 | K161: 209142.2639 | L161: 0.6207298941 | M161: 6.783631307 | N161: 217352.4855 | O161: 0.06277008694 | P161: 5.105930899 | Q161: 334779.1813 | R161: 0.1891707266 | S161: 6.673961446 | T161: 627361.4991 | U161: -1.251256132 | V161: 4.880857556 | W161: 385862.3437 | X161: -0.3747381127 | Y161: 4.807567347 | Z161: 282058.6881 | AA161: -0.3907854727 | AB161: 5.144250828 | AC161: 171737.7237 | AD161: 0.03436857525 | AE161: 2.135008096 | AF161: 296545.474 | AG161: =AF161/AF160*100-100 -> -0.4115035591 | AH161: 4.837204723
A162: 2017-07-01 | B162: 158226.8292 | C162: -0.04881056124 | D162: 1.751406662 | E162: 187771.6955 | F162: 0.8952747032 | G162: 4.773959743 | H162: 184361.2012 | I162: -0.01962171691 | J162: 2.820275479 | K162: 208991.4183 | L162: -0.07212580054 | M162: 5.649137348 | N162: 217505.6952 | O162: 0.0704890459 | P162: 4.63360918 | Q162: 333863.1896 | R162: -0.273610703 | S162: 6.249863473 | T162: 622675.9341 | U162: -0.7468684348 | V162: 4.470140197 | W162: 385919.7519 | X162: 0.01487788647 | Y162: 4.131884027 | Z162: 284306.2649 | AA162: 0.7968472335 | AB162: 5.575321369 | AC162: 173580.9632 | AD162: 1.07328746 | AE162: 3.493025192 | AF162: 296517.825 | AG162: =AF162/AF161*100-100 -> -0.009323683655 | AH162: 4.650352053
A163: 2017-08-01 | B163: 157429.444 | C163: -0.5039506822 | D163: =B163/B151*100-100 -> 1.643671336 | E163: 189125.6109 | F163: 0.7210433691 | G163: =E163/E151*100-100 -> 5.099897413 | H163: 186505.8243 | I163: 1.163272504 | J163: =H163/H151*100-100 -> 4.141298062 | K163: 209908.6229 | L163: 0.4388718777 | M163: =K163/K151*100-100 -> 5.630331047 | N163: 218779.6932 | O163: 0.5857308867 | P163: =N163/N151*100-100 -> 5.040072239 | Q163: 334225.9827 | R163: 0.1086652031 | S163: =Q163/Q151*100-100 -> 5.760121604 | T163: 620138.1137 | U163: -0.407566805 | V163: =T163/T151*100-100 -> 3.863662041 | W163: 386387.5468 | X163: 0.1212155804 | Y163: =W163/W151*100-100 -> 3.73015109 | Z163: 283957.5769 | AA163: -0.1226452025 | AB163: =Z163/Z151*100-100 -> 5.087283877 | AC163: 175134.6211 | AD163: 0.8950623821 | AE163: =AC163/AC151*100-100 -> 4.74238628 | AF163: 296955.5347 | AG163: =AF163/AF162*100-100 -> 0.1476166619 | AH163: =AF163/AF151*100-100 -> 4.482781243
A164: 2017-09-01 | B164: 158429.8322 | C164: 0.6354517494 | D164: 2.245815879 | E164: 189888.4936 | F164: 0.4033735453 | G164: 5.5692199 | H164: 188982.0857 | I164: 1.327712635 | J164: 5.177219018 | K164: 210328.2672 | L164: 0.1999175932 | M164: 5.100458006 | N164: 220185.3436 | O164: 0.6424957995 | P164: 5.559040276 | Q164: 333870.637 | R164: -0.106318979 | S164: 4.811593396 | T164: 629423.2857 | U164: 1.497274863 | V164: 4.096001407 | W164: 386150.9648 | X164: -0.06122919615 | Y164: 3.334066491 | Z164: 286457.3716 | AA164: 0.8803408938 | AB164: 5.788939978 | AC164: 177486.5897 | AD164: =AC164/AC163*100-100 -> 1.342948952 | AE164: =AC164/AC152*100-100 -> 5.191333496 | AF164: 298786.3575 | AG164: =AF164/AF163*100-100 -> 0.616530968 | AH164: =AF164/AF152*100-100 -> 4.529519319
A165: 2017-10-01 | B165: 159005.0883 | C165: 0.3630983709 | D165: 1.343001032 | E165: 190877.8 | F165: 0.520993336 | G165: 4.35733147 | H165: 189225.9864 | I165: 0.1290602336 | J165: 3.936590736 | K165: 211174.8021 | L165: 0.4024827075 | M165: 4.877544999 | N165: 221121.1021 | O165: 0.4249867372 | P165: 4.811722906 | Q165: 336401.7967 | R165: 0.7581258645 | S165: 4.720585696 | T165: 635528.9637 | U165: 0.970043224 | V165: 3.801685422 | W165: 385116.6695 | X165: -0.2678474039 | Y165: 2.628325551 | Z165: 287787.8358 | AA165: 0.4644545128 | AB165: 5.465165984 | AC165: 178946.9558 | AD165: 0.8228036343 | AE165: 4.711703842 | AF165: 300095.5754 | AG165: =AF165/AF164*100-100 -> 0.4381785896 | AH165: =AF165/AF153*100-100 -> 3.990567804
A166: 2017-11-01 | B166: 159807.3664 | C166: 0.5045612709 | D166: 1.160596183 | E166: 191594.0467 | F166: 0.3752383529 | G166: 4.491039745 | H166: 189166.5875 | I166: -0.03139049506 | J166: 3.103905284 | K166: 212023.7066 | L166: 0.4019913923 | M166: 4.711480749 | N166: 221688.6557 | O166: 0.2566709492 | P166: 4.70106955 | Q166: 335830.5634 | R166: -0.1698068618 | S166: 4.051907376 | T166: 643185.3516 | U166: 1.204726822 | V166: 3.70225191 | W166: 384246.1572 | X166: -0.2260385707 | Y166: 2.059428471 | Z166: 289729.7991 | AA166: 0.6747899342 | AB166: 6.107486357 | AC166: 179416.0642 | AD166: 0.2621494523 | AE166: 4.229124475 | AF166: 301168.091 | AG166: =AF166/AF165*100-100 -> 0.3573913569 | AH166: =AF166/AF154*100-100 -> 3.748613282
A167: 2017-12-01 | B167: 159516.4519 | C167: -0.1820407294 | D167: 0.3448377184 | E167: 193786.2567 | F167: 1.144195276 | G167: 4.925807241 | H167: 189689.5198 | I167: 0.2764401345 | J167: 3.046693216 | K167: 212545.5548 | L167: 0.2461272753 | M167: 4.482661575 | N167: 222246.2371 | O167: 0.2515155221 | P167: 3.992594248 | Q167: 336513.6031 | R167: 0.2033882108 | S167: 4.05298054 | T167: 637518.1986 | U167: -0.8811072812 | V167: 2.115703417 | W167: 387409.4827 | X167: 0.823254946 | Y167: 1.864665887 | Z167: 293502.8278 | AA167: 1.302257722 | AB167: 5.406083767 | AC167: 179186.6389 | AD167: -0.1278733542 | AE167: 3.426654253 | AF167: 302021.6482 | AG167: =AF167/AF166*100-100 -> 0.2834155251 | AH167: =AF167/AF155*100-100 -> 3.206615839
A168: 2018-01-01 | B168: 162800.5729 | C168: 2.058797646 | D168: 1.888006199 | E168: 193905.259 | F168: 0.06140905829 | G168: 5.109837343 | H168: 191250.0353 | I168: 0.8226682791 | J168: 3.749737072 | K168: 216744.2258 | L168: 1.975421698 | M168: 5.64870886 | N168: 225077.6209 | O168: 1.273985028 | P168: 4.346525553 | Q168: 338349.2154 | R168: 0.5454793715 | S168: 3.655585666 | T168: 633432.127 | U168: -0.6409341049 | V168: 0.5957769619 | W168: 391856.9292 | X168: 1.147996273 | Y168: 1.848475531 | Z168: 292910.1078 | AA168: -0.2019469557 | AB168: 4.567457236 | AC168: 180641.9063 | AD168: 0.8121517396 | AE168: 3.839960855 | AF168: 303510.6903 | AG168: =AF168/AF167*100-100 -> 0.4930249749 | AH168: =AF168/AF156*100-100 -> 2.924390442
A169: 2018-02-01 | B169: 165177.42 | C169: 1.459974682 | D169: 2.932967141 | E169: 194600.8353 | F169: 0.3587196359 | G169: 4.362885285 | H169: 191657.612 | I169: 0.2131119623 | J169: 4.139345003 | K169: 218841.6583 | L169: 0.967699379 | M169: 6.027994901 | N169: 227124.8765 | O169: 0.9095776192 | P169: 4.576782921 | Q169: 341863.9002 | R169: 1.038774334 | S169: 3.940564528 | T169: 626472.6483 | U169: -1.09869368 | V169: -0.6950124376 | W169: 395393.626 | X169: 0.9025480036 | Y169: 1.944478786 | Z169: 293411.6253 | AA169: 0.1712189282 | AB169: 4.031366722 | AC169: 184307.6777 | AD169: 2.029302892 | AE169: 4.866427478 | AF169: 304643.6076 | AG169: =AF169/AF168*100-100 -> 0.3732709604 | AH169: =AF169/AF157*100-100 -> 2.700297084
A170: 2018-03-01 | B170: 166849.3536 | C170: 1.012204672 | D170: 4.419966811 | E170: 194182.3989 | F170: -0.2150229242 | G170: 3.742826101 | H170: 191226.1097 | I170: -0.2251423041 | J170: 3.192540785 | K170: 219420.0636 | L170: 0.2643030954 | M170: 5.638102274 | N170: 226801.9958 | O170: -0.1421600192 | P170: 3.756594334 | Q170: 343508.9991 | R170: 0.4812145558 | S170: 3.430758906 | T170: 622342.4066 | U170: -0.6592852451 | V170: -2.16052402 | W170: 395278.392 | X170: -0.02914414128 | Y170: 1.637171022 | Z170: 290964.4406 | AA170: -0.8340449057 | AB170: 3.208929864 | AC170: 182152.5228 | AD170: -1.16932457 | AE170: 3.797417898 | AF170: 303997.9569 | AG170: =AF170/AF169*100-100 -> -0.2119363977 | AH170: =AF170/AF158*100-100 -> 1.97059336
A171: 2018-04-01 | B171: 164313.6378 | C171: -1.51976363 | D171: 3.557681613 | E171: 193374.6705 | F171: -0.4159637143 | G171: 3.514624813 | H171: 190850.9829 | I171: -0.1961692506 | J171: 2.610921122 | K171: 218215.726 | L171: -0.5488730416 | M171: 4.94714922 | N171: 227299.552 | O171: 0.2193791104 | P171: 4.624863061 | Q171: 342915.1337 | R171: -0.1728820362 | S171: 3.121444333 | T171: 621217.6055 | U171: -0.1807366919 | V171: -2.54042404 | W171: 394841.006 | X171: -0.1106526371 | Y171: 1.744502195 | Z171: 290854.2508 | AA171: -0.03787054755 | AB171: 3.231767914 | AC171: 179569.6624 | AD171: -1.417965746 | AE171: 3.660006968 | AF171: 303281.2078 | AG171: =AF171/AF170*100-100 -> -0.2357743085 | AH171: =AF171/AF159*100-100 -> 1.808261438
A172: 2018-05-01 | B172: 162526.8684 | C172: -1.08741393 | D172: 2.507412365 | E172: 191537.6615 | F172: -0.9499739665 | G172: 2.735745736 | H172: 190179.5303 | I172: -0.351820326 | J172: 2.120749845 | K172: 217719.8018 | L172: -0.227263276 | M172: 4.747481278 | N172: 226553.4378 | O172: -0.3282514771 | P172: 4.298621248 | Q172: 341755.0219 | R172: -0.3383087153 | S172: 2.27682651 | T172: 624807.9437 | U172: 0.5779517804 | V172: -1.653194068 | W172: 392146.1136 | X172: -0.6825259662 | Y172: 1.24765969 | Z172: 291444.4609 | AA172: 0.2029229939 | AB172: 2.923806505 | AC172: 175402.5356 | AD172: -2.32061848 | AE172: 2.169060558 | AF172: 302422.9164 | AG172: =AF172/AF171*100-100 -> -0.2830018451 | AH172: =AF172/AF160*100-100 -> 1.562310604
A173: 2018-06-01 | B173: 162205.2609 | C173: -0.1978795881 | D173: 2.464347178 | E173: 191569.9459 | F173: 0.01685536203 | G173: 2.936186734 | H173: 191174.5473 | I173: 0.5231987868 | J173: 3.675303897 | K173: 218738.4314 | L173: 0.467862631 | M173: 4.58834448 | N173: 227848.9113 | O173: 0.5718180363 | P173: 4.829218184 | Q173: 342714.4715 | R173: 0.2807418929 | S173: 2.370305758 | T173: 624837.9633 | U173: 0.004804611763 | V173: -0.4022458804 | W173: 391871.394 | X173: -0.07005543339 | Y173: 1.557304128 | Z173: 290370.3952 | AA173: -0.3685318706 | AB173: 2.946800617 | AC173: 177822.0364 | AD173: 1.379398972 | AE173: 3.542793345 | AF173: 302786.4076 | AG173: =AF173/AF172*100-100 -> 0.1201930172 | AH173: =AF173/AF161*100-100 -> 2.104545247
A174: 2018-07-01 | B174: 160664.5417 | C174: -0.9498577305 | D174: 1.540644213 | E174: 192128.6181 | F174: 0.2916283069 | G174: 2.320329764 | H174: 192133.4349 | I174: 0.5015770009 | J174: 4.2157643 | K174: 217585.5317 | L174: -0.5270677176 | M174: 4.112184827 | N174: 226518.6253 | O174: -0.5838456507 | P174: 4.143767405 | Q174: 340778.3344 | R174: -0.5649417286 | S174: 2.07125105 | T174: 619001.4954 | U174: -0.9340770352 | V174: -0.5901044986 | W174: 389554.6117 | X174: -0.5912098518 | Y174: 0.9418693241 | Z174: 291536.6572 | AA174: 0.4016463117 | AB174: 2.543170229 | AC174: 180143.7742 | AD174: 1.305652471 | AE174: 3.78083569 | AF174: 301685.0598 | AG174: =AF174/AF173*100-100 -> -0.3637375417 | AH174: =AF174/AF162*100-100 -> 1.742638846
A175: 2018-08-01 | B175: 160749.9726 | C175: 0.05317344277 | D175: 2.109216965 | E175: 193928.4896 | F175: 0.9368055086 | G175: 2.539517855 | H175: 192968.1591 | I175: 0.4344502723 | J175: 3.464950649 | K175: 219071.7759 | L175: 0.6830620587 | M175: 4.365305683 | N175: 228378.7352 | O175: 0.8211730335 | P175: 4.387537888 | Q175: 340766.26 | R175: -0.003543186605 | S175: 1.956842865 | T175: 616416.3605 | U175: -0.4176298321 | V175: -0.6001490817 | W175: 390616.8717 | X175: 0.2726857683 | Y175: 1.094581053 | Z175: 292958.3756 | AA175: 0.4876636689 | AB175: 3.169768787 | AC175: 182386.3207 | AD175: 1.244864842 | AE175: 4.140643105 | AF175: 302485.6698 | AG175: =AF175/AF174*100-100 -> 0.2653794021 | AH175: =AF175/AF163*100-100 -> 1.86227716
A176: 2018-09-01 | B176: 160594.5984 | C176: -0.09665577222 | D176: 1.366388027 | E176: 193823.199 | F176: -0.0542934755 | G176: 2.072113683 | H176: 192450.4306 | I176: -0.2682973896 | J176: 1.835277047 | K176: 220514.6155 | L176: 0.6586150082 | M176: 4.843071504 | N176: 229919.9677 | O176: 0.6748581803 | P176: 4.421104516 | Q176: 339771.3196 | R176: -0.2919715023 | S176: 1.767355953 | T176: 621876.6904 | U176: 0.8858184612 | V176: -1.19896984 | W176: 390429.5081 | X176: -0.04796606242 | Y176: 1.107997577 | Z176: 294279.4612 | AA176: 0.450946529 | AB176: 2.730629536 | AC176: 183350.248 | AD176: 0.5285085696 | AE176: 3.303719115 | AF176: 303303.3739 | AG176: =AF176/AF175*100-100 -> 0.2703282154 | AH176: =AF176/AF164*100-100 -> 1.511788026
A177: 2018-10-01 | B177: 162304.9683 | C177: 1.065023297 | D177: 2.075329815 | E177: 195572.5239 | F177: 0.9025363444 | G177: 2.459544209 | H177: 192099.1778 | I177: -0.1825159562 | J177: 1.518391544 | K177: 222757.8124 | L177: 1.017255412 | M177: 5.485034301 | N177: 230986.7365 | O177: 0.4639739466 | P177: 4.461643107 | Q177: 341860.3931 | R177: 0.6148469283 | S177: 1.622641883 | T177: 630713.17 | U177: 1.420937589 | V177: -0.7577614742 | W177: 391100.8348 | X177: 0.1719456706 | Y177: 1.553857773 | Z177: 295368.6291 | AA177: 0.3701134643 | AB177: 2.634160438 | AC177: 185015.8826 | AD177: 0.9084441217 | AE177: 3.391466931 | AF177: 305344.5008 | AG177: =AF177/AF176*100-100 -> 0.6729654324 | AH177: =AF177/AF165*100-100 -> 1.749084566
A178: 2018-11-01 | B178: 161667.6602 | C178: -0.3926608706 | D178: 1.164085143 | E178: 195474.3387 | F178: -0.05020397237 | G178: 2.025267515 | H178: 192114.6816 | I178: 0.008070703958 | J178: 1.558464497 | K178: 222150.2075 | L178: -0.2727648154 | M178: 4.77611727 | N178: 230484.6247 | O178: -0.2173768722 | P178: 3.96771274 | Q178: 339355.8686 | R178: -0.7326161698 | S178: 1.049727347 | T178: 630371.9526 | U178: -0.05410025725 | V178: -1.992178296 | W178: 389155.4932 | X178: -0.4974015379 | Y178: 1.277653884 | Z178: 293990.7613 | AA178: -0.4664909076 | AB178: 1.470667561 | AC178: 185214.6007 | AD178: 0.1074059637 | AE178: 3.231893688 | AF178: 304407.3405 | AG178: =AF178/AF177*100-100 -> -0.3069190013 | AH178: =AF178/AF166*100-100 -> 1.075561969
A179: 2018-12-01 | B179: 161263.4865 | C179: -0.2500028576 | D179: 1.09520649 | E179: 196905.9361 | F179: 0.7323710196 | G179: 1.609855837 | H179: 194387.6699 | I179: 1.18314139 | J179: 2.476757839 | K179: 221822.3961 | L179: -0.1475629396 | M179: 4.364636714 | N179: 230886.699 | O179: 0.1744473143 | P179: 3.887787711 | Q179: 339613.018 | R179: 0.07577571323 | S179: 0.9210370074 | T179: 628696.4164 | U179: -0.2658011978 | V179: -1.383769472 | W179: 389225.727 | X179: 0.01804774101 | Y179: 0.4688177019 | Z179: 296300.5273 | AA179: 0.7856593954 | AB179: 0.9532104158 | AC179: 185526.413 | AD179: 0.1683519083 | AE179: 3.538084172 | AF179: 304940.2538 | AG179: =AF179/AF178*100-100 -> 0.1750658679 | AH179: =AF179/AF167*100-100 -> 0.9663564497
A180: 2019-01-01 | B180: 162206.4619 | C180: 0.5847420685 | D180: =B180/B168*100-100 -> -0.3649317478 | E180: 196334.8147 | F180: -0.2900478127 | G180: 1.252960183 | H180: 195495.6822 | I180: 0.5700013326 | J180: 2.219945656 | K180: 221885.2355 | L180: 0.02832870824 | M180: 2.371924655 | N180: 232902.8129 | O180: 0.8732048624 | P180: 3.476663721 | Q180: 340564.433 | R180: 0.2801468211 | S180: 0.6547133864 | T180: 626814.9271 | U180: -0.2992683369 | V180: -1.044658091 | W180: 391377.1694 | X180: 0.5527492922 | Y180: -0.1224323736 | Z180: 295015.2678 | AA180: -0.433768882 | AB180: 0.7187051625 | AC180: 185562.4294 | AD180: 0.0194130727 | AE180: 2.723910073 | AF180: 305343.6573 | AG180: =AF180/AF179*100-100 -> 0.1322893456 | AH180: =AF180/AF168*100-100 -> 0.6039217221
A181: 2019-02-01 | B181: 164192.1476 | C181: =B181/B180*100-100 -> 1.224171775 | D181: -0.5964933932 | E181: 197776.1265 | F181: =E181/E180*100-100 -> 0.7341091121 | G181: =E181/E169*100-100 -> 1.631694545 | H181: 196143.0366 | I181: =H181/H180*100-100 -> 0.3311348694 | J181: =H181/H169*100-100 -> 2.34033205 | K181: 224322.9568 | L181: =K181/K180*100-100 -> 1.098640615 | M181: =K181/K169*100-100 -> 2.504686979 | N181: 233577.3705 | O181: =N181/N180*100-100 -> 0.2896305256 | P181: =N181/N169*100-100 -> 2.840945503 | Q181: 343363.7234 | R181: =Q181/Q180*100-100 -> 0.821956183 | S181: =Q181/Q169*100-100 -> 0.4387193884 | T181: 626632.3335 | U181: =T181/T180*100-100 -> -0.02913038862 | V181: =T181/T169*100-100 -> 0.02548956567 | W181: 393588.0593 | X181: =W181/W180*100-100 -> 0.56490007 | Y181: =W181/W169*100-100 -> -0.4566504384 | Z181: 295076.6091 | AA181: =Z181/Z180*100-100 -> 0.02079255644 | AB181: =Z181/Z169*100-100 -> 0.5674566348 | AC181: 186737.0284 | AD181: =AC181/AC180*100-100 -> 0.6329940008 | AE181: =AC181/AC169*100-100 -> 1.318095225 | AF181: 306698.9469 | AG181: =AF181/AF180*100-100 -> 0.4438571276 | AH181: =AF181/AF169*100-100 -> 0.6746700913
A182: 2019-03-01 | B182: 165827.6692 | C182: 0.9961021542 | D182: -0.6123394657 | E182: 197762.8557 | F182: -0.006710008599 | G182: 1.843862702 | H182: 195312.8022 | I182: -0.4232800717 | J182: 2.137099639 | K182: 225345.4027 | L182: 0.4557919047 | M182: 2.700454564 | N182: 232225.3195 | O182: -0.5788450464 | P182: 2.391215155 | Q182: 341708.8254 | R182: -0.4819664776 | S182: -0.5240542998 | T182: 624793.7231 | U182: -0.2934113478 | V182: 0.3938855027 | W182: 392455.5602 | X182: -0.2877371575 | Y182: -0.7141376309 | Z182: 293686.3754 | AA182: -0.4711432804 | AB182: 0.9354871088 | AC182: 186327.1659 | AD182: -0.2194864698 | AE182: 2.291839325 | AF182: 305904.6515 | AG182: =AF182/AF181*100-100 -> -0.2589820926 | AH182: 0.6272064004
A183: 2019-04-01 | B183: 164182.1638 | C183: -0.9922984335 | D183: -0.0800140593 | E183: 198224.5318 | F183: 0.2334493586 | G183: 2.508012683 | H183: 194889.0637 | I183: -0.2169537905 | J183: 2.115829186 | K183: 225545.4846 | L183: 0.08878898971 | M183: 3.358950676 | N183: 231087.6995 | O183: -0.4898776774 | P183: 1.666588192 | Q183: 340738.9598 | R183: -0.2838280723 | S183: -0.6346100494 | T183: 626161.2965 | U183: 0.2188839865 | V183: 0.795806648 | W183: 389307.1606 | X183: -0.8022308597 | Y183: -1.401537659 | Z183: 293240.9721 | AA183: -0.1516595058 | AB183: 0.8205901574 | AC183: 186135.0626 | AD183: -0.1031000165 | AE183: 3.656185628 | AF183: 305197.2607 | AG183: =AF183/AF182*100-100 -> -0.2312455363 | AH183: 0.6317743474
A184: 2019-05-01 | B184: 164442.1342 | C184: 0.1583426923 | D184: 1.178430282 | E184: 196964.0019 | F184: -0.6359101694 | G184: 2.833040923 | H184: 194351.4233 | I184: -0.2758699346 | J184: 2.193660384 | K184: 224034.7421 | L184: -0.6698172434 | M184: 2.900489626 | N184: 230639.935 | O184: -0.1937638562 | P184: 1.803767461 | Q184: 341064.9802 | R184: 0.09568038961 | S184: -0.2019112251 | T184: 631841.1902 | U184: 0.9070975371 | V184: 1.125665344 | W184: 387871.1842 | X184: -0.3688543551 | Y184: -1.090136883 | Z184: 294330.769 | AA184: 0.37163866 | AB184: 0.9903458144 | AC184: 184629.093 | AD184: -0.8090735849 | AE184: 5.260218903 | AF184: 305251.6092 | AG184: =AF184/AF183*100-100 -> 0.01780766146 | AH184: 0.9353433973
A185: 2019-06-01 | B185: 162646.1015 | C185: -1.092197402 | D185: 0.2717794789 | E185: 196074.6592 | F185: -0.4515254761 | G185: 2.351471835 | H185: 194449.7814 | I185: 0.05060838161 | J185: 1.713216626 | K185: 222490.1331 | L185: -0.689450629 | M185: 1.715154355 | N185: 230342.4173 | O185: -0.1289966352 | P185: 1.094368195 | Q185: 342403.6802 | R185: 0.392505845 | S185: -0.09068519505 | T185: 630942.9331 | U185: -0.1421650035 | V185: 0.9770484836 | W185: 388948.6879 | X185: 0.2777993695 | Y185: -0.7458329699 | Z185: 293000.8705 | AA185: -0.4518380651 | AB185: 0.9059034033 | AC185: 185157.5585 | AD185: 0.2862309048 | AE185: 4.125204184 | AF185: 305026.5612 | AG185: =AF185/AF184*100-100 -> -0.07372539118 | AH185: 0.7398461599
A186: 2019-07-01 | B186: 163333.1218 | C186: 0.4224019387 | D186: 1.660963944 | E186: 196440.7741 | F186: 0.1867221934 | G186: 2.244411103 | H186: 194511.5126 | I186: 0.03174660978 | J186: 1.237721995 | K186: 222028.5656 | L186: -0.2074552968 | M186: 2.041971168 | N186: 229984.8166 | O186: -0.1552474184 | P186: 1.530201464 | Q186: 340986.1834 | R186: -0.413984084 | S186: 0.06099244366 | T186: 623945.6795 | U186: -1.109015293 | V186: 0.7987354129 | W186: 388790.7653 | X186: -0.04060243235 | Y186: -0.1960819801 | Z186: 294648.8251 | AA186: 0.5624401818 | AB186: 1.067504844 | AC186: 186553.2238 | AD186: 0.753771705 | AE186: 3.557963403 | AF186: 304377.1656 | AG186: =AF186/AF185*100-100 -> -0.2128980626 | AH186: 0.8923563559
A187: 2019-08-01 | B187: 163610.876 | C187: 0.1700538303 | D187: 1.779722525 | E187: 198199.7341 | F187: 0.8954149079 | G187: 2.2024843 | H187: 196148.0945 | I187: 0.8413804598 | J187: 1.647906798 | K187: 222345.4171 | L187: 0.1427075536 | M187: 1.494323553 | N187: 230733.3023 | O187: 0.3254500498 | P187: 1.030992291 | Q187: 338323.7644 | R187: -0.7807996786 | S187: -0.7167656735 | T187: 618708.9509 | U187: -0.8392923859 | V187: 0.3719223924 | W187: 388396.6017 | X187: -0.1013819329 | Y187: -0.5684009411 | Z187: 296002.8769 | AA187: 0.4595476427 | AB187: 1.039226581 | AC187: 187149.1001 | AD187: 0.3194135769 | AE187: 2.611368745 | AF187: 304133.0581 | AG187: =AF187/AF186*100-100 -> -0.08019903329 | AH187: 0.5446169581
A188: 2019-09-01 | B188: 164998.9193 | C188: 0.8483807766 | D188: 2.74250869 | E188: 199908.6295 | F188: 0.8622087316 | G188: 3.139681161 | H188: 198120.9319 | I188: 1.005789714 | J188: 2.946473691 | K188: 224692.9175 | L188: 1.055789864 | M188: 1.894795915 | N188: 233270.4466 | O188: 1.099600368 | P188: 1.45723699 | Q188: 338416.5216 | R188: 0.02741668622 | S188: -0.3987382003 | T188: 624974.2775 | U188: 1.012645212 | V188: 0.4981031083 | W188: 387769.7582 | X188: -0.161392637 | Y188: -0.681236921 | Z188: 297104.2058 | AA188: 0.3720669848 | AB188: 0.9598850874 | AC188: 188860.3788 | AD188: 0.9143932245 | AE188: 3.005248583 | AF188: 305807.2601 | AG188: =AF188/AF187*100-100 -> 0.5504833963 | AH188: 0.8255385014
A189: 2019-10-01 | B189: 166413.3834 | C189: 0.857256614 | D189: 2.53129348 | E189: 200578.5749 | F189: 0.3351258145 | G189: 2.559690377 | H189: 199871.2054 | I189: 0.8834369369 | J189: 4.045841126 | K189: 225685.2387 | L189: 0.4416344209 | M189: 1.314174484 | N189: 234862.8155 | O189: 0.6826278281 | P189: 1.67805265 | Q189: 339373.5191 | R189: 0.2827868664 | S189: -0.7274531183 | T189: 633521.6468 | U189: 1.367635368 | V189: 0.4452858869 | W189: 389473.3888 | X189: 0.4393407609 | Y189: -0.416119283 | Z189: 298774.3495 | AA189: 0.562140691 | AB189: 1.15304066 | AC189: 190345.3157 | AD189: 0.786261734 | AE189: 2.880527333 | AF189: 307908.7542 | AG189: =AF189/AF188*100-100 -> 0.6871956445 | AH189: 0.8397902798
A190: 2019-11-01 | B190: 165867.0785 | C190: -0.3282818601 | D190: 2.597562324 | E190: 200689.7401 | F190: 0.05542226999 | G190: 2.668074737 | H190: 200737.736 | I190: 0.4335445053 | J190: 4.488493196 | K190: 226126.0054 | L190: 0.1953015174 | M190: 1.789689061 | N190: 233780.6517 | O190: -0.4607642473 | P190: 1.430041989 | Q190: 340119.3131 | R190: 0.2197561097 | S190: 0.2249686956 | T190: 640288.2075 | U190: 1.06808675 | V190: 1.573079974 | W190: 391265.8688 | X190: 0.4602317048 | Y190: 0.5422962366 | Z190: 297324.1976 | AA190: -0.4853669397 | AB190: 1.133857492 | AC190: 192245.4148 | AD190: 0.99823794 | AE190: 3.796036657 | AF190: 308949.1186 | AG190: 0.3378807364 | AH190: 1.492006759
A191: 2019-12-01 | B191: 165768.5945 | C191: =B191/B190*100-100 -> -0.05937523975 | D191: =B191/B179*100-100 -> 2.793631792 | E191: 201709.7878 | F191: 0.5082709495 | G191: 2.439668292 | H191: 201204.1164 | I191: 0.2323331868 | J191: 3.506624921 | K191: 226116.7448 | L191: -0.004095329517 | M191: 1.935940108 | N191: 234527.8906 | O191: 0.3196325049 | P191: 1.577046942 | Q191: 338939.5533 | R191: -0.3468664493 | S191: -0.1983035419 | T191: 642703.7654 | U191: 0.3772610326 | V191: 2.22799887 | W191: 393327.9251 | X191: 0.527021781 | Y191: 1.053938084 | Z191: 299099.8605 | AA191: 0.5972144178 | AB191: 0.9447614676 | AC191: 192714.0891 | AD191: 0.2437895824 | AE191: 3.874206372 | AF191: 309878.0594 | AG191: 0.3006776116 | AH191: 1.619269845
A192: 2020-01-01 | B192: 165923.5373 | C192: 0.09346931396 | D192: 2.291570449 | E192: 202399.2061 | F192: 0.3417872425 | G192: 3.088800822 | H192: 201314.3023 | I192: 0.05476326095 | J192: 2.976342003 | K192: 227270.0533 | L192: 0.5100500238 | M192: 2.426848192 | N192: 236250.2617 | O192: 0.7343992397 | P192: 1.437272804 | Q192: 341508.75 | R192: 0.7580102766 | S192: 0.2772799613 | T192: 648204.3964 | U192: 0.8558579 | V192: 3.412405861 | W192: 395738.6678 | X192: 0.6129091165 | Y192: 1.114397765 | Z192: 296911.323 | AA192: -0.7317079696 | AB192: 0.6426973059 | AC192: 192935.6452 | AD192: 0.1149662279 | AE192: 3.973442189 | AF192: 311285.3253 | AG192: =AF192/AF191*100-100 -> 0.4541353691 | AH192: =AF192/AF180*100-100 -> 1.945895333
A193: 2020-02-01 | B193: 168321.774 | C193: 1.445386686 | D193: 2.515118049 | E193: 204474.2656 | F193: 1.02523103 | G193: 3.386727806 | H193: 202800.195 | I193: 0.7380959223 | J193: 3.39403249 | K193: 229775.2159 | L193: 1.102284488 | M193: 2.430539937 | N193: 239106.3439 | O193: 1.208922359 | P193: 2.367084351 | Q193: 344043.3732 | R193: 0.7421839873 | S193: 0.1979387235 | T193: 649341.5553 | U193: 0.1754321474 | V193: 3.624010542 | W193: 399478.1399 | X193: 0.9449347033 | Y193: 1.496508949 | Z193: 299813.6998 | AA193: 0.9775231015 | AB193: 1.605376567 | AC193: 195249.0854 | AD193: 1.199073486 | AE193: 4.558312323 | AF193: 313771.906 | AG193: =AF193/AF192*100-100 -> 0.7988107835 | AH193: =AF193/AF181*100-100 -> 2.306156969
A194: 2020-03-01 | B194: 166952.8931 | C194: -0.8132524174 | D194: 0.6785501662 | E194: 202743.2407 | F194: -0.8465734559 | G194: 2.518362203 | H194: 200693.3307 | I194: -1.038886689 | J194: 2.754826351 | K194: 229720.3082 | L194: -0.02389623634 | M194: 1.941422143 | N194: 235685.1809 | O194: -1.430812321 | P194: 1.489872595 | Q194: 345230.0115 | R194: 0.3449095097 | S194: 1.030463911 | T194: 650205.5153 | U194: 0.1330517046 | V194: 4.067229114 | W194: 403441.9537 | X194: 0.9922479945 | Y194: 2.79939809 | Z194: 300529.907 | AA194: 0.2388840679 | AB194: 2.330217567 | AC194: 192958.2991 | AD194: -1.17326354 | AE194: 3.558865465 | AF194: 313831.2276 | AG194: =AF194/AF193*100-100 -> 0.01890593614 | AH194: =AF194/AF182*100-100 -> 2.59119172
A195: 2020-04-01 | B195: 165404.0786 | C195: -0.9276954862 | D195: 0.7442433492 | E195: 200427.247 | F195: -1.142328453 | G195: 1.111222282 | H195: 198187.0734 | I195: -1.248799528 | J195: 1.692249755 | K195: 227636.599 | L195: -0.907063599 | M195: 0.9271364261 | N195: 232968.1776 | O195: -1.152810378 | P195: 0.8137508719 | Q195: 341261.8879 | R195: -1.149414443 | S195: 0.1534688269 | T195: 643419.0289 | U195: -1.043744813 | V195: 2.756116125 | W195: 401112.1889 | X195: -0.5774721028 | Y195: 3.032317289 | Z195: 299025.4646 | AA195: -0.5005965388 | AB195: 1.972607192 | AC195: 191566.4198 | AD195: -0.7213368169 | AE195: 2.917965681 | AF195: 310997.0166 | AG195: -0.9031003628 | AH195: 1.900330261
A196: 2020-05-01 | B196: 162141.5424 | C196: =B196/B195*100-100 -> -1.972464204 | D196: =B196/B184*100-100 -> -1.399028222 | E196: 198434.5167 | F196: =E196/E195*100-100 -> -0.9942412283 | G196: =E196/E184*100-100 -> 0.7465906385 | H196: 195987.9718 | I196: =H196/H195*100-100 -> -1.109608982 | J196: =H196/H184*100-100 -> 0.8420563331 | K196: 225450.5108 | L196: =K196/K195*100-100 -> -0.960341227 | M196: =K196/K184*100-100 -> 0.6319416231 | N196: 231818.5183 | O196: =N196/N195*100-100 -> -0.4934834383 | P196: =N196/N184*100-100 -> 0.5110057083 | Q196: 340461.839 | R196: =Q196/Q195*100-100 -> -0.2344383893 | S196: =Q196/Q184*100-100 -> -0.1768405402 | T196: 639991.2195 | U196: =T196/T195*100-100 -> -0.5327491619 | V196: =T196/T184*100-100 -> 1.289885718 | W196: 395935.2146 | X196: =W196/W195*100-100 -> -1.290654961 | Y196: =W196/W184*100-100 -> 2.079048591 | Z196: 297255.8149 | AA196: =Z196/Z195*100-100 -> -0.5918056889 | AB196: =Z196/Z184*100-100 -> 0.9937955135 | AC196: 189015.0045 | AD196: =AC196/AC195*100-100 -> -1.33186984 | AE196: =AC196/AC184*100-100 -> 2.375525672 | AF196: 308430.4583 | AG196: =AF196/AF195*100-100 -> -0.8252678127 | AH196: =AF196/AF184*100-100 -> 1.041386526
A197: 2020-06-01 | B197: 163213.4937 | C197: 0.6611207009 | D197: 0.3488507544 | E197: 200258.1482 | F197: 0.9190092619 | G197: 2.133620454 | H197: 197103.6762 | I197: 0.5692718875 | J197: 1.364822714 | K197: 226804.7999 | L197: 0.60070348 | M197: 1.939262082 | N197: 235805.1054 | O197: 1.719701763 | P197: 2.371551102 | Q197: 342847.0843 | R197: 0.7005910708 | S197: 0.1294974715 | T197: 639011.6418 | U197: -0.1530611096 | V197: 1.278833352 | W197: 392258.5755 | X197: -0.9285961345 | Y197: 0.850983096 | Z197: 297782.5868 | AA197: 0.1772116279 | AB197: 1.631980236 | AC197: 191328.0306 | AD197: 1.223726233 | AE197: 3.332552137 | AF197: 309027.8181 | AG197: =AF197/AF196*100-100 -> 0.1936772912 | AH197: =AF197/AF185*100-100 -> 1.311773248
A198: 2020-07-01 | B198: 164940.0056 | C198: 1.057824248 | D198: 0.9838076688 | E198: 204298.0715 | F198: 2.017357761 | G198: 3.999830208 | H198: 200513.6263 | I198: 1.730028643 | J198: 3.085736954 | K198: 228341.0039 | L198: 0.6773243063 | M198: 2.843074888 | N198: 237997.2457 | O198: 0.929640707 | P198: 3.483894788 | Q198: 347708.6169 | R198: 1.417988624 | S198: 1.971468002 | T198: 644126.8144 | U198: 0.8004819034 | V198: 3.234437788 | W198: 397718.6624 | X198: 1.391961134 | Y198: 2.29632438 | Z198: 304329.9702 | AA198: 2.19871266 | AB198: 3.285655423 | AC198: 193355.1064 | AD198: 1.059476601 | AE198: 3.646081512 | AF198: 313141.2307 | AG198: =AF198/AF197*100-100 -> 1.331081679 | AH198: =AF198/AF186*100-100 -> 2.87934383
A199: 2020-08-01 | B199: 168683.2192 | C199: 2.269439451 | D199: 3.100248119 | E199: 206708.3406 | F199: 1.179780632 | G199: 4.29294548 | H199: 203930.0331 | I199: 1.703827755 | J199: 3.96737914 | K199: 231343.623 | L199: 1.314971485 | M199: 4.046949141 | N199: 241389.0997 | O199: 1.425165267 | P199: 4.618231228 | Q199: 352613.396 | R199: 1.410600369 | S199: 4.223655876 | T199: 652484.1825 | U199: 1.297472481 | V199: 5.458985444 | W199: 406782.3636 | X199: 2.278922782 | Y199: 4.733759731 | Z199: 311085.961 | AA199: 2.219955771 | AB199: 5.095586999 | AC199: 194106.4597 | AD199: 0.3885872935 | AE199: 3.717549082 | AF199: 318288.3969 | AG199: =AF199/AF198*100-100 -> 1.64372035 | AH199: =AF199/AF187*100-100 -> 4.654324296
A200: 2020-09-01 | B200: 171045.7767 | C200: 1.400588398 | D200: 3.664786114 | E200: 211926.4587 | F200: 2.524386806 | G200: 6.011661037 | H200: 207880.8263 | I200: 1.937327803 | J200: 4.926230844 | K200: 234839.9137 | L200: 1.511297636 | M200: 4.515939528 | N200: 244360.0414 | O200: 1.230768787 | P200: 4.753964782 | Q200: 356830.0838 | R200: 1.195838808 | S200: 5.441094346 | T200: 653408.1058 | U200: 0.1416008751 | V200: 4.549599774 | W200: 413059.8258 | X200: 1.543199193 | Y200: 6.521928816 | Z200: 316951.1693 | AA200: 1.88539796 | AB200: 6.680135488 | AC200: 197918.6159 | AD200: 1.963951229 | AE200: 4.796261249 | AF200: 322520.0307 | AG200: =AF200/AF199*100-100 -> 1.329496742 | AH200: =AF200/AF188*100-100 -> 5.465132087
A201: 2020-10-01 | B201: 175291.1289 | C201: 2.481997635 | D201: 5.334754504 | E201: 217122.3468 | F201: 2.451741117 | G201: 8.248025442 | H201: 212721.9454 | I201: 2.328795392 | J201: 6.429510466 | K201: 241192.7271 | L201: 2.705167623 | M201: 6.871290481 | N201: 249427.1597 | O201: 2.073628011 | P201: 6.201213303 | Q201: 360225.0861 | R201: 0.9514338879 | S201: 6.144134976 | T201: 657044.6741 | U201: 0.5565539026 | V201: 3.713058186 | W201: 417834.2045 | X201: 1.155856476 | Y201: 7.281836591 | Z201: 324907.9657 | AA201: 2.510417105 | AB201: 8.746941052 | AC201: 201419.9443 | AD201: 1.769074815 | AE201: 5.818177676 | AF201: 327510.6227 | AG201: =AF201/AF200*100-100 -> 1.547374252 | AH201: =AF201/AF189*100-100 -> 6.366128981
A202: 2020-11-01 | B202: 176167.0081 | C202: 0.4996711815 | D202: 6.209749256 | E202: 222822.8541 | F202: 2.625481619 | G202: 11.02852293 | H202: 215954.4733 | I202: 1.519602463 | J202: 7.580406986 | K202: 245289.9941 | L202: 1.698752327 | M202: 8.474915858 | N202: 253425.0858 | O202: 1.602843143 | P202: 8.402934132 | Q202: 360887.9941 | R202: 0.1840260498 | S202: 6.106292774 | T202: 650864.5749 | U202: -0.9405904179 | V202: 1.651813548 | W202: 419960.7931 | X202: 0.508955136 | Y202: 7.333868516 | Z202: 329693.7548 | AA202: 1.472967606 | AB202: 10.8869569 | AC202: 206705.6605 | AD202: 2.624226803 | AE202: 7.521763618 | AF202: 329918.1752 | AG202: =AF202/AF201*100-100 -> 0.7351066923 | AH202: =AF202/AF190*100-100 -> 6.787220067
A203: 2020-12-01 | B203: 180815.202 | C203: =B203/B202*100-100 -> 2.638515524 | D203: =B203/B191*100-100 -> 9.076874634 | E203: 226678.8649 | F203: =E203/E202*100-100 -> 1.730527504 | G203: =E203/E191*100-100 -> 12.3787137 | H203: 222099.4369 | I203: =H203/H202*100-100 -> 2.845490276 | J203: =H203/H191*100-100 -> 10.3851357 | K203: 249799.1002 | L203: =K203/K202*100-100 -> 1.838275578 | M203: =K203/K191*100-100 -> 10.473508 | N203: 258796.7592 | O203: =N203/N202*100-100 -> 2.119629709 | P203: =N203/N191*100-100 -> 10.34796696 | Q203: 364786.7262 | R203: =Q203/Q202*100-100 -> 1.080316379 | S203: =Q203/Q191*100-100 -> 7.625894552 | T203: 658480.253 | U203: =T203/T202*100-100 -> 1.170086438 | V203: =T203/T191*100-100 -> 2.45470595 | W203: 425522.9202 | X203: =W203/W202*100-100 -> 1.324439606 | Y203: =W203/W191*100-100 -> 8.185280788 | Z203: 335788.8015 | AA203: =Z203/Z202*100-100 -> 1.848699466 | AB203: =Z203/Z191*100-100 -> 12.26645204 | AC203: 210707.9426 | AD203: =AC203/AC202*100-100 -> 1.936222805 | AE203: =AC203/AC191*100-100 -> 9.337072135 | AF203: 335169.5729 | AG203: =AF203/AF202*100-100 -> 1.591727308 | AH203: =AF203/AF191*100-100 -> 8.161763204
A204: 2021-01-01 | B204: 183691.5359 | C204: =B204/B203*100-100 -> 1.590758884 | D204: =B204/B192*100-100 -> 10.70854619 | E204: 229904.9598 | F204: =E204/E203*100-100 -> 1.423200588 | G204: =E204/E192*100-100 -> 13.58985259 | H204: 226415.4449 | I204: =H204/H203*100-100 -> 1.943277331 | J204: =H204/H192*100-100 -> 12.46863353 | K204: 255504.3398 | L204: =K204/K203*100-100 -> 2.283931199 | M204: =K204/K192*100-100 -> 12.42323219 | N204: 264288.297 | O204: =N204/N203*100-100 -> 2.121949959 | P204: =N204/N192*100-100 -> 11.86793831 | Q204: 369557.1213 | R204: =Q204/Q203*100-100 -> 1.307721665 | S204: =Q204/Q192*100-100 -> 8.21307546 | T204: 660148.2851 | U204: =T204/T203*100-100 -> 0.2533154365 | V204: =T204/T192*100-100 -> 1.842611499 | W204: 426789.9776 | X204: =W204/W203*100-100 -> 0.2977647715 | Y204: =W204/W192*100-100 -> 7.846417915 | Z204: 336155.2862 | AA204: =Z204/Z203*100-100 -> 0.1091414381 | AB204: =Z204/Z192*100-100 -> 13.21740201 | AC204: 213028.143 | AD204: =AC204/AC203*100-100 -> 1.101145198 | AE204: =AC204/AC192*100-100 -> 10.41409314 | AF204: 338222.4036 | AG204: 0.9108317164 | AH204: 8.653500871
... 39 more rows

Sheet INTERACTIVE REGIONS CHARTS
C2: e.surv Acadata E&W HPI NATIONAL AND REGIONAL FORMATTED DATA FROM 2005
C3: A TRUE MEASURE OF HOUSE PRICE INFLATION
C4: For data prior to 2005 please see | F4: APAT LGA | O4: =SERIES!$K$3 -> FEBRUARY 2024
O5: © Acadata Limited
O6: e.surv Acadata E&W HPI clb/cms
Q8: Select Region(s)
Q11: North East
Q12: North West
Q13: East Midlands
Q14: West Midlands
Q15: Wales
Q16: Yorks & Humber
Q17: South West
Q18: East of England
Q19: South East
Q20: Greater London
D29: To change the date range, click on the start and end dates below and select from the drop down lists, then click Reset Dates.
D31: Start Date | E31: 2005-01-01 | G31: End Date | H31: 2024-01-01
E32: =MATCH(E31,dates)+ROW(dates)-1 -> 12 | H32: =MATCH(H31,dates)+ROW(dates)-1 -> 240
Q38: Select Region(s)
Q41: North East
Q42: North West
Q43: East Midlands
Q44: West Midlands
Q45: Wales
Q46: Yorks & Humber
Q47: South West
Q48: East of England
Q49: South East
Q50: Greater London
D58: To change the date range, click on the start and end dates below and select from the drop down lists, then click Reset Dates.
D60: Start Date | E60: 2005-01-01 | G60: End Date | H60: 2024-01-01
E61: =MATCH(E60,dates)+ROW(dates)-1 -> 12 | H61: =MATCH(H60,dates)+ROW(dates)-1 -> 240
Q65: Select Region(s)
Q68: North East
Q69: North West
Q70: East Midlands
Q71: West Midlands
Q72: Wales
Q73: Yorks & Humber
Q74: South West
Q75: East of England
Q76: South East
Q77: Greater London
D85: To change the date range, click on the start and end dates below and select from the drop down lists, then click Reset Dates.
D87: Start Date | E87: 2005-01-01 | G87: End Date | H87: 2024-01-01
E88: =MATCH(E87,dates)+ROW(dates)-1 -> 12 | H88: =MATCH(H87,dates)+ROW(dates)-1 -> 240
